Workbook

Sheet 18.1
C9: Fixed | D9: Floating | E9: FS | F9: Fund DF | G9: Fwd FS | H9: Survival | I9: EFV | J9: EPE | K9: ENE | L9: EPE+ENE | N9: Curves
B10: 0 | E10: =Cubic_spline(Tenors,FundingSpread,B10) -> 0.0005808419228 | F10: =EXP(-B10*E10) -> 1 | H10: 1 | I10: 0 | J10: 5.041540102e-18 | K10: 0 | L10: =K10+J10 -> 5.041540102e-18 | N10: Tenor | O10: Cntrprty CDS | P10: Funding spread
B11: 0.25 | C11: 0.003711172058 | D11: 0.001998001427 | E11: =Cubic_spline(Tenors,FundingSpread,B11) -> 0.0006374423153 | F11: =EXP(-B11*E11) -> 0.9998406521 | G11: =EXP(-B10*E10)-EXP(-B11*E11) -> 0.0001593478816 | H11: =EXP(-Cubic_spline(Tenors,CreditSpread,B10)*B11/LGD) -> 0.9998633058 | I11: 0.00171317063 | J11: 0.01242016134 | K11: -0.01067434773 | L11: =K11+J11 -> 0.001745813616 | N11: 1 | O11: 0.0018 | P11: 0.00075
B12: 0.5 | C12: 0.003702831307 | D12: 0.002242980333 | E12: =Cubic_spline(Tenors,FundingSpread,B12) -> 0.0006817762714 | F12: =EXP(-B12*E12) -> 0.99965917 | G12: =EXP(-B11*E11)-EXP(-B12*E12) -> 0.0001814821584 | H12: =EXP(-Cubic_spline(Tenors,CreditSpread,B11)*B12/LGD) -> 0.9994084451 | I12: 0.003173021604 | J12: 0.01743773117 | K12: -0.01422278345 | L12: 0.003214947716 | N12: 3 | O12: 0.005 | P12: 0.00135
B13: 0.75 | C13: 0.003693874197 | D13: 0.002408730615 | E13: =Cubic_spline(Tenors,FundingSpread,B13) -> 0.0007179325451 | F13: 0.9994616955 | G13: 0.000197474431 | H13: =EXP(-Cubic_spline(Tenors,CreditSpread,B12)*B13/LGD) -> 0.998650842 | I13: 0.004458165186 | J13: 0.02118028973 | K13: -0.01668625552 | L13: 0.004494034211 | N13: 5 | O13: 0.0092 | P13: 0.0033
B14: 1 | C14: 0.003684547582 | D14: 0.00250809731 | E14: =Cubic_spline(Tenors,FundingSpread,B14) -> 0.0007500000065 | F14: 0.9992502812 | G14: 0.0002114143559 | H14: =EXP(-Cubic_spline(Tenors,CreditSpread,B13)*B14/LGD) -> 0.9975995041 | I14: 0.005634615458 | J14: 0.02399943894 | K14: -0.01832184002 | L14: 0.005677598914 | N14: 7 | O14: 0.012 | P14: 0.00525
B15: 1.25 | C15: 0.003674940528 | D15: 0.002583512382 | E15: =Cubic_spline(Tenors,FundingSpread,B15) -> 0.000782067468 | F15: 0.9990228933 | G15: 0.0002273878283 | H15: =EXP(-Cubic_spline(Tenors,CreditSpread,B14)*B15/LGD) -> 0.9962570225 | I15: 0.006726043604 | J15: 0.02644640842 | K15: -0.0196935188 | L15: 0.00675288962 | N15: 10 | O15: 0.0135 | P15: 0.00675
B16: 1.5 | C16: 0.003665120576 | D16: 0.002640764628 | E16: =Cubic_spline(Tenors,FundingSpread,B16) -> 0.0008182237416 | F16: 0.9987734173 | G16: 0.000249476089 | H16: =EXP(-Cubic_spline(Tenors,CreditSpread,B15)*B16/LGD) -> 0.994619599 | I16: 0.007750399552 | J16: 0.02841788961 | K16: -0.02066020025 | L16: 0.007757689351 | N16: 20 | O16: 0.0142 | P16: 0.00735
B17: 1.75 | C17: 0.003655129283 | D17: 0.002686841195 | E17: =Cubic_spline(Tenors,FundingSpread,B17) -> 0.0008625576977 | F17: 0.9984916627 | G17: 0.0002817545411 | H17: =EXP(-Cubic_spline(Tenors,CreditSpread,B16)*B17/LGD) -> 0.992677105 | I17: 0.00871868764 | J17: 0.02997790397 | K17: -0.02125253992 | L17: 0.008725364048 | N17: LGD | O17: 0.6
B18: 2 | C18: 0.003644968582 | D18: 0.002732398365 | E18: =Cubic_spline(Tenors,FundingSpread,B18) -> 0.000919158032 | F18: 0.9981633726 | G18: 0.0003282901109 | H18: =EXP(-Cubic_spline(Tenors,CreditSpread,B17)*B18/LGD) -> 0.9904131695 | I18: 0.009631257857 | J18: 0.03146141337 | K18: -0.02185303441 | L18: 0.009608378963
B19: 2.25 | C19: 0.003634611908 | D19: 0.002785098697 | E19: =Cubic_spline(Tenors,FundingSpread,B19) -> 0.000992113615 | F19: 0.997770234 | G19: 0.0003931386079 | H19: =EXP(-Cubic_spline(Tenors,CreditSpread,B18)*B19/LGD) -> 0.987805297 | I19: 0.01048077107 | J19: 0.03268878067 | K19: -0.02225376322 | L19: 0.01043501745 | N19: Discounting Approach
B20: 2.5 | C20: 0.003624045727 | D20: 0.002841439252 | E20: =Cubic_spline(Tenors,FundingSpread,B20) -> 0.001085513288 | F20: 0.9972898958 | G20: 0.0004803382345 | H20: =EXP(-Cubic_spline(Tenors,CreditSpread,B19)*B20/LGD) -> 0.9848250255 | I20: 0.01126337754 | J20: 0.03351175558 | K20: -0.02229763739 | L20: 0.01121411819 | N20: Value (base rate) | O20: =SUM(C11:C50)-SUM(D11:D50) -> 0
B21: 2.75 | C21: 0.003613254132 | D21: 0.002902057317 | E21: =Cubic_spline(Tenors,FundingSpread,B21) -> 0.001203445819 | F21: 0.9966959943 | G21: 0.000593901484 | H21: =EXP(-Cubic_spline(Tenors,CreditSpread,B20)*B21/LGD) -> 0.9814381216 | I21: 0.01197457436 | J21: 0.03417635774 | K21: -0.02224671751 | L21: 0.01192964023 | N21: Value (adjusted rate) | O21: =-SUMPRODUCT(C11:C50,F11:F50)+SUMPRODUCT(D11:D50,F11:F50) -> -0.0006794127833
B22: 3 | C22: 0.003602210722 | D22: 0.002969774807 | E22: =Cubic_spline(Tenors,FundingSpread,B22) -> 0.001350000035 | F22: 0.9959581901 | G22: 0.0007378041927 | H22: =EXP(-Cubic_spline(Tenors,CreditSpread,B21)*B22/LGD) -> 0.9776048221 | I22: 0.01260701027 | J22: 0.03470262103 | K22: -0.02214151508 | L22: 0.01256110595 | N22: Symmetric FVA (bps) | O22: =(O20-O21)*10000 -> 6.794127833
B23: 3.25 | C23: 0.003590885911 | D23: 0.00304544864 | E23: =Cubic_spline(Tenors,FundingSpread,B23) -> 0.001527812605 | F23: 0.9950469162 | G23: 0.0009112738756 | H23: =EXP(-Cubic_spline(Tenors,CreditSpread,B22)*B23/LGD) -> 0.9732801321 | I23: 0.01315244754 | J23: 0.03497371717 | K23: -0.02184275765 | L23: 0.01313095953
B24: 3.5 | C24: 0.003579272681 | D24: 0.003123009844 | E24: =Cubic_spline(Tenors,FundingSpread,B24) -> 0.001733712038 | F24: 0.9939503809 | G24: 0.001096535261 | H24: =EXP(-Cubic_spline(Tenors,CreditSpread,B23)*B24/LGD) -> 0.9684257594 | I24: 0.01360871038 | J24: 0.03516677438 | K24: -0.02158513226 | L24: 0.01358164212 | N24: Monte Carlo Approach
B25: 3.75 | C25: 0.003567372621 | D25: 0.003200143626 | E25: =Cubic_spline(Tenors,FundingSpread,B25) -> 0.001963074411 | F25: 0.9926655006 | G25: 0.001284880302 | H25: =EXP(-Cubic_spline(Tenors,CreditSpread,B24)*B25/LGD) -> 0.9630513434 | I25: 0.01397593937 | J25: 0.03523596507 | K25: -0.02129344062 | L25: 0.01394252444 | O25: Non-contingent | P25: Contigent
B26: 4 | C26: 0.003555189844 | D26: 0.003276171222 | E26: =Cubic_spline(Tenors,FundingSpread,B26) -> 0.002211276031 | F26: 0.9911938987 | G26: 0.001471601915 | H26: =EXP(-Cubic_spline(Tenors,CreditSpread,B25)*B26/LGD) -> 0.9571903667 | I26: 0.014254958 | J26: 0.03508729146 | K26: -0.0208639928 | L26: 0.01422329865 | N26: FCA | O26: =SUMPRODUCT(G11:G50,J10:J49)*10000 -> 15.46039011 | P26: =SUMPRODUCT(G11:G50,J10:J49,H10:H49)*10000 -> 14.06320069
B27: 4.25 | C27: 0.00354273091 | D27: 0.003350435058 | E27: =Cubic_spline(Tenors,FundingSpread,B27) -> 0.002473693148 | F27: 0.9895418746 | G27: 0.001652024123 | H27: =EXP(-Cubic_spline(Tenors,CreditSpread,B26)*B27/LGD) -> 0.9508896177 | I27: 0.01444725385 | J27: 0.03487445085 | K27: -0.02047837337 | L27: 0.01439607748 | N27: FBA | O27: =SUMPRODUCT(G11:G50,K10:K49)*10000 -> -8.702329078 | P27: =SUMPRODUCT(G11:G50,K10:K49,H10:H49)*10000 -> -7.950462079
B28: 4.5 | C28: 0.003530004797 | D28: 0.003422284396 | E28: =Cubic_spline(Tenors,FundingSpread,B28) -> 0.002745702012 | F28: 0.9877203587 | G28: 0.001821515912 | H28: =EXP(-Cubic_spline(Tenors,CreditSpread,B27)*B28/LGD) -> 0.9442085873 | I28: 0.01455497425 | J28: 0.03447081836 | K28: -0.01997944118 | L28: 0.01449137718 | N28: FVA | O28: =O27+O26 -> 6.75806103 | P28: =P27+P26 -> 6.11273861
B29: 4.75 | C29: 0.003517022862 | D29: 0.003491079609 | E29: =Cubic_spline(Tenors,FundingSpread,B29) -> 0.003022678873 | F29: 0.985744856 | G29: 0.001975502745 | H29: =EXP(-Cubic_spline(Tenors,CreditSpread,B28)*B29/LGD) -> 0.9372187926 | I29: 0.0145809175 | J29: 0.03387514084 | K29: -0.01934876809 | L29: 0.01452637275
B30: 5 | C30: 0.003503798774 | D30: 0.003556198977 | E30: =Cubic_spline(Tenors,FundingSpread,B30) -> 0.003299999982 | F30: 0.9836353795 | G30: 0.002109476473 | H30: =EXP(-Cubic_spline(Tenors,CreditSpread,B29)*B30/LGD) -> 0.9300030764 | I30: 0.0145285173 | J30: 0.0332766206 | K30: -0.01882494258 | L30: 0.01445167801
B31: 5.25 | C31: 0.003490346583 | D31: 0.003617540104 | E31: =Cubic_spline(Tenors,FundingSpread,B31) -> 0.003573576528 | F31: 0.9814136205 | G31: 0.002221758973 | H31: =EXP(-Cubic_spline(Tenors,CreditSpread,B30)*B31/LGD) -> 0.9226549019 | I31: 0.01440132378 | J31: 0.0324370651 | K31: -0.0180848513 | L31: 0.0143522138
B32: 5.5 | C32: 0.003476674344 | D32: 0.003676714881 | E32: =Cubic_spline(Tenors,FundingSpread,B32) -> 0.003841459449 | F32: 0.9790936062 | G32: 0.002320014347 | H32: =EXP(-Cubic_spline(Tenors,CreditSpread,B31)*B32/LGD) -> 0.9152646128 | I32: 0.01420128324 | J32: 0.03161014492 | K32: -0.0174808265 | L32: 0.01412931841
B33: 5.75 | C33: 0.003462788598 | D33: 0.003734131083 | E33: =Cubic_spline(Tenors,FundingSpread,B33) -> 0.00410223462 | F33: 0.9766881698 | G33: 0.002405436402 | H33: =EXP(-Cubic_spline(Tenors,CreditSpread,B32)*B33/LGD) -> 0.907875756 | I33: 0.01392994076 | J33: 0.03060683096 | K33: -0.01674867619 | L33: 0.01385815478
B34: 6 | C34: 0.003448696079 | D34: 0.003789735866 | E34: =Cubic_spline(Tenors,FundingSpread,B34) -> 0.004354487919 | F34: 0.9742114275 | G34: 0.002476742231 | H34: =EXP(-Cubic_spline(Tenors,CreditSpread,B33)*B34/LGD) -> 0.9005172509 | I34: 0.01358890097 | J34: 0.02951229692 | K34: -0.01599033577 | L34: 0.01352196115
B35: 6.25 | C35: 0.003434403713 | D35: 0.003843478446 | E35: =Cubic_spline(Tenors,FundingSpread,B35) -> 0.004596805223 | F35: 0.9716787506 | G35: 0.00253267692 | H35: =EXP(-Cubic_spline(Tenors,CreditSpread,B34)*B35/LGD) -> 0.893215517 | I35: 0.01317982624 | J35: 0.02835360936 | K35: -0.0152471548 | L35: 0.01310645457
B36: 6.5 | C36: 0.003419918606 | D36: 0.003895310128 | E36: =Cubic_spline(Tenors,FundingSpread,B36) -> 0.004827772408 | F36: 0.9691067378 | G36: 0.002572012826 | H36: =EXP(-Cubic_spline(Tenors,CreditSpread,B35)*B36/LGD) -> 0.8859945759 | I36: 0.01270443471 | J36: 0.02706791655 | K36: -0.01444051839 | L36: 0.01262739815
B37: 6.75 | C37: 0.003405248036 | D37: 0.003945184322 | E37: =Cubic_spline(Tenors,FundingSpread,B37) -> 0.005045975351 | F37: 0.9665131896 | G37: 0.00259354814 | H37: =EXP(-Cubic_spline(Tenors,CreditSpread,B36)*B37/LGD) -> 0.8788761195 | I37: 0.01216449843 | J37: 0.02571215786 | K37: -0.01362847269 | L37: 0.01208368517
B38: 7 | C38: 0.003390399449 | D38: 0.003993056568 | E38: =Cubic_spline(Tenors,FundingSpread,B38) -> 0.005249999929 | F38: 0.963917085 | G38: 0.002596104662 | H38: =EXP(-Cubic_spline(Tenors,CreditSpread,B37)*B38/LGD) -> 0.8718795927 | I38: 0.01156184131 | J38: 0.02422520239 | K38: -0.01273508865 | L38: 0.01149011373
B39: 7.25 | C39: 0.003375380179 | D39: 0.004038956089 | E39: =Cubic_spline(Tenors,FundingSpread,B39) -> 0.005438821139 | F39: 0.9613358482 | G39: 0.002581236804 | H39: =EXP(-Cubic_spline(Tenors,CreditSpread,B38)*B39/LGD) -> 0.865022292 | I39: 0.0108982654 | J39: 0.02267883612 | K39: -0.01185208773 | L39: 0.01082674839
B40: 7.5 | C40: 0.003360196585 | D40: 0.004083146044 | E40: =Cubic_spline(Tenors,FundingSpread,B40) -> 0.005612970346 | F40: 0.9587765086 | G40: 0.002559339614 | H40: =EXP(-Cubic_spline(Tenors,CreditSpread,B39)*B40/LGD) -> 0.8583179493 | I40: 0.01017531594 | J40: 0.02104198029 | K40: -0.01094105734 | L40: 0.01010092295
B41: 7.75 | C41: 0.003344854726 | D41: 0.004125706165 | E41: =Cubic_spline(Tenors,FundingSpread,B41) -> 0.00577336795 | F41: 0.9562426295 | G41: 0.002533879084 | H41: =EXP(-Cubic_spline(Tenors,CreditSpread,B40)*B41/LGD) -> 0.8517720036 | I41: 0.0093944645 | J41: 0.01927515092 | K41: -0.009953409372 | L41: 0.009321741549
B42: 8 | C42: 0.003329360615 | D42: 0.004166649676 | E42: =Cubic_spline(Tenors,FundingSpread,B42) -> 0.005920934437 | F42: 0.9537368583 | G42: 0.002505771211 | H42: =EXP(-Cubic_spline(Tenors,CreditSpread,B41)*B42/LGD) -> 0.8453856781 | I42: 0.008557175439 | J42: 0.01746694209 | K42: -0.008975577193 | L42: 0.008491364899
B43: 8.25 | C43: 0.003313720225 | D43: 0.004205986876 | E43: =Cubic_spline(Tenors,FundingSpread,B43) -> 0.00605659003 | F43: 0.9512609414 | G43: 0.002475916868 | H43: =EXP(-Cubic_spline(Tenors,CreditSpread,B42)*B43/LGD) -> 0.8391574968 | I43: 0.007664908788 | J43: 0.0155504018 | K43: -0.007944642977 | L43: 0.007605758825
B44: 8.5 | C44: 0.003297939424 | D44: 0.004243745738 | E44: =Cubic_spline(Tenors,FundingSpread,B44) -> 0.006181255643 | F44: 0.9488157291 | G44: 0.002445212273 | H44: =EXP(-Cubic_spline(Tenors,CreditSpread,B43)*B44/LGD) -> 0.8330834364 | I44: 0.006719102473 | J44: 0.01357066659 | K44: -0.006911201302 | L44: 0.006659465291
B45: 8.75 | C45: 0.003282024104 | D45: 0.004279920535 | E45: =Cubic_spline(Tenors,FundingSpread,B45) -> 0.006295851499 | F45: 0.9464011979 | G45: 0.002414531262 | H45: =EXP(-Cubic_spline(Tenors,CreditSpread,B44)*B45/LGD) -> 0.8271569281 | I45: 0.005721206042 | J45: 0.0115022659 | K45: -0.005835000792 | L45: 0.005667265107
B46: 9 | C46: 0.003265980046 | D46: 0.004314540271 | E46: =Cubic_spline(Tenors,FundingSpread,B46) -> 0.006401298062 | F46: 0.9440164543 | G46: 0.002384743532 | H46: =EXP(-Cubic_spline(Tenors,CreditSpread,B45)*B46/LGD) -> 0.8213690422 | I46: 0.004672645817 | J46: 0.00935325244 | K46: -0.004727342488 | L46: 0.004625909951
B47: 9.25 | C47: 0.003249812989 | D47: 0.004347617287 | E47: =Cubic_spline(Tenors,FundingSpread,B47) -> 0.006498515657 | F47: 0.9416597494 | G47: 0.002356704894 | H47: =EXP(-Cubic_spline(Tenors,CreditSpread,B46)*B47/LGD) -> 0.8157084966 | I47: 0.003574841519 | J47: 0.007122852527 | K47: -0.00358508749 | L47: 0.003537765038
B48: 9.5 | C48: 0.003233528607 | D48: 0.004379167831 | E48: =Cubic_spline(Tenors,FundingSpread,B48) -> 0.006588424985 | F48: 0.9393284844 | G48: 0.002331265082 | H48: =EXP(-Cubic_spline(Tenors,CreditSpread,B47)*B48/LGD) -> 0.8101617844 | I48: 0.002429202295 | J48: 0.004823938804 | K48: -0.00242282111 | L48: 0.002401117694
B49: 9.75 | C49: 0.003217132516 | D49: 0.004409208553 | E49: =Cubic_spline(Tenors,FundingSpread,B49) -> 0.006671946319 | F49: 0.9370192276 | G49: 0.002309256789 | H49: =EXP(-Cubic_spline(Tenors,CreditSpread,B48)*B49/LGD) -> 0.8047132004 | I49: 0.001237126258 | J49: 0.00245061012 | K49: -0.001229318405 | L49: 0.001221291714
B50: 10 | C50: 0.003200630267 | D50: 0.004437756525 | E50: =Cubic_spline(Tenors,FundingSpread,B50) -> 0.006750000175 | F50: 0.934727719 | G50: 0.002291508585 | H50: =EXP(-Cubic_spline(Tenors,CreditSpread,B49)*B50/LGD) -> 0.7993449446 | I50: 0 | J50: 0 | K50: 0 | L50: 0

Sheet 18.2
C9: FS (B) | D9: Fwd FS (B) | E9: FS (L) | F9: Fwd FS (L) | G9: Survival | H9: EPE | I9: ENE | J9: EPE+ENE | L9: Curves
B10: 0 | C10: =Cubic_spline(Tenors,FundingSpread,B10) -> 0.0005808419228 | E10: =Cubic_spline(Tenors,FundingSpreadLending,B10) -> 0.0002904209614 | G10: 1 | H10: 6.649662525 | I10: 0 | J10: =H10+I10 -> 6.649662525 | N10: Funding spread
B11: 0.25 | C11: =Cubic_spline(Tenors,FundingSpread,B11) -> 0.0006374423153 | D11: =EXP(-B10*C10)-EXP(-B11*C11) -> 0.0001593478816 | E11: =Cubic_spline(Tenors,FundingSpreadLending,B11) -> 0.0003187211577 | F11: =EXP(-B10*E10)-EXP(-B11*E11) -> 7.967711503e-05 | G11: =EXP(-Cubic_spline(Tenors,CreditSpread,B10)*B11/LGD) -> 0.9998633058 | H11: 7.117959015 | I11: -0.4467161568 | J11: =H11+I11 -> 6.671242858 | L11: Tenor | M11: Cntrprty CDS | N11: Borrowing | O11: Lending
B12: 0.5 | C12: =Cubic_spline(Tenors,FundingSpread,B12) -> 0.0006817762714 | D12: 0.0001814821584 | E12: =Cubic_spline(Tenors,FundingSpreadLending,B12) -> 0.0003408881357 | F12: =EXP(-B11*E11)-EXP(-B12*E12) -> 9.075242807e-05 | G12: =EXP(-Cubic_spline(Tenors,CreditSpread,B11)*B12/LGD) -> 0.9994084451 | H12: 7.733050393 | I12: -0.957003494 | J12: 6.776046899 | L12: 1 | M12: 0.0018 | N12: 0.00075 | O12: =N12/2 -> 0.000375
B13: 0.75 | C13: =Cubic_spline(Tenors,FundingSpread,B13) -> 0.0007179325451 | D13: 0.000197474431 | E13: =Cubic_spline(Tenors,FundingSpreadLending,B13) -> 0.0003589662725 | F13: 9.875892358e-05 | G13: =EXP(-Cubic_spline(Tenors,CreditSpread,B12)*B13/LGD) -> 0.998650842 | H13: 8.328723723 | I13: -1.296368771 | J13: 7.032354952 | L13: 3 | M13: 0.005 | N13: 0.00135 | O13: =N13/2 -> 0.000675
B14: 1 | C14: =Cubic_spline(Tenors,FundingSpread,B14) -> 0.0007500000065 | D14: 0.0002114143559 | E14: =Cubic_spline(Tenors,FundingSpreadLending,B14) -> 0.0003750000033 | F14: 0.0001057412329 | G14: =EXP(-Cubic_spline(Tenors,CreditSpread,B13)*B14/LGD) -> 0.9975995041 | H14: 8.887697976 | I14: -1.500092662 | J14: 7.387605313 | L14: 5 | M14: 0.0092 | N14: 0.0033 | O14: 0.00165
B15: 1.25 | C15: =Cubic_spline(Tenors,FundingSpread,B15) -> 0.000782067468 | D15: 0.0002273878283 | E15: =Cubic_spline(Tenors,FundingSpreadLending,B15) -> 0.000391033734 | F15: 0.0001137430285 | G15: =EXP(-Cubic_spline(Tenors,CreditSpread,B14)*B15/LGD) -> 0.9962570225 | H15: 9.514604844 | I15: -1.619728634 | J15: 7.89487621 | L15: 7 | M15: 0.012 | N15: 0.00525 | O15: 0.002625
B16: 1.5 | C16: =Cubic_spline(Tenors,FundingSpread,B16) -> 0.0008182237416 | D16: 0.000249476089 | E16: =Cubic_spline(Tenors,FundingSpreadLending,B16) -> 0.0004091118708 | F16: 0.0001248068226 | G16: =EXP(-Cubic_spline(Tenors,CreditSpread,B15)*B16/LGD) -> 0.994619599 | H16: 9.717835282 | I16: -1.742702813 | J16: 7.975132469 | L16: 10 | M16: 0.0135 | N16: 0.00675 | O16: 0.003375
B17: 1.75 | C17: =Cubic_spline(Tenors,FundingSpread,B17) -> 0.0008625576977 | D17: 0.0002817545411 | E17: =Cubic_spline(Tenors,FundingSpreadLending,B17) -> 0.0004312788489 | F17: 0.0001409736918 | G17: =EXP(-Cubic_spline(Tenors,CreditSpread,B16)*B17/LGD) -> 0.992677105 | H17: 9.850092818 | I17: -1.761434364 | J17: 8.088658454 | L17: 20 | M17: 0.0142 | N17: 0.00735 | O17: 0.003675
B18: 2 | C18: =Cubic_spline(Tenors,FundingSpread,B18) -> 0.000919158032 | D18: 0.0003282901109 | E18: =Cubic_spline(Tenors,FundingSpreadLending,B18) -> 0.000459579016 | F18: 0.0001642824933 | G18: =EXP(-Cubic_spline(Tenors,CreditSpread,B17)*B18/LGD) -> 0.9904131695 | H18: 9.791783334 | I18: -1.819146564 | J18: 7.97263677 | L18: LGD | M18: 0.6
B19: 2.25 | C19: =Cubic_spline(Tenors,FundingSpread,B19) -> 0.000992113615 | D19: 0.0003931386079 | E19: =Cubic_spline(Tenors,FundingSpreadLending,B19) -> 0.0004960568075 | F19: 0.0001967694422 | G19: =EXP(-Cubic_spline(Tenors,CreditSpread,B18)*B19/LGD) -> 0.987805297 | H19: 9.756650674 | I19: -1.763737628 | J19: 7.992913045
B20: 2.5 | C20: =Cubic_spline(Tenors,FundingSpread,B20) -> 0.001085513288 | D20: 0.0004803382345 | E20: =Cubic_spline(Tenors,FundingSpreadLending,B20) -> 0.0005427566439 | F20: 0.0002404662706 | G20: =EXP(-Cubic_spline(Tenors,CreditSpread,B19)*B20/LGD) -> 0.9848250255 | H20: 9.681596636 | I20: -1.762243433 | J20: 7.919353204 | L20: FVA calculations
B21: 2.75 | C21: =Cubic_spline(Tenors,FundingSpread,B21) -> 0.001203445819 | D21: 0.000593901484 | E21: =Cubic_spline(Tenors,FundingSpreadLending,B21) -> 0.0006017229094 | F21: 0.0002973982284 | G21: =EXP(-Cubic_spline(Tenors,CreditSpread,B20)*B21/LGD) -> 0.9814381216 | H21: 9.497530296 | I21: -1.689192493 | J21: 7.808337803 | M21: Symmetric | N21: Asymmetric
B22: 3 | C22: =Cubic_spline(Tenors,FundingSpread,B22) -> 0.001350000035 | D22: 0.0007378041927 | E22: =Cubic_spline(Tenors,FundingSpreadLending,B22) -> 0.0006750000175 | F22: 0.0003695814463 | G22: =EXP(-Cubic_spline(Tenors,CreditSpread,B21)*B22/LGD) -> 0.9776048221 | H22: 9.210494688 | I22: -1.660596018 | J22: 7.54989867 | L22: FCA | M22: =SUMPRODUCT(D11:D38,H11:H38)*1000000 -> 181984.1693 | N22: =SUMPRODUCT(D11:D38,H11:H38)*1000000 -> 181984.1693
B23: 3.25 | C23: =Cubic_spline(Tenors,FundingSpread,B23) -> 0.001527812605 | D23: 0.0009112738756 | E23: =Cubic_spline(Tenors,FundingSpreadLending,B23) -> 0.0007639063025 | F23: 0.0004566650203 | G23: =EXP(-Cubic_spline(Tenors,CreditSpread,B22)*B23/LGD) -> 0.9732801321 | H23: 8.880249057 | I23: -1.585447018 | J23: 7.294802039 | L23: FBA | M23: =SUMPRODUCT(D11:D38,I11:I38)*1000000 -> -27384.06622 | N23: =SUMPRODUCT(F11:F38,I11:I38)*1000000 -> -13769.29238
B24: 3.5 | C24: =Cubic_spline(Tenors,FundingSpread,B24) -> 0.001733712038 | D24: 0.001096535261 | E24: =Cubic_spline(Tenors,FundingSpreadLending,B24) -> 0.0008668560192 | F24: 0.000549782009 | G24: =EXP(-Cubic_spline(Tenors,CreditSpread,B23)*B24/LGD) -> 0.9684257594 | H24: 8.535859241 | I24: -1.485124806 | J24: 7.050734434 | L24: FVA | M24: =M23+M22 -> 154600.1031 | N24: =N23+N22 -> 168214.877
B25: 3.75 | C25: =Cubic_spline(Tenors,FundingSpread,B25) -> 0.001963074411 | D25: 0.001284880302 | E25: =Cubic_spline(Tenors,FundingSpreadLending,B25) -> 0.0009815372055 | F25: 0.000644600658 | G25: =EXP(-Cubic_spline(Tenors,CreditSpread,B24)*B25/LGD) -> 0.9630513434 | H25: 8.084349265 | I25: -1.390229237 | J25: 6.694120028
B26: 4 | C26: =Cubic_spline(Tenors,FundingSpread,B26) -> 0.002211276031 | D26: 0.001471601915 | E26: =Cubic_spline(Tenors,FundingSpreadLending,B26) -> 0.001105638015 | F26: 0.0007387881685 | G26: =EXP(-Cubic_spline(Tenors,CreditSpread,B25)*B26/LGD) -> 0.9571903667 | H26: 7.560412385 | I26: -1.292248106 | J26: 6.268164279
B27: 4.25 | C27: =Cubic_spline(Tenors,FundingSpread,B27) -> 0.002473693148 | D27: 0.001652024123 | E27: =Cubic_spline(Tenors,FundingSpreadLending,B27) -> 0.001236846574 | F27: 0.0008300192254 | G27: =EXP(-Cubic_spline(Tenors,CreditSpread,B26)*B27/LGD) -> 0.9508896177 | H27: 7.036735354 | I27: -1.178490035 | J27: 5.858245319
B28: 4.5 | C28: =Cubic_spline(Tenors,FundingSpread,B28) -> 0.002745702012 | D28: 0.001821515912 | E28: =Cubic_spline(Tenors,FundingSpreadLending,B28) -> 0.001372851006 | F28: 0.0009159797697 | G28: =EXP(-Cubic_spline(Tenors,CreditSpread,B27)*B28/LGD) -> 0.9442085873 | H28: 6.49073714 | I28: -1.049472584 | J28: 5.441264556
B29: 4.75 | C29: =Cubic_spline(Tenors,FundingSpread,B29) -> 0.003022678873 | D29: 0.001975502745 | E29: =Cubic_spline(Tenors,FundingSpreadLending,B29) -> 0.001511339437 | F29: 0.0009943698693 | G29: =EXP(-Cubic_spline(Tenors,CreditSpread,B28)*B29/LGD) -> 0.9372187926 | H29: 5.849492643 | I29: -0.9172149874 | J29: 4.932277655
B30: 5 | C30: =Cubic_spline(Tenors,FundingSpread,B30) -> 0.003299999982 | D30: 0.002109476473 | E30: =Cubic_spline(Tenors,FundingSpreadLending,B30) -> 0.001649999991 | F30: 0.001062906256 | G30: =EXP(-Cubic_spline(Tenors,CreditSpread,B29)*B30/LGD) -> 0.9300030764 | H30: 5.075478203 | I30: -0.7845770497 | J30: 4.290901153
B31: 5.25 | C31: =Cubic_spline(Tenors,FundingSpread,B31) -> 0.003573576528 | D31: 0.002221758973 | E31: =Cubic_spline(Tenors,FundingSpreadLending,B31) -> 0.001786788264 | F31: 0.001120715355 | G31: =EXP(-Cubic_spline(Tenors,CreditSpread,B30)*B31/LGD) -> 0.9226549019 | H31: 4.442693142 | I31: -0.6414063574 | J31: 3.801286785
B32: 5.5 | C32: =Cubic_spline(Tenors,FundingSpread,B32) -> 0.003841459449 | D32: 0.002320014347 | E32: =Cubic_spline(Tenors,FundingSpreadLending,B32) -> 0.001920729724 | F32: 0.00117163281 | G32: =EXP(-Cubic_spline(Tenors,CreditSpread,B31)*B32/LGD) -> 0.9152646128 | H32: 3.847349094 | I32: -0.5564545116 | J32: 3.290894582
B33: 5.75 | C33: =Cubic_spline(Tenors,FundingSpread,B33) -> 0.00410223462 | D33: 0.002405436402 | E33: =Cubic_spline(Tenors,FundingSpreadLending,B33) -> 0.00205111731 | F33: 0.001216238553 | G33: =EXP(-Cubic_spline(Tenors,CreditSpread,B32)*B33/LGD) -> 0.907875756 | H33: 3.783090588 | I33: -0.4731794685 | J33: 3.30991112
B34: 6 | C34: =Cubic_spline(Tenors,FundingSpread,B34) -> 0.004354487919 | D34: 0.002476742231 | E34: =Cubic_spline(Tenors,FundingSpreadLending,B34) -> 0.00217724396 | F34: 0.001253858244 | G34: =EXP(-Cubic_spline(Tenors,CreditSpread,B33)*B34/LGD) -> 0.9005172509 | H34: 3.142090541 | I34: -0.3914541724 | J34: 2.750636368
B35: 6.25 | C35: =Cubic_spline(Tenors,FundingSpread,B35) -> 0.004596805223 | D35: 0.00253267692 | E35: =Cubic_spline(Tenors,FundingSpreadLending,B35) -> 0.002298402611 | F35: 0.001283824691 | G35: =EXP(-Cubic_spline(Tenors,CreditSpread,B34)*B35/LGD) -> 0.893215517 | H35: 3.036014746 | I35: -0.3078333732 | J35: 2.728181373
B36: 6.5 | C36: =Cubic_spline(Tenors,FundingSpread,B36) -> 0.004827772408 | D36: 0.002572012826 | E36: =Cubic_spline(Tenors,FundingSpreadLending,B36) -> 0.002413886204 | F36: 0.001305477705 | G36: =EXP(-Cubic_spline(Tenors,CreditSpread,B35)*B36/LGD) -> 0.8859945759 | H36: 2.416048718 | I36: -0.2299908404 | J36: 2.186057878
B37: 6.75 | C37: =Cubic_spline(Tenors,FundingSpread,B37) -> 0.005045975351 | D37: 0.00259354814 | E37: =Cubic_spline(Tenors,FundingSpreadLending,B37) -> 0.002522987675 | F37: 0.00131816377 | G37: =EXP(-Cubic_spline(Tenors,CreditSpread,B36)*B37/LGD) -> 0.8788761195 | H37: 2.29891286 | I37: -0.151299111 | J37: 2.147613749
B38: 7 | C38: =Cubic_spline(Tenors,FundingSpread,B38) -> 0.005249999929 | D38: 0.002596104662 | E38: =Cubic_spline(Tenors,FundingSpreadLending,B38) -> 0.002624999965 | F38: 0.00132123551 | G38: =EXP(-Cubic_spline(Tenors,CreditSpread,B37)*B38/LGD) -> 0.8718795927 | H38: 1.618889408 | I38: -0.08748297154 | J38: 1.531406437

Sheet 18.3
C9: FS (B) | D9: Fwd FS (B) | E9: FS (L) | F9: Fwd FS (L) | G9: Trade EPE | H9: Trade ENE | I9: Porfolio EPE | J9: Portfolio ENE | K9: Total EPE | L9: Total ENE | N9: Curves
B10: 0 | C10: =Cubic_spline(Tenors,FundingSpread,B10) -> 0.0005808419228 | E10: =Cubic_spline(Tenors,FundingSpreadLending,B10) -> 0.0005808419228 | G10: =SUMIF(OFFSET(PortfolioData!$B$1004,0,MATCH(B10,PortfolioData!$C$1:$AE$1,0),1000,1),">0")/1000 -> 0 | H10: =SUMIF(OFFSET(PortfolioData!$B$1004,0,MATCH(B10,PortfolioData!$C$1:$AE$1,0),1000,1),"<0")/1000 -> -1.533736822 | I10: =SUMIF(OFFSET(PortfolioData!$B$2,0,MATCH(B10,PortfolioData!$C$1:$AE$1,0),1000,1),">0")/1000 -> 6.649662525 | J10: =SUMIF(OFFSET(PortfolioData!$B$2,0,MATCH(B10,PortfolioData!$C$1:$AE$1,0),1000,1),"<0")/1000 -> 0 | K10: =SUMIF(OFFSET(PortfolioData!$B$2006,0,MATCH(B10,PortfolioData!$C$1:$AE$1,0),1000,1),">0")/1000 -> 5.115925703 | L10: =SUMIF(OFFSET(PortfolioData!$B$2006,0,MATCH(B10,PortfolioData!$C$1:$AE$1,0),1000,1),"<0")/1000 -> 0 | P10: Funding spread
B11: 0.25 | C11: =Cubic_spline(Tenors,FundingSpread,B11) -> 0.0006374423153 | D11: =EXP(-B10*C10)-EXP(-B11*C11) -> 0.0001593478816 | E11: =Cubic_spline(Tenors,FundingSpreadLending,B11) -> 0.0006374423153 | F11: =EXP(-B10*E10)-EXP(-B11*E11) -> 0.0001593478816 | G11: =SUMIF(OFFSET(PortfolioData!$B$1004,0,MATCH(B11,PortfolioData!$C$1:$AE$1,0),1000,1),">0")/1000 -> 1.185258992 | H11: =SUMIF(OFFSET(PortfolioData!$B$1004,0,MATCH(B11,PortfolioData!$C$1:$AE$1,0),1000,1),"<0")/1000 -> -1.165327116 | I11: =SUMIF(OFFSET(PortfolioData!$B$2,0,MATCH(B11,PortfolioData!$C$1:$AE$1,0),1000,1),">0")/1000 -> 7.117959015 | J11: =SUMIF(OFFSET(PortfolioData!$B$2,0,MATCH(B11,PortfolioData!$C$1:$AE$1,0),1000,1),"<0")/1000 -> -0.4467161568 | K11: =SUMIF(OFFSET(PortfolioData!$B$2006,0,MATCH(B11,PortfolioData!$C$1:$AE$1,0),1000,1),">0")/1000 -> 7.223349329 | L11: =SUMIF(OFFSET(PortfolioData!$B$2006,0,MATCH(B11,PortfolioData!$C$1:$AE$1,0),1000,1),"<0")/1000 -> -0.5321745945 | N11: Tenor | O11: Cntrprty CDS | P11: Borrowing | Q11: Lending
B12: 0.5 | C12: =Cubic_spline(Tenors,FundingSpread,B12) -> 0.0006817762714 | D12: 0.0001814821584 | E12: =Cubic_spline(Tenors,FundingSpreadLending,B12) -> 0.0006817762714 | F12: =EXP(-B11*E11)-EXP(-B12*E12) -> 0.0001814821584 | G12: =SUMIF(OFFSET(PortfolioData!$B$1004,0,MATCH(B12,PortfolioData!$C$1:$AE$1,0),1000,1),">0")/1000 -> 1.674327292 | H12: =SUMIF(OFFSET(PortfolioData!$B$1004,0,MATCH(B12,PortfolioData!$C$1:$AE$1,0),1000,1),"<0")/1000 -> -1.609788025 | I12: =SUMIF(OFFSET(PortfolioData!$B$2,0,MATCH(B12,PortfolioData!$C$1:$AE$1,0),1000,1),">0")/1000 -> 7.733050393 | J12: =SUMIF(OFFSET(PortfolioData!$B$2,0,MATCH(B12,PortfolioData!$C$1:$AE$1,0),1000,1),"<0")/1000 -> -0.957003494 | K12: =SUMIF(OFFSET(PortfolioData!$B$2006,0,MATCH(B12,PortfolioData!$C$1:$AE$1,0),1000,1),">0")/1000 -> 7.985005069 | L12: =SUMIF(OFFSET(PortfolioData!$B$2006,0,MATCH(B12,PortfolioData!$C$1:$AE$1,0),1000,1),"<0")/1000 -> -1.144418903 | N12: 1 | O12: 0.0018 | P12: 0.00075 | Q12: =P12 -> 0.00075
B13: 0.75 | C13: =Cubic_spline(Tenors,FundingSpread,B13) -> 0.0007179325451 | D13: 0.000197474431 | E13: =Cubic_spline(Tenors,FundingSpreadLending,B13) -> 0.0007179325451 | F13: 0.000197474431 | G13: =SUMIF(OFFSET(PortfolioData!$B$1004,0,MATCH(B13,PortfolioData!$C$1:$AE$1,0),1000,1),">0")/1000 -> 2.07356702 | H13: =SUMIF(OFFSET(PortfolioData!$B$1004,0,MATCH(B13,PortfolioData!$C$1:$AE$1,0),1000,1),"<0")/1000 -> -1.973583295 | I13: =SUMIF(OFFSET(PortfolioData!$B$2,0,MATCH(B13,PortfolioData!$C$1:$AE$1,0),1000,1),">0")/1000 -> 8.328723723 | J13: =SUMIF(OFFSET(PortfolioData!$B$2,0,MATCH(B13,PortfolioData!$C$1:$AE$1,0),1000,1),"<0")/1000 -> -1.296368771 | K13: =SUMIF(OFFSET(PortfolioData!$B$2006,0,MATCH(B13,PortfolioData!$C$1:$AE$1,0),1000,1),">0")/1000 -> 8.642842922 | L13: =SUMIF(OFFSET(PortfolioData!$B$2006,0,MATCH(B13,PortfolioData!$C$1:$AE$1,0),1000,1),"<0")/1000 -> -1.510504246 | N13: 3 | O13: 0.005 | P13: 0.00135 | Q13: 0.00135
B14: 1 | C14: =Cubic_spline(Tenors,FundingSpread,B14) -> 0.0007500000065 | D14: 0.0002114143559 | E14: =Cubic_spline(Tenors,FundingSpreadLending,B14) -> 0.0007500000065 | F14: 0.0002114143559 | G14: =SUMIF(OFFSET(PortfolioData!$B$1004,0,MATCH(B14,PortfolioData!$C$1:$AE$1,0),1000,1),">0")/1000 -> 2.413601324 | H14: =SUMIF(OFFSET(PortfolioData!$B$1004,0,MATCH(B14,PortfolioData!$C$1:$AE$1,0),1000,1),"<0")/1000 -> -2.181498842 | I14: =SUMIF(OFFSET(PortfolioData!$B$2,0,MATCH(B14,PortfolioData!$C$1:$AE$1,0),1000,1),">0")/1000 -> 8.887697976 | J14: =SUMIF(OFFSET(PortfolioData!$B$2,0,MATCH(B14,PortfolioData!$C$1:$AE$1,0),1000,1),"<0")/1000 -> -1.500092662 | K14: =SUMIF(OFFSET(PortfolioData!$B$2006,0,MATCH(B14,PortfolioData!$C$1:$AE$1,0),1000,1),">0")/1000 -> 9.302367127 | L14: =SUMIF(OFFSET(PortfolioData!$B$2006,0,MATCH(B14,PortfolioData!$C$1:$AE$1,0),1000,1),"<0")/1000 -> -1.682659332 | N14: 5 | O14: 0.0092 | P14: 0.0033 | Q14: 0.0033
B15: 1.25 | C15: =Cubic_spline(Tenors,FundingSpread,B15) -> 0.000782067468 | D15: 0.0002273878283 | E15: =Cubic_spline(Tenors,FundingSpreadLending,B15) -> 0.000782067468 | F15: 0.0002273878283 | G15: =SUMIF(OFFSET(PortfolioData!$B$1004,0,MATCH(B15,PortfolioData!$C$1:$AE$1,0),1000,1),">0")/1000 -> 2.678937895 | H15: =SUMIF(OFFSET(PortfolioData!$B$1004,0,MATCH(B15,PortfolioData!$C$1:$AE$1,0),1000,1),"<0")/1000 -> -2.53040584 | I15: =SUMIF(OFFSET(PortfolioData!$B$2,0,MATCH(B15,PortfolioData!$C$1:$AE$1,0),1000,1),">0")/1000 -> 9.514604844 | J15: =SUMIF(OFFSET(PortfolioData!$B$2,0,MATCH(B15,PortfolioData!$C$1:$AE$1,0),1000,1),"<0")/1000 -> -1.619728634 | K15: =SUMIF(OFFSET(PortfolioData!$B$2006,0,MATCH(B15,PortfolioData!$C$1:$AE$1,0),1000,1),">0")/1000 -> 9.960481733 | L15: =SUMIF(OFFSET(PortfolioData!$B$2006,0,MATCH(B15,PortfolioData!$C$1:$AE$1,0),1000,1),"<0")/1000 -> -1.917073468 | N15: 7 | O15: 0.012 | P15: 0.00525 | Q15: 0.00525
B16: 1.5 | C16: =Cubic_spline(Tenors,FundingSpread,B16) -> 0.0008182237416 | D16: 0.000249476089 | E16: =Cubic_spline(Tenors,FundingSpreadLending,B16) -> 0.0008182237416 | F16: 0.000249476089 | G16: =SUMIF(OFFSET(PortfolioData!$B$1004,0,MATCH(B16,PortfolioData!$C$1:$AE$1,0),1000,1),">0")/1000 -> 2.824189352 | H16: =SUMIF(OFFSET(PortfolioData!$B$1004,0,MATCH(B16,PortfolioData!$C$1:$AE$1,0),1000,1),"<0")/1000 -> -2.85621094 | I16: =SUMIF(OFFSET(PortfolioData!$B$2,0,MATCH(B16,PortfolioData!$C$1:$AE$1,0),1000,1),">0")/1000 -> 9.717835282 | J16: =SUMIF(OFFSET(PortfolioData!$B$2,0,MATCH(B16,PortfolioData!$C$1:$AE$1,0),1000,1),"<0")/1000 -> -1.742702813 | K16: =SUMIF(OFFSET(PortfolioData!$B$2006,0,MATCH(B16,PortfolioData!$C$1:$AE$1,0),1000,1),">0")/1000 -> 10.06724578 | L16: =SUMIF(OFFSET(PortfolioData!$B$2006,0,MATCH(B16,PortfolioData!$C$1:$AE$1,0),1000,1),"<0")/1000 -> -2.1241349 | N16: 10 | O16: 0.0135 | P16: 0.00675 | Q16: 0.00675
B17: 1.75 | C17: =Cubic_spline(Tenors,FundingSpread,B17) -> 0.0008625576977 | D17: 0.0002817545411 | E17: =Cubic_spline(Tenors,FundingSpreadLending,B17) -> 0.0008625576977 | F17: 0.0002817545411 | G17: =SUMIF(OFFSET(PortfolioData!$B$1004,0,MATCH(B17,PortfolioData!$C$1:$AE$1,0),1000,1),">0")/1000 -> 3.01826603 | H17: =SUMIF(OFFSET(PortfolioData!$B$1004,0,MATCH(B17,PortfolioData!$C$1:$AE$1,0),1000,1),"<0")/1000 -> -3.050543416 | I17: =SUMIF(OFFSET(PortfolioData!$B$2,0,MATCH(B17,PortfolioData!$C$1:$AE$1,0),1000,1),">0")/1000 -> 9.850092818 | J17: =SUMIF(OFFSET(PortfolioData!$B$2,0,MATCH(B17,PortfolioData!$C$1:$AE$1,0),1000,1),"<0")/1000 -> -1.761434364 | K17: =SUMIF(OFFSET(PortfolioData!$B$2006,0,MATCH(B17,PortfolioData!$C$1:$AE$1,0),1000,1),">0")/1000 -> 10.31078088 | L17: =SUMIF(OFFSET(PortfolioData!$B$2006,0,MATCH(B17,PortfolioData!$C$1:$AE$1,0),1000,1),"<0")/1000 -> -2.254399814 | N17: 20 | O17: 0.0142 | P17: 0.00735 | Q17: 0.00735
B18: 2 | C18: =Cubic_spline(Tenors,FundingSpread,B18) -> 0.000919158032 | D18: 0.0003282901109 | E18: =Cubic_spline(Tenors,FundingSpreadLending,B18) -> 0.000919158032 | F18: 0.0003282901109 | G18: =SUMIF(OFFSET(PortfolioData!$B$1004,0,MATCH(B18,PortfolioData!$C$1:$AE$1,0),1000,1),">0")/1000 -> 3.175698878 | H18: =SUMIF(OFFSET(PortfolioData!$B$1004,0,MATCH(B18,PortfolioData!$C$1:$AE$1,0),1000,1),"<0")/1000 -> -3.399052921 | I18: =SUMIF(OFFSET(PortfolioData!$B$2,0,MATCH(B18,PortfolioData!$C$1:$AE$1,0),1000,1),">0")/1000 -> 9.791783334 | J18: =SUMIF(OFFSET(PortfolioData!$B$2,0,MATCH(B18,PortfolioData!$C$1:$AE$1,0),1000,1),"<0")/1000 -> -1.819146564 | K18: =SUMIF(OFFSET(PortfolioData!$B$2006,0,MATCH(B18,PortfolioData!$C$1:$AE$1,0),1000,1),">0")/1000 -> 10.18697448 | L18: =SUMIF(OFFSET(PortfolioData!$B$2006,0,MATCH(B18,PortfolioData!$C$1:$AE$1,0),1000,1),"<0")/1000 -> -2.437691748 | N18: LGD | O18: 0.6
B19: 2.25 | C19: =Cubic_spline(Tenors,FundingSpread,B19) -> 0.000992113615 | D19: 0.0003931386079 | E19: =Cubic_spline(Tenors,FundingSpreadLending,B19) -> 0.000992113615 | F19: 0.0003931386079 | G19: =SUMIF(OFFSET(PortfolioData!$B$1004,0,MATCH(B19,PortfolioData!$C$1:$AE$1,0),1000,1),">0")/1000 -> 3.392840136 | H19: =SUMIF(OFFSET(PortfolioData!$B$1004,0,MATCH(B19,PortfolioData!$C$1:$AE$1,0),1000,1),"<0")/1000 -> -3.715046825 | I19: =SUMIF(OFFSET(PortfolioData!$B$2,0,MATCH(B19,PortfolioData!$C$1:$AE$1,0),1000,1),">0")/1000 -> 9.756650674 | J19: =SUMIF(OFFSET(PortfolioData!$B$2,0,MATCH(B19,PortfolioData!$C$1:$AE$1,0),1000,1),"<0")/1000 -> -1.763737628 | K19: =SUMIF(OFFSET(PortfolioData!$B$2006,0,MATCH(B19,PortfolioData!$C$1:$AE$1,0),1000,1),">0")/1000 -> 10.1881696 | L19: =SUMIF(OFFSET(PortfolioData!$B$2006,0,MATCH(B19,PortfolioData!$C$1:$AE$1,0),1000,1),"<0")/1000 -> -2.517463248
B20: 2.5 | C20: =Cubic_spline(Tenors,FundingSpread,B20) -> 0.001085513288 | D20: 0.0004803382345 | E20: =Cubic_spline(Tenors,FundingSpreadLending,B20) -> 0.001085513288 | F20: 0.0004803382345 | G20: =SUMIF(OFFSET(PortfolioData!$B$1004,0,MATCH(B20,PortfolioData!$C$1:$AE$1,0),1000,1),">0")/1000 -> 3.490749076 | H20: =SUMIF(OFFSET(PortfolioData!$B$1004,0,MATCH(B20,PortfolioData!$C$1:$AE$1,0),1000,1),"<0")/1000 -> -3.995640999 | I20: =SUMIF(OFFSET(PortfolioData!$B$2,0,MATCH(B20,PortfolioData!$C$1:$AE$1,0),1000,1),">0")/1000 -> 9.681596636 | J20: =SUMIF(OFFSET(PortfolioData!$B$2,0,MATCH(B20,PortfolioData!$C$1:$AE$1,0),1000,1),"<0")/1000 -> -1.762243433 | K20: =SUMIF(OFFSET(PortfolioData!$B$2006,0,MATCH(B20,PortfolioData!$C$1:$AE$1,0),1000,1),">0")/1000 -> 10.14575642 | L20: =SUMIF(OFFSET(PortfolioData!$B$2006,0,MATCH(B20,PortfolioData!$C$1:$AE$1,0),1000,1),"<0")/1000 -> -2.731295139 | N20: FVA calculations
B21: 2.75 | C21: =Cubic_spline(Tenors,FundingSpread,B21) -> 0.001203445819 | D21: 0.000593901484 | E21: =Cubic_spline(Tenors,FundingSpreadLending,B21) -> 0.001203445819 | F21: 0.000593901484 | G21: =SUMIF(OFFSET(PortfolioData!$B$1004,0,MATCH(B21,PortfolioData!$C$1:$AE$1,0),1000,1),">0")/1000 -> 3.632217513 | H21: =SUMIF(OFFSET(PortfolioData!$B$1004,0,MATCH(B21,PortfolioData!$C$1:$AE$1,0),1000,1),"<0")/1000 -> -4.271892025 | I21: =SUMIF(OFFSET(PortfolioData!$B$2,0,MATCH(B21,PortfolioData!$C$1:$AE$1,0),1000,1),">0")/1000 -> 9.497530296 | J21: =SUMIF(OFFSET(PortfolioData!$B$2,0,MATCH(B21,PortfolioData!$C$1:$AE$1,0),1000,1),"<0")/1000 -> -1.689192493 | K21: =SUMIF(OFFSET(PortfolioData!$B$2006,0,MATCH(B21,PortfolioData!$C$1:$AE$1,0),1000,1),">0")/1000 -> 10.01658703 | L21: =SUMIF(OFFSET(PortfolioData!$B$2006,0,MATCH(B21,PortfolioData!$C$1:$AE$1,0),1000,1),"<0")/1000 -> -2.847923744 | O21: Stand-alone | P21: Portfolio | Q21: Total | R21: Incremental | S21: NSFR invariance
B22: 3 | C22: =Cubic_spline(Tenors,FundingSpread,B22) -> 0.001350000035 | D22: 0.0007378041927 | E22: =Cubic_spline(Tenors,FundingSpreadLending,B22) -> 0.001350000035 | F22: 0.0007378041927 | G22: =SUMIF(OFFSET(PortfolioData!$B$1004,0,MATCH(B22,PortfolioData!$C$1:$AE$1,0),1000,1),">0")/1000 -> 3.726659947 | H22: =SUMIF(OFFSET(PortfolioData!$B$1004,0,MATCH(B22,PortfolioData!$C$1:$AE$1,0),1000,1),"<0")/1000 -> -4.602922302 | I22: =SUMIF(OFFSET(PortfolioData!$B$2,0,MATCH(B22,PortfolioData!$C$1:$AE$1,0),1000,1),">0")/1000 -> 9.210494688 | J22: =SUMIF(OFFSET(PortfolioData!$B$2,0,MATCH(B22,PortfolioData!$C$1:$AE$1,0),1000,1),"<0")/1000 -> -1.660596018 | K22: =SUMIF(OFFSET(PortfolioData!$B$2006,0,MATCH(B22,PortfolioData!$C$1:$AE$1,0),1000,1),">0")/1000 -> 9.733951026 | L22: =SUMIF(OFFSET(PortfolioData!$B$2006,0,MATCH(B22,PortfolioData!$C$1:$AE$1,0),1000,1),"<0")/1000 -> -3.060314711 | N22: FCA | O22: =-SUMPRODUCT(D11:D38,G11:G38)*1000000 -> -64390.81957 | P22: =-SUMPRODUCT(D11:D38,I11:I38)*1000000 -> -181984.1693 | Q22: =-SUMPRODUCT(D11:D38,K11:K38)*1000000 -> -197150.1492 | R22: =Q22-P22 -> -15165.97984 | S22: =R22*120% -> -18199.17581
B23: 3.25 | C23: =Cubic_spline(Tenors,FundingSpread,B23) -> 0.001527812605 | D23: 0.0009112738756 | E23: =Cubic_spline(Tenors,FundingSpreadLending,B23) -> 0.001527812605 | F23: 0.0009112738756 | G23: =SUMIF(OFFSET(PortfolioData!$B$1004,0,MATCH(B23,PortfolioData!$C$1:$AE$1,0),1000,1),">0")/1000 -> 3.83345561 | H23: =SUMIF(OFFSET(PortfolioData!$B$1004,0,MATCH(B23,PortfolioData!$C$1:$AE$1,0),1000,1),"<0")/1000 -> -4.717269385 | I23: =SUMIF(OFFSET(PortfolioData!$B$2,0,MATCH(B23,PortfolioData!$C$1:$AE$1,0),1000,1),">0")/1000 -> 8.880249057 | J23: =SUMIF(OFFSET(PortfolioData!$B$2,0,MATCH(B23,PortfolioData!$C$1:$AE$1,0),1000,1),"<0")/1000 -> -1.585447018 | K23: =SUMIF(OFFSET(PortfolioData!$B$2006,0,MATCH(B23,PortfolioData!$C$1:$AE$1,0),1000,1),">0")/1000 -> 9.433235868 | L23: =SUMIF(OFFSET(PortfolioData!$B$2006,0,MATCH(B23,PortfolioData!$C$1:$AE$1,0),1000,1),"<0")/1000 -> -3.022247604 | N23: FBA | O23: =-SUMPRODUCT(F11:F38,H11:H38)*1000000 -> 90621.76264 | P23: =-SUMPRODUCT(F11:F38,J11:J38)*1000000 -> 27384.06622 | Q23: =-SUMPRODUCT(F11:F38,L11:L38)*1000000 -> 68780.98914 | R23: =Q23-P23 -> 41396.92292
B24: 3.5 | C24: =Cubic_spline(Tenors,FundingSpread,B24) -> 0.001733712038 | D24: 0.001096535261 | E24: =Cubic_spline(Tenors,FundingSpreadLending,B24) -> 0.001733712038 | F24: 0.001096535261 | G24: =SUMIF(OFFSET(PortfolioData!$B$1004,0,MATCH(B24,PortfolioData!$C$1:$AE$1,0),1000,1),">0")/1000 -> 3.979365694 | H24: =SUMIF(OFFSET(PortfolioData!$B$1004,0,MATCH(B24,PortfolioData!$C$1:$AE$1,0),1000,1),"<0")/1000 -> -5.268677482 | I24: =SUMIF(OFFSET(PortfolioData!$B$2,0,MATCH(B24,PortfolioData!$C$1:$AE$1,0),1000,1),">0")/1000 -> 8.535859241 | J24: =SUMIF(OFFSET(PortfolioData!$B$2,0,MATCH(B24,PortfolioData!$C$1:$AE$1,0),1000,1),"<0")/1000 -> -1.485124806 | K24: =SUMIF(OFFSET(PortfolioData!$B$2006,0,MATCH(B24,PortfolioData!$C$1:$AE$1,0),1000,1),">0")/1000 -> 9.10014479 | L24: =SUMIF(OFFSET(PortfolioData!$B$2006,0,MATCH(B24,PortfolioData!$C$1:$AE$1,0),1000,1),"<0")/1000 -> -3.338722143 | N24: Liability RSF | S24: =-1.2*20%*R23 -> -9935.261501
B25: 3.75 | C25: =Cubic_spline(Tenors,FundingSpread,B25) -> 0.001963074411 | D25: 0.001284880302 | E25: =Cubic_spline(Tenors,FundingSpreadLending,B25) -> 0.001963074411 | F25: 0.001284880302 | G25: =SUMIF(OFFSET(PortfolioData!$B$1004,0,MATCH(B25,PortfolioData!$C$1:$AE$1,0),1000,1),">0")/1000 -> 3.996113226 | H25: =SUMIF(OFFSET(PortfolioData!$B$1004,0,MATCH(B25,PortfolioData!$C$1:$AE$1,0),1000,1),"<0")/1000 -> -5.723767942 | I25: =SUMIF(OFFSET(PortfolioData!$B$2,0,MATCH(B25,PortfolioData!$C$1:$AE$1,0),1000,1),">0")/1000 -> 8.084349265 | J25: =SUMIF(OFFSET(PortfolioData!$B$2,0,MATCH(B25,PortfolioData!$C$1:$AE$1,0),1000,1),"<0")/1000 -> -1.390229237 | K25: =SUMIF(OFFSET(PortfolioData!$B$2006,0,MATCH(B25,PortfolioData!$C$1:$AE$1,0),1000,1),">0")/1000 -> 8.641977953 | L25: =SUMIF(OFFSET(PortfolioData!$B$2006,0,MATCH(B25,PortfolioData!$C$1:$AE$1,0),1000,1),"<0")/1000 -> -3.675512642 | N25: FVA | O25: =O23+O22 -> 26230.94308 | P25: =P23+P22 -> -154600.1031 | Q25: =Q23+Q22 -> -128369.16 | R25: =Q25-P25 -> 26230.94308 | S25: =S24+S22 -> -28134.43731
B26: 4 | C26: =Cubic_spline(Tenors,FundingSpread,B26) -> 0.002211276031 | D26: 0.001471601915 | E26: =Cubic_spline(Tenors,FundingSpreadLending,B26) -> 0.002211276031 | F26: 0.001471601915 | G26: =SUMIF(OFFSET(PortfolioData!$B$1004,0,MATCH(B26,PortfolioData!$C$1:$AE$1,0),1000,1),">0")/1000 -> 4.101762546 | H26: =SUMIF(OFFSET(PortfolioData!$B$1004,0,MATCH(B26,PortfolioData!$C$1:$AE$1,0),1000,1),"<0")/1000 -> -5.914632866 | I26: =SUMIF(OFFSET(PortfolioData!$B$2,0,MATCH(B26,PortfolioData!$C$1:$AE$1,0),1000,1),">0")/1000 -> 7.560412385 | J26: =SUMIF(OFFSET(PortfolioData!$B$2,0,MATCH(B26,PortfolioData!$C$1:$AE$1,0),1000,1),"<0")/1000 -> -1.292248106 | K26: =SUMIF(OFFSET(PortfolioData!$B$2006,0,MATCH(B26,PortfolioData!$C$1:$AE$1,0),1000,1),">0")/1000 -> 8.356230871 | L26: =SUMIF(OFFSET(PortfolioData!$B$2006,0,MATCH(B26,PortfolioData!$C$1:$AE$1,0),1000,1),"<0")/1000 -> -3.900936912
B27: 4.25 | C27: =Cubic_spline(Tenors,FundingSpread,B27) -> 0.002473693148 | D27: 0.001652024123 | E27: =Cubic_spline(Tenors,FundingSpreadLending,B27) -> 0.002473693148 | F27: 0.001652024123 | G27: =SUMIF(OFFSET(PortfolioData!$B$1004,0,MATCH(B27,PortfolioData!$C$1:$AE$1,0),1000,1),">0")/1000 -> 4.197447908 | H27: =SUMIF(OFFSET(PortfolioData!$B$1004,0,MATCH(B27,PortfolioData!$C$1:$AE$1,0),1000,1),"<0")/1000 -> -6.210813473 | I27: =SUMIF(OFFSET(PortfolioData!$B$2,0,MATCH(B27,PortfolioData!$C$1:$AE$1,0),1000,1),">0")/1000 -> 7.036735354 | J27: =SUMIF(OFFSET(PortfolioData!$B$2,0,MATCH(B27,PortfolioData!$C$1:$AE$1,0),1000,1),"<0")/1000 -> -1.178490035 | K27: =SUMIF(OFFSET(PortfolioData!$B$2006,0,MATCH(B27,PortfolioData!$C$1:$AE$1,0),1000,1),">0")/1000 -> 7.968776706 | L27: =SUMIF(OFFSET(PortfolioData!$B$2006,0,MATCH(B27,PortfolioData!$C$1:$AE$1,0),1000,1),"<0")/1000 -> -4.123896952
B28: 4.5 | C28: =Cubic_spline(Tenors,FundingSpread,B28) -> 0.002745702012 | D28: 0.001821515912 | E28: =Cubic_spline(Tenors,FundingSpreadLending,B28) -> 0.002745702012 | F28: 0.001821515912 | G28: =SUMIF(OFFSET(PortfolioData!$B$1004,0,MATCH(B28,PortfolioData!$C$1:$AE$1,0),1000,1),">0")/1000 -> 4.238218452 | H28: =SUMIF(OFFSET(PortfolioData!$B$1004,0,MATCH(B28,PortfolioData!$C$1:$AE$1,0),1000,1),"<0")/1000 -> -6.566670067 | I28: =SUMIF(OFFSET(PortfolioData!$B$2,0,MATCH(B28,PortfolioData!$C$1:$AE$1,0),1000,1),">0")/1000 -> 6.49073714 | J28: =SUMIF(OFFSET(PortfolioData!$B$2,0,MATCH(B28,PortfolioData!$C$1:$AE$1,0),1000,1),"<0")/1000 -> -1.049472584 | K28: =SUMIF(OFFSET(PortfolioData!$B$2006,0,MATCH(B28,PortfolioData!$C$1:$AE$1,0),1000,1),">0")/1000 -> 7.592538665 | L28: =SUMIF(OFFSET(PortfolioData!$B$2006,0,MATCH(B28,PortfolioData!$C$1:$AE$1,0),1000,1),"<0")/1000 -> -4.479725723
B29: 4.75 | C29: =Cubic_spline(Tenors,FundingSpread,B29) -> 0.003022678873 | D29: 0.001975502745 | E29: =Cubic_spline(Tenors,FundingSpreadLending,B29) -> 0.003022678873 | F29: 0.001975502745 | G29: =SUMIF(OFFSET(PortfolioData!$B$1004,0,MATCH(B29,PortfolioData!$C$1:$AE$1,0),1000,1),">0")/1000 -> 4.41295555 | H29: =SUMIF(OFFSET(PortfolioData!$B$1004,0,MATCH(B29,PortfolioData!$C$1:$AE$1,0),1000,1),"<0")/1000 -> -6.801346277 | I29: =SUMIF(OFFSET(PortfolioData!$B$2,0,MATCH(B29,PortfolioData!$C$1:$AE$1,0),1000,1),">0")/1000 -> 5.849492643 | J29: =SUMIF(OFFSET(PortfolioData!$B$2,0,MATCH(B29,PortfolioData!$C$1:$AE$1,0),1000,1),"<0")/1000 -> -0.9172149874 | K29: =SUMIF(OFFSET(PortfolioData!$B$2006,0,MATCH(B29,PortfolioData!$C$1:$AE$1,0),1000,1),">0")/1000 -> 7.325450372 | L29: =SUMIF(OFFSET(PortfolioData!$B$2006,0,MATCH(B29,PortfolioData!$C$1:$AE$1,0),1000,1),"<0")/1000 -> -4.781563444
B30: 5 | C30: =Cubic_spline(Tenors,FundingSpread,B30) -> 0.003299999982 | D30: 0.002109476473 | E30: =Cubic_spline(Tenors,FundingSpreadLending,B30) -> 0.003299999982 | F30: 0.002109476473 | G30: =SUMIF(OFFSET(PortfolioData!$B$1004,0,MATCH(B30,PortfolioData!$C$1:$AE$1,0),1000,1),">0")/1000 -> 4.482027481 | H30: =SUMIF(OFFSET(PortfolioData!$B$1004,0,MATCH(B30,PortfolioData!$C$1:$AE$1,0),1000,1),"<0")/1000 -> -7.075026405 | I30: =SUMIF(OFFSET(PortfolioData!$B$2,0,MATCH(B30,PortfolioData!$C$1:$AE$1,0),1000,1),">0")/1000 -> 5.075478203 | J30: =SUMIF(OFFSET(PortfolioData!$B$2,0,MATCH(B30,PortfolioData!$C$1:$AE$1,0),1000,1),"<0")/1000 -> -0.7845770497 | K30: =SUMIF(OFFSET(PortfolioData!$B$2006,0,MATCH(B30,PortfolioData!$C$1:$AE$1,0),1000,1),">0")/1000 -> 6.946005478 | L30: =SUMIF(OFFSET(PortfolioData!$B$2006,0,MATCH(B30,PortfolioData!$C$1:$AE$1,0),1000,1),"<0")/1000 -> -5.248103249
B31: 5.25 | C31: =Cubic_spline(Tenors,FundingSpread,B31) -> 0.003573576528 | D31: 0.002221758973 | E31: =Cubic_spline(Tenors,FundingSpreadLending,B31) -> 0.003573576528 | F31: 0.002221758973 | G31: =SUMIF(OFFSET(PortfolioData!$B$1004,0,MATCH(B31,PortfolioData!$C$1:$AE$1,0),1000,1),">0")/1000 -> 0 | H31: =SUMIF(OFFSET(PortfolioData!$B$1004,0,MATCH(B31,PortfolioData!$C$1:$AE$1,0),1000,1),"<0")/1000 -> 0 | I31: =SUMIF(OFFSET(PortfolioData!$B$2,0,MATCH(B31,PortfolioData!$C$1:$AE$1,0),1000,1),">0")/1000 -> 4.442693142 | J31: =SUMIF(OFFSET(PortfolioData!$B$2,0,MATCH(B31,PortfolioData!$C$1:$AE$1,0),1000,1),"<0")/1000 -> -0.6414063574 | K31: =SUMIF(OFFSET(PortfolioData!$B$2006,0,MATCH(B31,PortfolioData!$C$1:$AE$1,0),1000,1),">0")/1000 -> 4.442693142 | L31: =SUMIF(OFFSET(PortfolioData!$B$2006,0,MATCH(B31,PortfolioData!$C$1:$AE$1,0),1000,1),"<0")/1000 -> -0.6414063574
B32: 5.5 | C32: =Cubic_spline(Tenors,FundingSpread,B32) -> 0.003841459449 | D32: 0.002320014347 | E32: =Cubic_spline(Tenors,FundingSpreadLending,B32) -> 0.003841459449 | F32: 0.002320014347 | G32: =SUMIF(OFFSET(PortfolioData!$B$1004,0,MATCH(B32,PortfolioData!$C$1:$AE$1,0),1000,1),">0")/1000 -> 0 | H32: =SUMIF(OFFSET(PortfolioData!$B$1004,0,MATCH(B32,PortfolioData!$C$1:$AE$1,0),1000,1),"<0")/1000 -> 0 | I32: =SUMIF(OFFSET(PortfolioData!$B$2,0,MATCH(B32,PortfolioData!$C$1:$AE$1,0),1000,1),">0")/1000 -> 3.847349094 | J32: =SUMIF(OFFSET(PortfolioData!$B$2,0,MATCH(B32,PortfolioData!$C$1:$AE$1,0),1000,1),"<0")/1000 -> -0.5564545116 | K32: =SUMIF(OFFSET(PortfolioData!$B$2006,0,MATCH(B32,PortfolioData!$C$1:$AE$1,0),1000,1),">0")/1000 -> 3.847349094 | L32: =SUMIF(OFFSET(PortfolioData!$B$2006,0,MATCH(B32,PortfolioData!$C$1:$AE$1,0),1000,1),"<0")/1000 -> -0.5564545116
B33: 5.75 | C33: =Cubic_spline(Tenors,FundingSpread,B33) -> 0.00410223462 | D33: 0.002405436402 | E33: =Cubic_spline(Tenors,FundingSpreadLending,B33) -> 0.00410223462 | F33: 0.002405436402 | G33: =SUMIF(OFFSET(PortfolioData!$B$1004,0,MATCH(B33,PortfolioData!$C$1:$AE$1,0),1000,1),">0")/1000 -> 0 | H33: =SUMIF(OFFSET(PortfolioData!$B$1004,0,MATCH(B33,PortfolioData!$C$1:$AE$1,0),1000,1),"<0")/1000 -> 0 | I33: =SUMIF(OFFSET(PortfolioData!$B$2,0,MATCH(B33,PortfolioData!$C$1:$AE$1,0),1000,1),">0")/1000 -> 3.783090588 | J33: =SUMIF(OFFSET(PortfolioData!$B$2,0,MATCH(B33,PortfolioData!$C$1:$AE$1,0),1000,1),"<0")/1000 -> -0.4731794685 | K33: =SUMIF(OFFSET(PortfolioData!$B$2006,0,MATCH(B33,PortfolioData!$C$1:$AE$1,0),1000,1),">0")/1000 -> 3.783090588 | L33: =SUMIF(OFFSET(PortfolioData!$B$2006,0,MATCH(B33,PortfolioData!$C$1:$AE$1,0),1000,1),"<0")/1000 -> -0.4731794685
B34: 6 | C34: =Cubic_spline(Tenors,FundingSpread,B34) -> 0.004354487919 | D34: 0.002476742231 | E34: =Cubic_spline(Tenors,FundingSpreadLending,B34) -> 0.004354487919 | F34: 0.002476742231 | G34: =SUMIF(OFFSET(PortfolioData!$B$1004,0,MATCH(B34,PortfolioData!$C$1:$AE$1,0),1000,1),">0")/1000 -> 0 | H34: =SUMIF(OFFSET(PortfolioData!$B$1004,0,MATCH(B34,PortfolioData!$C$1:$AE$1,0),1000,1),"<0")/1000 -> 0 | I34: =SUMIF(OFFSET(PortfolioData!$B$2,0,MATCH(B34,PortfolioData!$C$1:$AE$1,0),1000,1),">0")/1000 -> 3.142090541 | J34: =SUMIF(OFFSET(PortfolioData!$B$2,0,MATCH(B34,PortfolioData!$C$1:$AE$1,0),1000,1),"<0")/1000 -> -0.3914541724 | K34: =SUMIF(OFFSET(PortfolioData!$B$2006,0,MATCH(B34,PortfolioData!$C$1:$AE$1,0),1000,1),">0")/1000 -> 3.142090541 | L34: =SUMIF(OFFSET(PortfolioData!$B$2006,0,MATCH(B34,PortfolioData!$C$1:$AE$1,0),1000,1),"<0")/1000 -> -0.3914541724
B35: 6.25 | C35: =Cubic_spline(Tenors,FundingSpread,B35) -> 0.004596805223 | D35: 0.00253267692 | E35: =Cubic_spline(Tenors,FundingSpreadLending,B35) -> 0.004596805223 | F35: 0.00253267692 | G35: =SUMIF(OFFSET(PortfolioData!$B$1004,0,MATCH(B35,PortfolioData!$C$1:$AE$1,0),1000,1),">0")/1000 -> 0 | H35: =SUMIF(OFFSET(PortfolioData!$B$1004,0,MATCH(B35,PortfolioData!$C$1:$AE$1,0),1000,1),"<0")/1000 -> 0 | I35: =SUMIF(OFFSET(PortfolioData!$B$2,0,MATCH(B35,PortfolioData!$C$1:$AE$1,0),1000,1),">0")/1000 -> 3.036014746 | J35: =SUMIF(OFFSET(PortfolioData!$B$2,0,MATCH(B35,PortfolioData!$C$1:$AE$1,0),1000,1),"<0")/1000 -> -0.3078333732 | K35: =SUMIF(OFFSET(PortfolioData!$B$2006,0,MATCH(B35,PortfolioData!$C$1:$AE$1,0),1000,1),">0")/1000 -> 3.036014746 | L35: =SUMIF(OFFSET(PortfolioData!$B$2006,0,MATCH(B35,PortfolioData!$C$1:$AE$1,0),1000,1),"<0")/1000 -> -0.3078333732
B36: 6.5 | C36: =Cubic_spline(Tenors,FundingSpread,B36) -> 0.004827772408 | D36: 0.002572012826 | E36: =Cubic_spline(Tenors,FundingSpreadLending,B36) -> 0.004827772408 | F36: 0.002572012826 | G36: =SUMIF(OFFSET(PortfolioData!$B$1004,0,MATCH(B36,PortfolioData!$C$1:$AE$1,0),1000,1),">0")/1000 -> 0 | H36: =SUMIF(OFFSET(PortfolioData!$B$1004,0,MATCH(B36,PortfolioData!$C$1:$AE$1,0),1000,1),"<0")/1000 -> 0 | I36: =SUMIF(OFFSET(PortfolioData!$B$2,0,MATCH(B36,PortfolioData!$C$1:$AE$1,0),1000,1),">0")/1000 -> 2.416048718 | J36: =SUMIF(OFFSET(PortfolioData!$B$2,0,MATCH(B36,PortfolioData!$C$1:$AE$1,0),1000,1),"<0")/1000 -> -0.2299908404 | K36: =SUMIF(OFFSET(PortfolioData!$B$2006,0,MATCH(B36,PortfolioData!$C$1:$AE$1,0),1000,1),">0")/1000 -> 2.416048718 | L36: =SUMIF(OFFSET(PortfolioData!$B$2006,0,MATCH(B36,PortfolioData!$C$1:$AE$1,0),1000,1),"<0")/1000 -> -0.2299908404
B37: 6.75 | C37: =Cubic_spline(Tenors,FundingSpread,B37) -> 0.005045975351 | D37: 0.00259354814 | E37: =Cubic_spline(Tenors,FundingSpreadLending,B37) -> 0.005045975351 | F37: 0.00259354814 | G37: =SUMIF(OFFSET(PortfolioData!$B$1004,0,MATCH(B37,PortfolioData!$C$1:$AE$1,0),1000,1),">0")/1000 -> 0 | H37: =SUMIF(OFFSET(PortfolioData!$B$1004,0,MATCH(B37,PortfolioData!$C$1:$AE$1,0),1000,1),"<0")/1000 -> 0 | I37: =SUMIF(OFFSET(PortfolioData!$B$2,0,MATCH(B37,PortfolioData!$C$1:$AE$1,0),1000,1),">0")/1000 -> 2.29891286 | J37: =SUMIF(OFFSET(PortfolioData!$B$2,0,MATCH(B37,PortfolioData!$C$1:$AE$1,0),1000,1),"<0")/1000 -> -0.151299111 | K37: =SUMIF(OFFSET(PortfolioData!$B$2006,0,MATCH(B37,PortfolioData!$C$1:$AE$1,0),1000,1),">0")/1000 -> 2.29891286 | L37: =SUMIF(OFFSET(PortfolioData!$B$2006,0,MATCH(B37,PortfolioData!$C$1:$AE$1,0),1000,1),"<0")/1000 -> -0.151299111
B38: 7 | C38: =Cubic_spline(Tenors,FundingSpread,B38) -> 0.005249999929 | D38: 0.002596104662 | E38: =Cubic_spline(Tenors,FundingSpreadLending,B38) -> 0.005249999929 | F38: 0.002596104662 | G38: =SUMIF(OFFSET(PortfolioData!$B$1004,0,MATCH(B38,PortfolioData!$C$1:$AE$1,0),1000,1),">0")/1000 -> 0 | H38: =SUMIF(OFFSET(PortfolioData!$B$1004,0,MATCH(B38,PortfolioData!$C$1:$AE$1,0),1000,1),"<0")/1000 -> 0 | I38: =SUMIF(OFFSET(PortfolioData!$B$2,0,MATCH(B38,PortfolioData!$C$1:$AE$1,0),1000,1),">0")/1000 -> 1.618889408 | J38: =SUMIF(OFFSET(PortfolioData!$B$2,0,MATCH(B38,PortfolioData!$C$1:$AE$1,0),1000,1),"<0")/1000 -> -0.08748297154 | K38: =SUMIF(OFFSET(PortfolioData!$B$2006,0,MATCH(B38,PortfolioData!$C$1:$AE$1,0),1000,1),">0")/1000 -> 1.618889408 | L38: =SUMIF(OFFSET(PortfolioData!$B$2006,0,MATCH(B38,PortfolioData!$C$1:$AE$1,0),1000,1),"<0")/1000 -> -0.08748297154

Sheet PortfolioData
B1: Portfolio | C1: 0 | D1: =C1+0.25 -> 0.25 | E1: =D1+0.25 -> 0.5 | F1: 0.75 | G1: 1 | H1: 1.25 | I1: 1.5 | J1: 1.75 | K1: 2 | L1: 2.25 | M1: 2.5 | N1: 2.75 | O1: 3 | P1: 3.25 | Q1: 3.5 | R1: 3.75 | S1: 4 | T1: 4.25 | U1: 4.5 | V1: 4.75 | W1: 5 | X1: 5.25 | Y1: 5.5 | Z1: 5.75 | AA1: 6 | AB1: 6.25 | AC1: 6.5 | AD1: 6.75 | AE1: 7
B2: Simulation 1 | C2: 6.649662525 | D2: 2.716286397 | E2: -4.864369572 | F2: 1.690961887 | G2: 2.386935951 | H2: 1.372993035 | I2: 5.696160222 | J2: 7.590677382 | K2: 7.701563908 | L2: 8.848752229 | M2: 9.408203514 | N2: 11.38763547 | O2: 12.66278212 | P2: 11.6500605 | Q2: 11.35430283 | R2: 11.53012011 | S2: 11.07171558 | T2: 10.04346222 | U2: 9.375286951 | V2: 8.156312135 | W2: 6.771069678 | X2: 5.96795561 | Y2: 4.921945565 | Z2: 5.126701737 | AA2: 4.024690703 | AB2: 4.148325447 | AC2: 3.069897248 | AD2: 3.13247521 | AE2: 1.930534413
B3: Simulation 2 | C3: 6.649662525 | D3: 10.50901749 | E3: 10.05964981 | F3: 7.735158845 | G3: -1.457237082 | H3: -3.130089274 | I3: 0.4657432266 | J3: -3.599994452 | K3: 0.7628459485 | L3: 2.074930747 | M3: 2.528406542 | N3: 3.972303249 | O3: 6.189223846 | P3: 5.749745806 | Q3: 5.478531802 | R3: 3.65480327 | S3: 4.062840829 | T3: 4.04863137 | U3: 4.099110453 | V3: 3.852853063 | W3: 3.243673317 | X3: 2.854305956 | Y3: 2.391284581 | Z3: 3.07485302 | AA3: 2.451562091 | AB3: 2.99051869 | AC3: 2.291730426 | AD3: 2.696620112 | AE3: 1.801656931
B4: Simulation 3 | C4: 6.649662525 | D4: 1.754478851 | E4: 0.4807964937 | F4: 0.07665637808 | G4: 10.90346525 | H4: 10.60667993 | I4: 1.640022117 | J4: 2.448512186 | K4: 0.576664255 | L4: -1.757156246 | M4: -0.3706672623 | N4: 1.0409557 | O4: -0.2407496687 | P4: 1.793801547 | Q4: 1.773062592 | R4: 0.8161446497 | S4: 0.150537702 | T4: -0.4733950804 | U4: -0.4944342739 | V4: -0.4826579996 | W4: -0.4340274183 | X4: -0.3319606808 | Y4: -0.2580198003 | Z4: -0.1892429025 | AA4: -0.1286783817 | AB4: -0.08345737849 | AC4: -0.04028101139 | AD4: -0.0105797439 | AE4: 0.00260159969
B5: Simulation 4 | C5: 6.649662525 | D5: 1.416821443 | E5: 5.01817724 | F5: 5.837010778 | G5: -1.376379665 | H5: -2.500809873 | I5: -3.889620524 | J5: -4.475430276 | K5: -6.129271988 | L5: -5.413071528 | M5: -5.529453799 | N5: -4.622926732 | O5: -3.962937359 | P5: -3.80476231 | Q5: -4.031662523 | R5: -3.542356354 | S5: -4.036378502 | T5: -3.254169195 | U5: -2.885559961 | V5: -2.46340343 | W5: -2.058274693 | X5: -1.602518644 | Y5: -1.348793763 | Z5: -1.112589188 | AA5: -0.8858462096 | AB5: -0.6668833555 | AC5: -0.4718680891 | AD5: -0.2919002125 | AE5: -0.132635424
B6: Simulation 5 | C6: 6.649662525 | D6: 8.307676917 | E6: 9.945725545 | F6: 10.01828351 | G6: 16.57640103 | H6: 10.64042845 | I6: 21.22687279 | J6: 13.185838 | K6: 14.70476746 | L6: 13.66750803 | M6: 13.21180153 | N6: 10.23443418 | O6: 11.3219431 | P6: 10.79048353 | Q6: 11.13659041 | R6: 11.32284862 | S6: 10.52932078 | T6: 9.623115834 | U6: 8.752220754 | V6: 8.094487947 | W6: 7.282712326 | X6: 6.526615246 | Y6: 5.652505088 | Z6: 5.949773269 | AA6: 4.976359547 | AB6: 5.216001727 | AC6: 4.23666476 | AD6: 4.376577944 | AE6: 3.224633139
B7: Simulation 6 | C7: 6.649662525 | D7: -5.316212349 | E7: -1.690605444 | F7: -2.443275181 | G7: 4.75398625 | H7: -5.036720719 | I7: -7.476302213 | J7: -5.414714629 | K7: -1.384273437 | L7: -2.562588675 | M7: -2.731836867 | N7: -2.715440843 | O7: -3.395442092 | P7: -4.139897381 | Q7: -3.931856457 | R7: -3.299520932 | S7: -1.764362827 | T7: -1.152699057 | U7: -0.9314297756 | V7: -0.6628054004 | W7: -0.752162426 | X7: -0.5856372587 | Y7: -0.3738286752 | Z7: -0.1974726413 | AA7: -0.06903295996 | AB7: 0.02740340767 | AC7: 0.08757071088 | AD7: 0.1053522174 | AE7: 0.07499167232
B8: Simulation 7 | C8: 6.649662525 | D8: 1.763798168 | E8: 2.687025794 | F8: 3.216181927 | G8: 8.531190405 | H8: 4.464171853 | I8: 5.997510692 | J8: 1.352612167 | K8: -2.36000175 | L8: -1.657769704 | M8: -2.643041339 | N8: -0.5651214557 | O8: -1.564995572 | P8: -1.515673343 | Q8: -0.7067108895 | R8: -1.449448204 | S8: -1.685583558 | T8: -1.744509916 | U8: -1.79352104 | V8: -1.675693658 | W8: -1.604984477 | X8: -1.478952336 | Y8: -1.355650704 | Z8: -1.210328789 | AA8: -1.059018094 | AB8: -0.8768160883 | AC8: -0.6813695877 | AD8: -0.4669857552 | AE8: -0.2375084684
B9: Simulation 8 | C9: 6.649662525 | D9: 13.48314099 | E9: 27.53029136 | F9: 28.69219106 | G9: 28.20449557 | H9: 21.22131294 | I9: 9.852402633 | J9: 17.79296448 | K9: 15.72986438 | L9: 13.67261393 | M9: 12.62315178 | N9: 12.42201513 | O9: 11.17933281 | P9: 11.04144546 | Q9: 9.296714966 | R9: 8.203252321 | S9: 6.009469546 | T9: 4.800335468 | U9: 3.778363025 | V9: 2.937293962 | W9: 2.036421751 | X9: 1.335147014 | Y9: 1.057820555 | Z9: 0.8021321867 | AA9: 0.579511294 | AB9: 0.3875755011 | AC9: 0.2528382834 | AD9: 0.1395042191 | AE9: 0.05202546567
B10: Simulation 9 | C10: 6.649662525 | D10: 1.960023053 | E10: -6.193744888 | F10: -13.45514024 | G10: -22.01251256 | H10: -20.08926916 | I10: -16.56794166 | J10: -16.66615725 | K10: -16.7791996 | L10: -16.19293027 | M10: -17.13627776 | N10: -15.80401529 | O10: -13.22615847 | P10: -11.39241129 | Q10: -9.1686406 | R10: -7.641604081 | S10: -7.042146727 | T10: -5.896604056 | U10: -4.897856095 | V10: -4.030420391 | W10: -3.107835906 | X10: -2.319223293 | Y10: -1.927647279 | Z10: -1.568455766 | AA10: -1.239276862 | AB10: -0.9304369392 | AC10: -0.6626686723 | AD10: -0.4147129551 | AE10: -0.1911289121
B11: Simulation 10 | C11: 6.649662525 | D11: 11.62760775 | E11: 16.0224909 | F11: 24.37037551 | G11: 21.74361364 | H11: 28.23160661 | I11: 32.34096101 | J11: 29.30090504 | K11: 36.24178556 | L11: 37.09548496 | M11: 33.8919007 | N11: 32.46690902 | O11: 33.93893838 | P11: 33.18304152 | Q11: 31.74514023 | R11: 30.78884975 | S11: 28.16645864 | T11: 26.60510101 | U11: 25.08325398 | V11: 23.15176996 | W11: 21.09947517 | X11: 19.35068451 | Y11: 17.24937904 | Z11: 16.33049599 | AA11: 14.12132686 | AB11: 13.10590149 | AC11: 11.00665423 | AD11: 10.00337158 | AE11: 7.723564756
B12: Simulation 11 | C12: 6.649662525 | D12: -0.8372559134 | E12: -12.88951625 | F12: -15.91404511 | G12: -18.09462336 | H12: -18.55829001 | I12: -13.89917733 | J12: -11.73515027 | K12: -13.9961042 | L12: -16.51212018 | M12: -14.13253221 | N12: -13.0710049 | O12: -15.17933776 | P12: -13.65592672 | Q12: -12.08978915 | R12: -11.49640198 | S12: -10.6582694 | T12: -9.651626595 | U12: -8.548128666 | V12: -7.399175781 | W12: -6.198230862 | X12: -4.963540509 | Y12: -4.286769367 | Z12: -3.621267672 | AA12: -2.962471275 | AB12: -2.303837807 | AC12: -1.707514473 | AD12: -1.113900808 | AE12: -0.5346351999
B13: Simulation 12 | C13: 6.649662525 | D13: -1.73650249 | E13: 7.475235382 | F13: 1.693452149 | G13: -4.084885229 | H13: -1.662576351 | I13: -1.386043614 | J13: -5.243967595 | K13: -6.003695029 | L13: -1.774019798 | M13: 0.02412675468 | N13: -1.922407401 | O13: -1.976106127 | P13: -3.188861012 | Q13: -3.4905585 | R13: -3.54948341 | S13: -3.340992983 | T13: -3.189805888 | U13: -2.909439483 | V13: -2.671360216 | W13: -2.314875752 | X13: -1.945897764 | Y13: -1.707273518 | Z13: -1.470967293 | AA13: -1.229688251 | AB13: -0.975218985 | AC13: -0.7281064927 | AD13: -0.4780846218 | AE13: -0.2311995799
B14: Simulation 13 | C14: 6.649662525 | D14: -4.018517082 | E14: -11.36483811 | F14: -3.320950269 | G14: -3.695701012 | H14: 1.398605559 | I14: 7.413562327 | J14: 0.7884407835 | K14: -0.2587647649 | L14: -0.7945899213 | M14: -2.308271987 | N14: -0.2231476941 | O14: 0.8210244213 | P14: 1.208278605 | Q14: 0.741070085 | R14: 1.605909211 | S14: 1.844335247 | T14: 2.497103158 | U14: 2.369348642 | V14: 2.291886395 | W14: 1.601779324 | X14: 0.9090765433 | Y14: 0.8822268581 | Z14: 0.8309241687 | AA14: 0.7448342721 | AB14: 0.6323049972 | AC14: 0.5199707298 | AD14: 0.3752195238 | AE14: 0.1966791225
B15: Simulation 14 | C15: 6.649662525 | D15: 13.80073301 | E15: 11.71692977 | F15: 9.692430529 | G15: 11.39210367 | H15: 12.51884778 | I15: 10.21193775 | J15: 9.233751125 | K15: 7.322559431 | L15: 5.387214033 | M15: 3.762025719 | N15: 4.875293314 | O15: 4.098485972 | P15: 2.368790703 | Q15: 1.526248832 | R15: 0.8405117187 | S15: 0.3445363004 | T15: 0.9199050375 | U15: 0.7484350004 | V15: 0.5446433097 | W15: 0.1621063912 | X15: 0.1065723238 | Y15: 0.1479043577 | Z15: 0.1754117557 | AA15: 0.1868335366 | AB15: 0.1792388965 | AC15: 0.1681647181 | AD15: 0.13505708 | AE15: 0.07727631114
B16: Simulation 15 | C16: 6.649662525 | D16: 11.59943513 | E16: 6.492024125 | F16: -5.011242265 | G16: -7.369437026 | H16: -5.802044479 | I16: -5.206663123 | J16: -9.067589678 | K16: -5.102657195 | L16: -7.376492321 | M16: -5.082030106 | N16: -5.890067444 | O16: -5.660367838 | P16: -5.620941718 | Q16: -4.870028362 | R16: -5.302271392 | S16: -4.232463611 | T16: -3.81573999 | U16: -3.201651279 | V16: -2.699042301 | W16: -2.266770978 | X16: -1.777476537 | Y16: -1.502929914 | Z16: -1.247086948 | AA16: -1.004042798 | AB16: -0.7632545691 | AC16: -0.5472106651 | AD16: -0.3444200679 | AE16: -0.1594762741
B17: Simulation 16 | C17: 6.649662525 | D17: 21.69333255 | E17: 9.874132996 | F17: 10.86444309 | G17: 9.592695546 | H17: 10.3744791 | I17: 12.88786777 | J17: 11.80026526 | K17: 13.35673828 | L17: 17.27329073 | M17: 13.93423682 | N17: 13.10191477 | O17: 11.16784294 | P17: 8.414909987 | Q17: 6.7216163 | R17: 4.449848012 | S17: 3.967760051 | T17: 3.456664979 | U17: 2.632256674 | V17: 1.812677249 | W17: 0.9344257516 | X17: 0.5721360847 | Y17: 0.4749181289 | Z17: 0.3927755303 | AA17: 0.3168457018 | AB17: 0.2452905454 | AC17: 0.1960247459 | AD17: 0.138509736 | AE17: 0.07118666578
B18: Simulation 17 | C18: 6.649662525 | D18: 7.736545015 | E18: 7.550772556 | F18: 5.26272204 | G18: 6.294485433 | H18: 7.48521537 | I18: 5.572661295 | J18: 7.231968837 | K18: 3.465516743 | L18: 3.57110476 | M18: 2.752398594 | N18: 4.370499561 | O18: 7.142229762 | P18: 6.922055618 | Q18: 6.343243106 | R18: 6.98705902 | S18: 7.017258924 | T18: 6.209782383 | U18: 5.609085494 | V18: 4.62116569 | W18: 3.408020423 | X18: 2.56949974 | Y18: 2.211510728 | Z18: 1.8592316 | AA18: 1.496890778 | AB18: 1.139110858 | AC18: 0.8382815558 | AD18: 0.5388157595 | AE18: 0.2517645784
B19: Simulation 18 | C19: 6.649662525 | D19: 1.283562012 | E19: -3.767675994 | F19: -3.416001439 | G19: -6.326068542 | H19: -5.281762483 | I19: -5.509914767 | J19: -6.873926063 | K19: -10.69582076 | L19: -11.2251856 | M19: -13.29264927 | N19: -12.16138926 | O19: -10.70948199 | P19: -9.902956327 | Q19: -9.097032343 | R19: -7.727997271 | S19: -7.323422474 | T19: -6.66818665 | U19: -5.927490232 | V19: -5.058103936 | W19: -4.202384646 | X19: -3.429692812 | Y19: -2.986496328 | Z19: -2.549581391 | AA19: -2.111213025 | AB19: -1.667546377 | AC19: -1.252686494 | AD19: -0.8298544178 | AE19: -0.4055642484
B20: Simulation 19 | C20: 6.649662525 | D20: 8.741382494 | E20: 7.491359628 | F20: 14.33980741 | G20: 13.31066184 | H20: 18.77318666 | I20: 20.92156868 | J20: 21.01689413 | K20: 23.1995649 | L20: 22.5741289 | M20: 19.19510687 | N20: 17.93487459 | O20: 20.01364509 | P20: 19.53869456 | Q20: 19.00453206 | R20: 18.94723043 | S20: 18.19384061 | T20: 17.01909247 | U20: 16.25276911 | V20: 15.1180323 | W20: 14.36624207 | X20: 13.3246681 | Y20: 11.96664188 | Z20: 11.73830119 | AA20: 10.23032528 | AB20: 9.889870841 | AC20: 8.395133559 | AD20: 8.002421866 | AE20: 6.288524567
B21: Simulation 20 | C21: 6.649662525 | D21: 8.861104524 | E21: -2.183652893 | F21: -9.212397623 | G21: -13.43533339 | H21: -15.41360426 | I21: -14.61707698 | J21: -14.68680088 | K21: -16.50094017 | L21: -16.32278069 | M21: -16.27889402 | N21: -14.53545072 | O21: -14.33500774 | P21: -13.41920285 | Q21: -12.5961295 | R21: -11.57280133 | S21: -10.22304841 | T21: -9.002196859 | U21: -7.93448733 | V21: -6.715771018 | W21: -5.640184387 | X21: -4.57611054 | Y21: -3.999359581 | Z21: -3.421933621 | AA21: -2.845406546 | AB21: -2.252896149 | AC21: -1.702175933 | AD21: -1.134729875 | AE21: -0.5588094684
B22: Simulation 21 | C22: 6.649662525 | D22: 15.85379773 | E22: 18.14922165 | F22: 13.90100638 | G22: 14.50385286 | H22: 20.05970836 | I22: 25.05530691 | J22: 14.35483033 | K22: 18.68370392 | L22: 18.88643891 | M22: 18.85253701 | N22: 17.91400297 | O22: 17.71178602 | P22: 15.58865346 | Q22: 14.60686148 | R22: 13.05015048 | S22: 12.4010081 | T22: 10.78951169 | U22: 9.527843814 | V22: 8.546080908 | W22: 7.17986073 | X22: 6.339000496 | Y22: 5.210239173 | Z22: 5.259451297 | AA22: 4.091717756 | AB22: 4.125058025 | AC22: 2.988735833 | AD22: 2.990818084 | AE22: 1.744613083
B23: Simulation 22 | C23: 6.649662525 | D23: 17.94451383 | E23: 17.38680278 | F23: 25.4053184 | G23: 31.11762632 | H23: 23.44469783 | I23: 15.90486557 | J23: 10.11481854 | K23: 9.711949321 | L23: 10.02472531 | M23: 4.542984479 | N23: 3.708861192 | O23: 3.186723518 | P23: 1.706634563 | Q23: 1.182496339 | R23: 1.397096723 | S23: 1.088612227 | T23: 0.5956882215 | U23: 0.5254198129 | V23: 0.3203376131 | W23: 0.1064840356 | X23: 0.02313400319 | Y23: 0.0221399599 | Z23: 0.02895233308 | AA23: 0.02902417752 | AB23: 0.03165032155 | AC23: 0.04085435296 | AD23: 0.03878003834 | AE23: 0.02400874302
B24: Simulation 23 | C24: 6.649662525 | D24: 0.96754004 | E24: -6.17228243 | F24: -4.013331034 | G24: -8.340506526 | H24: -7.625562988 | I24: -10.48168355 | J24: -9.812566307 | K24: -11.07252083 | L24: -10.18730685 | M24: -12.22534911 | N24: -15.14699331 | O24: -12.68150436 | P24: -11.77542998 | Q24: -11.23040214 | R24: -11.06666963 | S24: -10.03014591 | T24: -8.822519678 | U24: -7.78916188 | V24: -6.769449556 | W24: -5.725047511 | X24: -4.640449951 | Y24: -4.042759714 | Z24: -3.454044111 | AA24: -2.865531074 | AB24: -2.262036913 | AC24: -1.702002539 | AD24: -1.129246959 | AE24: -0.552869993
B25: Simulation 24 | C25: 6.649662525 | D25: 4.360590551 | E25: 9.492696835 | F25: 18.58094378 | G25: 16.5446341 | H25: 21.3595585 | I25: 16.52781433 | J25: 14.01308038 | K25: 11.06134873 | L25: 10.31127594 | M25: 11.94784326 | N25: 9.175017315 | O25: 7.114773635 | P25: 5.162913161 | Q25: 4.503325248 | R25: 4.00067595 | S25: 2.7060751 | T25: 2.026244613 | U25: 1.706989882 | V25: 1.246233248 | W25: 0.8102229231 | X25: 0.5406528581 | Y25: 0.463911864 | Z25: 0.3912954382 | AA25: 0.3189010005 | AB25: 0.2484068675 | AC25: 0.1963452556 | AD25: 0.1354861933 | AE25: 0.06756366517
B26: Simulation 25 | C26: 6.649662525 | D26: 0.8079133488 | E26: 0.2607327144 | F26: -0.5573035349 | G26: 6.235035991 | H26: 8.620954035 | I26: 9.01964087 | J26: 7.950083946 | K26: 6.613044463 | L26: 7.392222064 | M26: 9.696574378 | N26: 9.991844657 | O26: 8.885633946 | P26: 10.60642529 | Q26: 10.58453797 | R26: 10.70863119 | S26: 9.99999044 | T26: 8.848587541 | U26: 8.138859839 | V26: 7.635642143 | W26: 6.588159693 | X26: 5.860480007 | Y26: 5.064053575 | Z26: 5.439235787 | AA26: 4.554019548 | AB26: 4.839710444 | AC26: 3.883520697 | AD26: 4.0476844 | AE26: 2.911978596
B27: Simulation 26 | C27: 6.649662525 | D27: 6.819609171 | E27: -0.5007391707 | F27: 3.099212843 | G27: 8.472843809 | H27: 15.18057613 | I27: 18.90316274 | J27: 17.06938782 | K27: 16.13797799 | L27: 19.17135766 | M27: 21.63358974 | N27: 21.52368683 | O27: 17.63922584 | P27: 17.94902681 | Q27: 15.47499225 | R27: 14.70217375 | S27: 11.70222817 | T27: 9.192590242 | U27: 7.977290226 | V27: 6.518834917 | W27: 4.884304015 | X27: 3.417449619 | Y27: 2.250032489 | Z27: 2.329854421 | AA27: 1.193957778 | AB27: 1.33679332 | AC27: 0.3484154331 | AD27: 0.5434730121 | AE27: -0.4763506103
B28: Simulation 27 | C28: 6.649662525 | D28: 4.222870664 | E28: 8.404993523 | F28: 6.323421993 | G28: 8.289110714 | H28: 5.094963052 | I28: 13.27701192 | J28: 20.34376674 | K28: 18.68234835 | L28: 17.64938209 | M28: 17.12875563 | N28: 18.85829396 | O28: 17.82122191 | P28: 18.20712394 | Q28: 16.16813856 | R28: 15.11712771 | S28: 13.23677371 | T28: 12.43188044 | U28: 11.62777986 | V28: 10.64401005 | W28: 9.903085627 | X28: 9.00300041 | Y28: 7.969824289 | Z28: 8.108438254 | AA28: 6.946422876 | AB28: 6.949916454 | AC28: 5.763762478 | AD28: 5.707944132 | AE28: 4.345636475
B29: Simulation 28 | C29: 6.649662525 | D29: 3.25151575 | E29: 8.987456307 | F29: 5.231169648 | G29: 4.245874614 | H29: 1.240963533 | I29: -4.619162394 | J29: -3.511787689 | K29: -5.318628239 | L29: -6.399850361 | M29: -5.207443026 | N29: -4.628422942 | O29: -5.52762788 | P29: -5.498660927 | Q29: -4.931255957 | R29: -5.635045637 | S29: -5.441947976 | T29: -5.231041423 | U29: -4.88006739 | V29: -4.354666603 | W29: -3.802495388 | X29: -3.198431682 | Y29: -2.846036994 | Z29: -2.477751316 | AA29: -2.090426122 | AB29: -1.680226351 | AC29: -1.282284079 | AD29: -0.8629360426 | AE29: -0.4287234569
B30: Simulation 29 | C30: 6.649662525 | D30: 7.769666936 | E30: 5.543483929 | F30: 7.795276785 | G30: 5.643533924 | H30: 8.643597215 | I30: 9.423193827 | J30: 11.39977027 | K30: 17.23627297 | L30: 19.8393511 | M30: 19.80068619 | N30: 18.76479591 | O30: 18.88154987 | P30: 18.01949505 | Q30: 17.6279129 | R30: 16.9031116 | S30: 15.34326286 | T30: 14.54141074 | U30: 13.61680308 | V30: 12.44149435 | W30: 11.34196267 | X30: 10.24585947 | Y30: 8.977166186 | Z30: 8.874711537 | AA30: 7.537031664 | AB30: 7.382689479 | AC30: 6.057272512 | AD30: 5.864051362 | AE30: 4.366686195
B31: Simulation 30 | C31: 6.649662525 | D31: 1.473599419 | E31: -5.324717822 | F31: -7.697380785 | G31: -10.09218145 | H31: -9.847686472 | I31: -12.35378012 | J31: -9.999586538 | K31: -10.99015441 | L31: -10.4993107 | M31: -9.724279312 | N31: -8.48549681 | O31: -8.451880181 | P31: -6.73107304 | Q31: -6.2020432 | R31: -5.21826597 | S31: -4.748379263 | T31: -3.986117749 | U31: -3.448874574 | V31: -2.967828747 | W31: -2.46315434 | X31: -1.980507985 | Y31: -1.717825231 | Z31: -1.470088513 | AA31: -1.219363101 | AB31: -0.9732545773 | AC31: -0.7380589325 | AD31: -0.4969658997 | AE31: -0.2487850021
B32: Simulation 31 | C32: 6.649662525 | D32: 1.537686155 | E32: 4.44734793 | F32: 2.527959314 | G32: 3.332579569 | H32: 11.32442426 | I32: 12.3550994 | J32: 17.5569035 | K32: 26.15679673 | L32: 20.82213262 | M32: 26.00470288 | N32: 28.85055199 | O32: 29.87105317 | P32: 28.66164061 | Q32: 29.99935297 | R32: 29.01617237 | S32: 26.98227635 | T32: 25.58690571 | U32: 24.30192086 | V32: 23.08131232 | W32: 21.88462452 | X32: 20.60469605 | Y32: 18.85609066 | Z32: 18.20174537 | AA32: 16.18872658 | AB32: 15.32994737 | AC32: 13.33139876 | AD32: 12.39352211 | AE32: 10.10191131
B33: Simulation 32 | C33: 6.649662525 | D33: 4.74372714 | E33: -3.68614824 | F33: 3.939294563 | G33: 5.480110586 | H33: -2.451349929 | I33: -7.165541532 | J33: -8.350775523 | K33: -6.502049026 | L33: -8.540668025 | M33: -8.90373361 | N33: -9.012081411 | O33: -8.771662871 | P33: -8.816028435 | Q33: -8.027737688 | R33: -7.370024973 | S33: -6.72149351 | T33: -5.947410534 | U33: -5.291910422 | V33: -4.507669613 | W33: -3.778942397 | X33: -3.027832468 | Y33: -2.5996046 | Z33: -2.188676649 | AA33: -1.786681361 | AB33: -1.383805951 | AC33: -1.021280339 | AD33: -0.6627968611 | AE33: -0.3170451333
B34: Simulation 33 | C34: 6.649662525 | D34: 10.64791558 | E34: 19.32719191 | F34: 30.57810643 | G34: 24.87240666 | H34: 20.83018535 | I34: 25.08282544 | J34: 26.24635756 | K34: 29.53274907 | L34: 26.86192541 | M34: 25.424456 | N34: 25.91104279 | O34: 25.06092327 | P34: 26.53355008 | Q34: 26.50981948 | R34: 25.48445844 | S34: 23.45656625 | T34: 23.00016387 | U34: 22.08315495 | V34: 21.04149801 | W34: 19.82054076 | X34: 18.332298 | Y34: 16.61563063 | Z34: 16.09702723 | AA34: 14.22723443 | AB34: 13.49157682 | AC34: 11.61314245 | AD34: 10.82129574 | AE34: 8.699593544
B35: Simulation 34 | C35: 6.649662525 | D35: 8.098571509 | E35: 13.57004182 | F35: 12.25509949 | G35: 16.92072899 | H35: 21.30289027 | I35: 16.87524531 | J35: 11.60878233 | K35: 10.14356529 | L35: 10.3653139 | M35: 10.01291064 | N35: 11.89498634 | O35: 14.76964222 | P35: 15.1753707 | Q35: 14.94276517 | R35: 13.98000412 | S35: 14.18407731 | T35: 12.72074321 | U35: 11.94267913 | V35: 10.70841555 | W35: 9.342771871 | X35: 8.214906212 | Y35: 6.967878751 | Z35: 6.913297243 | AA35: 5.564750527 | AB35: 5.425539431 | AC35: 4.121588233 | AD35: 3.972706728 | AE35: 2.561780829
B36: Simulation 35 | C36: 6.649662525 | D36: 0.896067316 | E36: -4.440572358 | F36: -2.734111446 | G36: 3.796827673 | H36: 7.487927818 | I36: 12.03029619 | J36: 16.56699265 | K36: 16.07526634 | L36: 23.22869054 | M36: 25.24425903 | N36: 24.06317843 | O36: 23.34314975 | P36: 24.03571132 | Q36: 23.37232239 | R36: 23.02526838 | S36: 22.56866521 | T36: 22.10904976 | U36: 21.04841754 | V36: 19.65341275 | W36: 18.64712536 | X36: 17.32467646 | Y36: 15.70134879 | Z36: 15.18613729 | AA36: 13.38276215 | AB36: 12.69506477 | AC36: 10.84672312 | AD36: 10.09778808 | AE36: 8.018027623
B37: Simulation 36 | C37: 6.649662525 | D37: 9.46576859 | E37: 15.62848572 | F37: 11.73348975 | G37: 10.11487985 | H37: 9.688581668 | I37: 12.92040142 | J37: 13.79465582 | K37: 19.80990065 | L37: 19.71489189 | M37: 19.70190729 | N37: 20.00274014 | O37: 19.57316517 | P37: 18.90877491 | Q37: 17.40084303 | R37: 17.04981439 | S37: 16.52663449 | T37: 14.19828123 | U37: 12.53154688 | V37: 11.12712037 | W37: 9.524400172 | X37: 8.270771765 | Y37: 6.6491702 | Z37: 6.308239312 | AA37: 4.709318658 | AB37: 4.36624499 | AC37: 2.893278881 | AD37: 2.621804548 | AE37: 1.112773925
B38: Simulation 37 | C38: 6.649662525 | D38: 9.720143421 | E38: 10.08942064 | F38: -1.037363871 | G38: -0.4262390017 | H38: 2.728257833 | I38: -0.8935895853 | J38: 4.378601852 | K38: 5.79027745 | L38: 4.47046615 | M38: 3.744423349 | N38: 5.126487566 | O38: 4.504481869 | P38: 5.099624769 | Q38: 5.51541966 | R38: 4.889549981 | S38: 3.896152097 | T38: 2.964547852 | U38: 2.583935269 | V38: 2.05586457 | W38: 1.434862773 | X38: 1.045401901 | Y38: 0.9182880174 | Z38: 0.7821148848 | AA38: 0.6414146474 | AB38: 0.4964618864 | AC38: 0.3769924391 | AD38: 0.2502370871 | AE38: 0.1202374152
B39: Simulation 38 | C39: 6.649662525 | D39: 3.285084301 | E39: 11.11732681 | F39: 7.107604826 | G39: 10.48559916 | H39: 15.92713938 | I39: 17.99602502 | J39: 13.65024845 | K39: 8.494065997 | L39: 6.353067463 | M39: 5.240762258 | N39: 6.031722968 | O39: 6.985933131 | P39: 7.139620146 | Q39: 7.80226819 | R39: 6.801432574 | S39: 6.004885818 | T39: 5.405847513 | U39: 4.6097726 | V39: 3.896213624 | W39: 2.98653272 | X39: 1.758054109 | Y39: 1.570079012 | Z39: 1.371360154 | AA39: 1.158961158 | AB39: 0.9298245491 | AC39: 0.7234836505 | AD39: 0.4953973536 | AE39: 0.2482696373
B40: Simulation 39 | C40: 6.649662525 | D40: 10.30117046 | E40: 6.189173753 | F40: 8.156800102 | G40: 10.09607366 | H40: 16.00008803 | I40: 23.56972723 | J40: 21.68482453 | K40: 20.7603448 | L40: 22.30334009 | M40: 22.19313592 | N40: 19.40836593 | O40: 21.40812862 | P40: 21.12790339 | Q40: 19.97937682 | R40: 17.74179016 | S40: 18.12914701 | T40: 16.69595417 | U40: 15.63434487 | V40: 14.59935296 | W40: 13.41251362 | X40: 12.40740658 | Y40: 11.0038736 | Z40: 10.84000809 | AA40: 9.367580541 | AB40: 9.035449453 | AC40: 7.54883571 | AD40: 7.170278451 | AE40: 5.49447982
B41: Simulation 40 | C41: 6.649662525 | D41: 10.98489942 | E41: 20.39897601 | F41: 26.04057673 | G41: 29.16640236 | H41: 37.83720728 | I41: 33.8234591 | J41: 33.82027145 | K41: 27.69312892 | L41: 33.11949443 | M41: 31.35855116 | N41: 33.64757092 | O41: 30.96399145 | P41: 30.66731085 | Q41: 29.87324371 | R41: 30.00628701 | S41: 29.48315405 | T41: 27.61241806 | U41: 26.1336893 | V41: 24.22281545 | W41: 22.55136536 | X41: 20.53560391 | Y41: 18.28520908 | Z41: 17.2885812 | AA41: 14.94705314 | AB41: 13.79915516 | AC41: 11.55848812 | AD41: 10.43635164 | AE41: 8.014299021
B42: Simulation 41 | C42: 6.649662525 | D42: -0.6624884002 | E42: -0.05816286673 | F42: 0.5860859729 | G42: 3.483909625 | H42: 0.5345542932 | I42: -4.54576109 | J42: -5.817025536 | K42: -8.32253196 | L42: -8.404584239 | M42: -10.57492293 | N42: -7.74548894 | O42: -10.14944247 | P42: -9.649475641 | Q42: -9.130459421 | R42: -9.514036597 | S42: -8.395271474 | T42: -7.74260004 | U42: -6.999487946 | V42: -6.26149133 | W42: -5.409220468 | X42: -4.503675049 | Y42: -3.999301622 | Z42: -3.475151601 | AA42: -2.933263069 | AB42: -2.349895793 | AC42: -1.794373875 | AD42: -1.209416588 | AE42: -0.601960885
B43: Simulation 42 | C43: 6.649662525 | D43: 4.598479388 | E43: 15.21658195 | F43: 10.01260697 | G43: 18.24177641 | H43: 11.02220315 | I43: 1.667614504 | J43: 0.7324509677 | K43: -0.03615354806 | L43: 0.6039522631 | M43: 5.703213999 | N43: 6.273778191 | O43: 5.875050539 | P43: 5.272282346 | Q43: 3.233248939 | R43: 2.944092217 | S43: 2.867005835 | T43: 2.800452056 | U43: 2.440998387 | V43: 2.047050279 | W43: 1.263615471 | X43: 0.9056618924 | Y43: 0.8266782813 | Z43: 0.7465099098 | AA43: 0.6423507563 | AB43: 0.5225956231 | AC43: 0.4182171366 | AD43: 0.2928111565 | AE43: 0.1491993431
B44: Simulation 43 | C44: 6.649662525 | D44: 2.306770386 | E44: -6.861645562 | F44: 1.497703227 | G44: 6.087602297 | H44: 9.698231471 | I44: 8.998086514 | J44: 0.4322834844 | K44: -4.537415357 | L44: -5.464353762 | M44: -0.3954063891 | N44: -1.216422582 | O44: -0.2358959902 | P44: -2.30286544 | Q44: -2.042709293 | R44: -2.75770107 | S44: -1.241903273 | T44: -1.103146581 | U44: -0.8644381884 | V44: -0.6334114608 | W44: -0.6110498837 | X44: -0.3994925934 | Y44: -0.264399587 | Z44: -0.1511382671 | AA44: -0.06979973724 | AB44: -0.008461455703 | AC44: 0.03507431948 | AD44: 0.05292243491 | AE44: 0.03921604427
B45: Simulation 44 | C45: 6.649662525 | D45: 11.41013911 | E45: 23.67067859 | F45: 17.43453892 | G45: 24.12447498 | H45: 29.62604986 | I45: 26.3020128 | J45: 24.01824147 | K45: 19.87584819 | L45: 18.71412729 | M45: 17.80651551 | N45: 19.11462151 | O45: 19.38114085 | P45: 18.50406072 | Q45: 17.77633647 | R45: 17.06662628 | S45: 16.01101231 | T45: 15.00227118 | U45: 14.17728302 | V45: 13.03449918 | W45: 11.6759383 | X45: 10.74645461 | Y45: 9.385197619 | Z45: 9.231829545 | AA45: 7.759315475 | AB45: 7.494215542 | AC45: 6.072373662 | AD45: 5.772055378 | AE45: 4.193865732
B46: Simulation 45 | C46: 6.649662525 | D46: 13.16911509 | E46: 16.11621819 | F46: 18.28628967 | G46: 13.11860716 | H46: 13.73869024 | I46: 14.58683823 | J46: 17.39172564 | K46: 13.51036347 | L46: 15.3215408 | M46: 18.71804485 | N46: 20.04283253 | O46: 17.55161399 | P46: 15.52036264 | Q46: 12.9005845 | R46: 12.01451615 | S46: 9.648573729 | T46: 8.507015449 | U46: 7.204618754 | V46: 5.887261444 | W46: 4.127221208 | X46: 2.776793765 | Y46: 2.363911248 | Z46: 1.968198499 | AA46: 1.581174433 | AB46: 1.203285426 | AC46: 0.8898836545 | AD46: 0.5774448802 | AE46: 0.2737312815
B47: Simulation 46 | C47: 6.649662525 | D47: -1.207509283 | E47: 1.498466891 | F47: 0.789764818 | G47: 1.565780145 | H47: 0.5257640155 | I47: 1.620403557 | J47: 0.8813090516 | K47: 1.190418397 | L47: 1.283785131 | M47: 2.282986416 | N47: 0.2846925957 | O47: 0.9094129156 | P47: -0.01789855567 | Q47: -0.08638021493 | R47: 0.3626410226 | S47: -0.06623588685 | T47: -0.4553123912 | U47: -0.4535135748 | V47: -0.4864925507 | W47: -0.4938652957 | X47: -0.4773655081 | Y47: -0.4318123428 | Z47: -0.3937161092 | AA47: -0.3528190724 | AB47: -0.2963582404 | AC47: -0.2292551593 | AD47: -0.157153163 | AE47: -0.08156563385
B48: Simulation 47 | C48: 6.649662525 | D48: 4.414312159 | E48: 18.12543803 | F48: 21.87221431 | G48: 22.40642937 | H48: 21.68487335 | I48: 17.8875187 | J48: 18.40419049 | K48: 20.88187167 | L48: 22.70344904 | M48: 21.4241199 | N48: 19.74190323 | O48: 22.01372062 | P48: 19.47206871 | Q48: 18.27628789 | R48: 17.24561415 | S48: 17.17716782 | T48: 16.42512092 | U48: 15.64163591 | V48: 14.89832574 | W48: 14.15442514 | X48: 13.27412653 | Y48: 12.0090222 | Z48: 11.89089209 | AA48: 10.48455582 | AB48: 10.23032614 | AC48: 8.793410559 | AD48: 8.447074915 | AE48: 6.769813064
B49: Simulation 48 | C49: 6.649662525 | D49: 16.83955967 | E49: 20.85509472 | F49: 21.70653705 | G49: 17.35300404 | H49: 17.5220957 | I49: 20.30279994 | J49: 21.46501114 | K49: 18.09566239 | L49: 17.2759597 | M49: 20.55676169 | N49: 22.12698054 | O49: 22.15183476 | P49: 26.42208304 | Q49: 26.80373088 | R49: 26.60242114 | S49: 25.0377691 | T49: 24.33406128 | U49: 23.52493268 | V49: 22.78490763 | W49: 21.44747618 | X49: 20.19621458 | Y49: 18.62969792 | Z49: 18.15072756 | AA49: 16.35468783 | AB49: 15.67634839 | AC49: 13.81377838 | AD49: 13.00054099 | AE49: 10.81815323
B50: Simulation 49 | C50: 6.649662525 | D50: 6.031868308 | E50: -0.4187323718 | F50: 3.779430887 | G50: 0.3413892481 | H50: 0.2464221221 | I50: 5.262452311 | J50: 8.27196489 | K50: 13.77100059 | L50: 10.36174481 | M50: 10.45858038 | N50: 9.363088588 | O50: 9.112178936 | P50: 9.401188823 | Q50: 8.296498327 | R50: 7.722381438 | S50: 6.74736818 | T50: 6.216389411 | U50: 5.504113576 | V50: 4.540817924 | W50: 3.3020912 | X50: 2.208567384 | Y50: 1.94150419 | Z50: 1.660443699 | AA50: 1.377409425 | AB50: 1.081181269 | AC50: 0.822218331 | AD50: 0.5492577568 | AE50: 0.2682952386
B51: Simulation 50 | C51: 6.649662525 | D51: 9.63648747 | E51: 21.81884414 | F51: 29.57355679 | G51: 28.27447991 | H51: 29.01920837 | I51: 28.91487454 | J51: 28.03296449 | K51: 20.84225617 | L51: 20.28406472 | M51: 17.55628014 | N51: 13.88782047 | O51: 12.03359035 | P51: 7.984115647 | Q51: 7.583605348 | R51: 6.147094786 | S51: 6.206204564 | T51: 5.432179013 | U51: 4.393808719 | V51: 3.381802804 | W51: 2.21604333 | X51: 1.396603152 | Y51: 1.186570331 | Z51: 0.9957300505 | AA51: 0.8075583453 | AB51: 0.6265711798 | AC51: 0.4788622758 | AD51: 0.3230789414 | AE51: 0.1598814341
B52: Simulation 51 | C52: 6.649662525 | D52: 17.46790458 | E52: 20.90185244 | F52: 19.64181729 | G52: 25.100754 | H52: 24.21841663 | I52: 27.37722581 | J52: 23.61245054 | K52: 21.89510762 | L52: 21.05095092 | M52: 18.42716584 | N52: 15.87901505 | O52: 12.2126633 | P52: 11.73653974 | Q52: 12.44394299 | R52: 11.65918135 | S52: 11.30534371 | T52: 11.02854341 | U52: 10.37011905 | V52: 9.526848893 | W52: 8.871123025 | X52: 8.223325646 | Y52: 7.265312315 | Z52: 7.484149436 | AA52: 6.405515821 | AB52: 6.535298151 | AC52: 5.45874011 | AD52: 5.498768282 | AE52: 4.238379197
B53: Simulation 52 | C53: 6.649662525 | D53: 7.933083474 | E53: -0.198238612 | F53: 0.1765188735 | G53: 0.9539145695 | H53: 4.352132584 | I53: 4.169535675 | J53: 5.354877141 | K53: 7.903398575 | L53: 6.889092424 | M53: 7.2582127 | N53: 4.130281236 | O53: 3.542929342 | P53: 3.997650001 | Q53: 5.523846137 | R53: 5.544539469 | S53: 6.158060756 | T53: 5.409674597 | U53: 5.210181052 | V53: 4.665449558 | W53: 3.642206271 | X53: 3.115545864 | Y53: 2.535292258 | Z53: 3.110352841 | AA53: 2.405170542 | AB53: 2.89023643 | AC53: 2.152113554 | AD53: 2.536175952 | AE53: 1.638090566
B54: Simulation 53 | C54: 6.649662525 | D54: 8.206792806 | E54: -0.6193326752 | F54: 5.737520348 | G54: 3.012518346 | H54: -4.469058871 | I54: 1.148177391 | J54: -1.267818807 | K54: -2.086316002 | L54: -0.1941115263 | M54: 1.223841625 | N54: -1.013359833 | O54: -2.144490865 | P54: -3.59984869 | Q54: -4.195974396 | R54: -4.600234809 | S54: -4.326445386 | T54: -3.605515279 | U54: -3.42390238 | V54: -2.97385931 | W54: -2.538451174 | X54: -2.036138009 | Y54: -1.754793552 | Z54: -1.473050945 | AA54: -1.198752737 | AB54: -0.9202273358 | AC54: -0.6663132491 | AD54: -0.4227343344 | AE54: -0.1971606407
B55: Simulation 54 | C55: 6.649662525 | D55: 16.81768139 | E55: 16.874486 | F55: 10.87085894 | G55: -0.94849484 | H55: 4.383228272 | I55: 0.3711119183 | J55: 4.043078256 | K55: 4.809349951 | L55: 6.457352898 | M55: 11.35983975 | N55: 13.7658545 | O55: 11.91491373 | P55: 11.7639613 | Q55: 13.1659417 | R55: 13.21158207 | S55: 13.30120694 | T55: 12.65138704 | U55: 12.38435942 | V55: 11.55689983 | W55: 10.05804586 | X55: 9.078035592 | Y55: 7.876955286 | Z55: 7.888477122 | AA55: 6.550658896 | AB55: 6.402334521 | AC55: 5.077748016 | AD55: 4.886819377 | AE55: 3.406022658
B56: Simulation 55 | C56: 6.649662525 | D56: 0.5484903924 | E56: 6.540910441 | F56: 3.382723642 | G56: 10.40563188 | H56: 13.95962966 | I56: 17.5853589 | J56: 17.2532782 | K56: 17.28461365 | L56: 18.8818292 | M56: 19.47388053 | N56: 21.67950978 | O56: 22.30346344 | P56: 23.24202413 | Q56: 23.0955659 | R56: 21.72594716 | S56: 18.34176341 | T56: 17.10940291 | U56: 16.11365928 | V56: 15.17253574 | W56: 13.74480366 | X56: 12.56486391 | Y56: 11.09021778 | Z56: 10.83609119 | AA56: 9.314134339 | AB56: 8.974160023 | AC56: 7.459807488 | AD56: 7.081041801 | AE56: 5.411386006
B57: Simulation 56 | C57: 6.649662525 | D57: -4.125375362 | E57: -9.069614345 | F57: -7.835474931 | G57: -9.434292662 | H57: -4.122577115 | I57: 1.541036713 | J57: 7.418630495 | K57: 4.994635379 | L57: 5.579415098 | M57: 5.451825898 | N57: 4.402010898 | O57: 5.585392086 | P57: 6.073978782 | Q57: 6.09653291 | R57: 7.33419115 | S57: 7.618786888 | T57: 8.426164675 | U57: 8.085371353 | V57: 7.582714563 | W57: 7.027571144 | X57: 6.539463357 | Y57: 5.875395249 | Z57: 6.354095202 | AA57: 5.496765397 | AB57: 5.796105834 | AC57: 4.847086717 | AD57: 4.999957342 | AE57: 3.840404713
B58: Simulation 57 | C58: 6.649662525 | D58: 5.506845825 | E58: 1.98893008 | F58: 8.03366036 | G58: 12.54709551 | H58: 9.64012707 | I58: 11.16859675 | J58: 8.423729962 | K58: 2.162192314 | L58: 2.493513936 | M58: 1.019005265 | N58: -1.076479174 | O58: -2.013801535 | P58: -2.598674073 | Q58: -3.424954268 | R58: -3.99542691 | S58: -3.64338308 | T58: -3.523029157 | U58: -3.386046513 | V58: -3.102294599 | W58: -2.754307229 | X58: -2.38364678 | Y58: -2.133346551 | Z58: -1.869281908 | AA58: -1.593155222 | AB58: -1.290070339 | AC58: -0.9892562243 | AD58: -0.6694688386 | AE58: -0.3343993689
B59: Simulation 58 | C59: 6.649662525 | D59: -2.472786195 | E59: -1.88750569 | F59: -8.346711913 | G59: -10.66359953 | H59: -2.735324026 | I59: -5.966201202 | J59: -5.70550373 | K59: -1.019033284 | L59: -2.903097548 | M59: -2.040412678 | N59: -3.950141406 | O59: -4.60472432 | P59: -3.543434165 | Q59: -3.669809538 | R59: -3.997167042 | S59: -4.149579857 | T59: -3.895244329 | U59: -3.544239854 | V59: -3.106884187 | W59: -2.688516685 | X59: -2.23206543 | Y59: -1.950977713 | Z59: -1.67215594 | AA59: -1.387824482 | AB59: -1.094396945 | AC59: -0.8174838316 | AD59: -0.5379128931 | AE59: -0.2613324578
B60: Simulation 59 | C60: 6.649662525 | D60: 10.96929673 | E60: 5.848734226 | F60: 10.32197995 | G60: 8.025549689 | H60: 2.69058806 | I60: -1.781486721 | J60: 1.097808013 | K60: -5.087661806 | L60: -4.552060301 | M60: -6.205593849 | N60: -6.064011435 | O60: -7.349796778 | P60: -7.412106125 | Q60: -7.253969771 | R60: -6.609229567 | S60: -6.098171756 | T60: -5.72155624 | U60: -5.067897696 | V60: -4.277171547 | W60: -3.573686525 | X60: -2.848384173 | Y60: -2.440763516 | Z60: -2.041253556 | AA60: -1.647484195 | AB60: -1.257230017 | AC60: -0.9086008645 | AD60: -0.5757594394 | AE60: -0.266881985
B61: Simulation 60 | C61: 6.649662525 | D61: 2.586913358 | E61: -7.12516478 | F61: -6.858290509 | G61: -11.22912466 | H61: -16.44773502 | I61: -12.67127717 | J61: -11.91480473 | K61: -9.969140363 | L61: -11.07734093 | M61: -7.645629468 | N61: -8.282745934 | O61: -3.986524079 | P61: -2.426520524 | Q61: -1.098164167 | R61: -1.960301609 | S61: -1.80359597 | T61: -1.477589473 | U61: -0.9176193141 | V61: -0.8441415926 | W61: -0.6911223819 | X61: -0.4403961307 | Y61: -0.2687311312 | Z61: -0.1347356524 | AA61: -0.0368796118 | AB61: 0.03534037711 | AC61: 0.07873077688 | AD61: 0.0892153366 | AE61: 0.06107257687
B62: Simulation 61 | C62: 6.649662525 | D62: 10.1287126 | E62: 8.494932374 | F62: 7.295884244 | G62: 9.604073537 | H62: 10.54141484 | I62: 7.665977488 | J62: 10.39687151 | K62: 9.595006144 | L62: 9.262800135 | M62: 10.5697896 | N62: 8.645829807 | O62: 7.700959603 | P62: 6.386551493 | Q62: 7.833575779 | R62: 6.671951388 | S62: 5.363782159 | T62: 5.916163326 | U62: 5.756668645 | V62: 5.031617402 | W62: 4.228167329 | X62: 3.861999076 | Y62: 3.293227386 | Z62: 3.902028025 | AA62: 3.19546765 | AB62: 3.721167798 | AC62: 2.993829169 | AD62: 3.379745334 | AE62: 2.473989145
B63: Simulation 62 | C63: 6.649662525 | D63: 2.810373659 | E63: 2.884604893 | F63: -0.4230197235 | G63: -4.228065962 | H63: -1.418581836 | I63: -2.124585131 | J63: 1.082471523 | K63: -2.122540191 | L63: -4.042685003 | M63: -0.08889494955 | N63: -0.07156023815 | O63: 0.9856249868 | P63: 1.757355801 | Q63: 3.688514459 | R63: 3.084037267 | S63: 3.386327706 | T63: 3.228290255 | U63: 2.953689791 | V63: 2.744805113 | W63: 1.929124071 | X63: 1.159594273 | Y63: 1.08977013 | Z63: 0.9876804756 | AA63: 0.8632196251 | AB63: 0.717078814 | AC63: 0.5763971453 | AD63: 0.4072141552 | AE63: 0.2092975002
B64: Simulation 63 | C64: 6.649662525 | D64: 0.4308380174 | E64: -1.674451417 | F64: -0.5001497958 | G64: 7.483927608 | H64: -0.3384971098 | I64: -0.184644204 | J64: 5.176204944 | K64: 10.49939157 | L64: 11.90603234 | M64: 5.99779413 | N64: 6.43679794 | O64: 6.255921439 | P64: 7.517894154 | Q64: 7.092530245 | R64: 5.868010787 | S64: 5.75704367 | T64: 5.08522794 | U64: 4.503294329 | V64: 3.806571555 | W64: 3.034017387 | X64: 2.57732639 | Y64: 2.036196192 | Z64: 2.687773391 | AA64: 2.058463917 | AB64: 2.649380578 | AC64: 1.962522797 | AD64: 2.433379631 | AE64: 1.598897191
B65: Simulation 64 | C65: 6.649662525 | D65: 11.30418207 | E65: 9.314817086 | F65: 10.77082623 | G65: 14.67865603 | H65: 23.04254286 | I65: 20.75526479 | J65: 24.71683688 | K65: 23.46612367 | L65: 21.37683398 | M65: 23.16070352 | N65: 21.7647401 | O65: 20.55671641 | P65: 20.67730262 | Q65: 19.31930306 | R65: 18.42469207 | S65: 17.22442692 | T65: 16.54939654 | U65: 15.34471188 | V65: 13.95322055 | W65: 12.65525195 | X65: 11.37134328 | Y65: 9.824033186 | Z65: 9.526945698 | AA65: 7.938716637 | AB65: 7.547202273 | AC65: 6.022808682 | AD65: 5.639392145 | AE65: 3.96357458
B66: Simulation 65 | C66: 6.649662525 | D66: -2.921138981 | E66: 6.808519207 | F66: 4.473535736 | G66: 8.152220271 | H66: 11.67674274 | I66: 15.92362217 | J66: 11.68826096 | K66: 12.50993832 | L66: 13.24332334 | M66: 13.49012556 | N66: 11.77160099 | O66: 8.756369804 | P66: 7.689785606 | Q66: 6.86255169 | R66: 5.223615988 | S66: 5.442340015 | T66: 4.789801351 | U66: 4.233702532 | V66: 3.437820238 | W66: 2.432254318 | X66: 1.57647322 | Y66: 1.399124982 | Z66: 1.212604631 | AA66: 1.013312425 | AB66: 0.80718944 | AC66: 0.6250035139 | AD66: 0.4255328788 | AE66: 0.2121133959
B67: Simulation 66 | C67: 6.649662525 | D67: 9.391209268 | E67: 10.33375662 | F67: 7.678202625 | G67: 17.04009768 | H67: 20.67226391 | I67: 24.21987102 | J67: 24.49463727 | K67: 22.36164549 | L67: 21.0620411 | M67: 19.01577168 | N67: 18.59605055 | O67: 19.07135721 | P67: 18.0086813 | Q67: 18.40033268 | R67: 18.62546845 | S67: 19.29118455 | T67: 18.94425889 | U67: 17.84479057 | V67: 16.55471991 | W67: 15.16112072 | X67: 13.93614724 | Y67: 12.36501659 | Z67: 11.96182369 | AA67: 10.27813886 | AB67: 9.75069962 | AC67: 8.072253224 | AD67: 7.512635675 | AE67: 5.64480434
B68: Simulation 67 | C68: 6.649662525 | D68: 14.77792901 | E68: 22.48529571 | F68: 21.37799218 | G68: 24.06230821 | H68: 15.86850748 | I68: 15.04965951 | J68: 10.23123664 | K68: 9.756971686 | L68: 10.31115651 | M68: 8.996297079 | N68: 10.16467403 | O68: 10.35302697 | P68: 11.32226289 | Q68: 9.77180028 | R68: 8.346805702 | S68: 6.475274538 | T68: 5.905991732 | U68: 5.081550566 | V68: 4.22654169 | W68: 2.990282848 | X68: 1.806978292 | Y68: 1.60128787 | Z68: 1.387235069 | AA68: 1.159992305 | AB68: 0.9224202757 | AC68: 0.7139609497 | AD68: 0.4868584229 | AE68: 0.2426922362
B69: Simulation 68 | C69: 6.649662525 | D69: 15.30126158 | E69: 5.750189304 | F69: 1.319212223 | G69: 2.235963767 | H69: 12.32102704 | I69: 9.265564275 | J69: 4.401022448 | K69: 4.396863645 | L69: 4.319739962 | M69: 7.020968729 | N69: 10.09241038 | O69: 10.47761452 | P69: 10.45712398 | Q69: 9.853253551 | R69: 9.070248126 | S69: 8.292807257 | T69: 7.479514187 | U69: 7.094761137 | V69: 6.250393554 | W69: 5.146751784 | X69: 4.491095274 | Y69: 3.634986243 | Z69: 3.977574789 | AA69: 3.02216259 | AB69: 3.3049027 | AC69: 2.386766661 | AD69: 2.603453837 | AE69: 1.547257274
B70: Simulation 69 | C70: 6.649662525 | D70: 15.70408803 | E70: 15.14903822 | F70: 16.77726872 | G70: 15.36096157 | H70: 16.66192756 | I70: 22.28603476 | J70: 26.30649344 | K70: 23.49544001 | L70: 21.19009004 | M70: 18.88597761 | N70: 18.74902127 | O70: 15.78466021 | P70: 14.86459814 | Q70: 13.37540897 | R70: 12.22882539 | S70: 10.33413857 | T70: 9.281228025 | U70: 8.226968255 | V70: 6.76048995 | W70: 5.166283673 | X70: 3.735063988 | Y70: 2.55104799 | Z70: 2.597132343 | AA70: 1.414266616 | AB70: 1.476180298 | AC70: 0.413056919 | AD70: 0.5403585325 | AE70: -0.575472123
B71: Simulation 70 | C71: 6.649662525 | D71: -2.599674067 | E71: -0.9611403713 | F71: -4.845882952 | G71: -1.035463646 | H71: 4.144337884 | I71: 7.2948058 | J71: 11.75142802 | K71: 11.85347563 | L71: 14.07281222 | M71: 16.2670484 | N71: 19.17792557 | O71: 19.74426587 | P71: 17.11053076 | Q71: 17.3813617 | R71: 17.5621109 | S71: 15.64111959 | T71: 14.50090132 | U71: 13.48652195 | V71: 12.30426494 | W71: 11.0515006 | X71: 9.954535286 | Y71: 8.603042028 | Z71: 8.392138246 | AA71: 6.894819227 | AB71: 6.59102982 | AC71: 5.157720136 | AD71: 4.853810909 | AE71: 3.287112034
B72: Simulation 71 | C72: 6.649662525 | D72: 6.669543103 | E72: 4.754239244 | F72: 2.57128355 | G72: 3.976617461 | H72: 1.626815302 | I72: -3.412338556 | J72: -1.3358993 | K72: -5.135814374 | L72: -5.166562604 | M72: -5.099489044 | N72: -7.063914683 | O72: -5.874070527 | P72: -4.811927943 | Q72: -4.445217541 | R72: -3.48472509 | S72: -3.186190163 | T72: -3.069941639 | U72: -2.549551794 | V72: -2.145542315 | W72: -1.819990386 | X72: -1.4003672 | Y72: -1.171779501 | Z72: -0.9639061348 | AA72: -0.7732060888 | AB72: -0.5883740955 | AC72: -0.4189003589 | AD72: -0.261484563 | AE72: -0.1211708466
B73: Simulation 72 | C73: 6.649662525 | D73: 6.648772048 | E73: 16.71070103 | F73: 12.1160378 | G73: 18.10718537 | H73: 17.36232787 | I73: 14.45608892 | J73: 17.10360125 | K73: 19.4079948 | L73: 18.00877528 | M73: 22.81883065 | N73: 22.13150769 | O73: 22.39926332 | P73: 20.69857692 | Q73: 20.62316153 | R73: 20.07420955 | S73: 18.82643648 | T73: 17.69485315 | U73: 16.25927825 | V73: 14.78346921 | W73: 13.33530463 | X73: 12.09191699 | Y73: 10.49650264 | Z73: 10.03545843 | AA73: 8.370620915 | AB73: 7.889181656 | AC73: 6.272272382 | AD73: 5.803226841 | AE73: 4.065835889
B74: Simulation 73 | C74: 6.649662525 | D74: 8.675384643 | E74: 12.56173244 | F74: 10.54703595 | G74: 10.65898511 | H74: 10.90847432 | I74: 10.22051728 | J74: 10.08490899 | K74: 15.21515296 | L74: 17.12355009 | M74: 17.55584063 | N74: 17.08451113 | O74: 18.85578893 | P74: 17.96511794 | Q74: 17.03726366 | R74: 15.6499949 | S74: 15.04389611 | T74: 14.43005513 | U74: 13.06960387 | V74: 12.06371922 | W74: 10.51671015 | X74: 9.367418035 | Y74: 7.885170879 | Z74: 7.621277512 | AA74: 6.098417589 | AB74: 5.741007487 | AC74: 4.25551313 | AD74: 3.918447846 | AE74: 2.331748956
B75: Simulation 74 | C75: 6.649662525 | D75: 8.769185068 | E75: 6.70754615 | F75: 7.993364821 | G75: 5.137217829 | H75: -0.8121779654 | I75: 1.078478802 | J75: 2.928527601 | K75: 0.3457325708 | L75: 1.768448118 | M75: 2.328020716 | N75: 2.775818104 | O75: 1.379794489 | P75: 1.235257897 | Q75: 1.808112149 | R75: 2.021565829 | S75: 1.92334553 | T75: 1.146549713 | U75: 1.089904199 | V75: 0.7501856766 | W75: 0.538663313 | X75: 0.4238096219 | Y75: 0.3894529187 | Z75: 0.3440379976 | AA75: 0.2860537747 | AB75: 0.2261016185 | AC75: 0.1807506543 | AD75: 0.1270085505 | AE75: 0.06318454052
B76: Simulation 75 | C76: 6.649662525 | D76: -2.309645523 | E76: -3.938462594 | F76: 7.32159481 | G76: 9.280264727 | H76: 5.195768269 | I76: 6.839953101 | J76: 1.154690069 | K76: 2.295192448 | L76: -0.1858542084 | M76: 0.1922124585 | N76: -3.338742271 | O76: -3.744240907 | P76: -5.192668735 | Q76: -4.373349214 | R76: -4.632992762 | S76: -4.208365617 | T76: -3.914536872 | U76: -3.596525953 | V76: -3.120782081 | W76: -2.638114194 | X76: -2.139091719 | Y76: -1.835260949 | Z76: -1.530471589 | AA76: -1.240728067 | AB76: -0.953123607 | AC76: -0.6910860641 | AD76: -0.4395195771 | AE76: -0.2059418569
B77: Simulation 76 | C77: 6.649662525 | D77: 7.128965503 | E77: 3.781176409 | F77: 2.246242881 | G77: 4.469383436 | H77: 4.351974994 | I77: 4.703303381 | J77: 5.596109809 | K77: 4.397337275 | L77: 4.434792819 | M77: 8.647307092 | N77: 13.68635139 | O77: 16.7853358 | P77: 17.05097507 | Q77: 17.10383661 | R77: 17.63718982 | S77: 17.08784038 | T77: 16.77773926 | U77: 16.0188479 | V77: 14.7860856 | W77: 14.35417637 | X77: 13.55318002 | Y77: 12.30331366 | Z77: 12.19628046 | AA77: 10.73898566 | AB77: 10.45181872 | AC77: 8.9633805 | AD77: 8.551522917 | AE77: 6.808167107
B78: Simulation 77 | C78: 6.649662525 | D78: 0.3521903722 | E78: -7.269668795 | F78: -4.188917556 | G78: 0.7084889536 | H78: 4.956836818 | I78: 4.69970463 | J78: 3.343083903 | K78: -0.1639757281 | L78: -0.7020769116 | M78: 1.46898212 | N78: -0.6869675258 | O78: 0.5071585444 | P78: -0.1476711942 | Q78: 0.5245343357 | R78: 0.8032635479 | S78: 0.5363846382 | T78: 0.2763703485 | U78: 0.1898592173 | V78: 0.05600428377 | W78: -0.05603830531 | X78: -0.1035227434 | Y78: -0.08441470367 | Z78: -0.07662023503 | AA78: -0.06943870669 | AB78: -0.06037771132 | AC78: -0.04054772483 | AD78: -0.02441338473 | AE78: -0.01229114784
B79: Simulation 78 | C79: 6.649662525 | D79: -0.8499881775 | E79: -10.85163636 | F79: -12.0828274 | G79: -13.03290793 | H79: -12.68532296 | I79: -11.84391801 | J79: -9.379106982 | K79: -8.434553793 | L79: -9.177364568 | M79: -9.65013101 | N79: -9.406076291 | O79: -8.987639028 | P79: -9.307873048 | Q79: -7.955474878 | R79: -7.947941718 | S79: -7.166253782 | T79: -6.060801043 | U79: -5.182466876 | V79: -4.411129485 | W79: -3.608646434 | X79: -2.827374198 | Y79: -2.404035103 | Z79: -2.003735191 | AA79: -1.620075734 | AB79: -1.238771208 | AC79: -0.9000812374 | AD79: -0.5739017448 | AE79: -0.2699891249
B80: Simulation 79 | C80: 6.649662525 | D80: 9.308595151 | E80: 16.41650723 | F80: 16.77075342 | G80: 14.44282004 | H80: 12.56753761 | I80: 2.46430715 | J80: 4.170483166 | K80: 5.450936906 | L80: 8.177082909 | M80: 7.894114124 | N80: 5.447746944 | O80: 4.139821915 | P80: 4.503396437 | Q80: 3.743117433 | R80: 2.571915881 | S80: 2.496132266 | T80: 1.828536091 | U80: 1.351063294 | V80: 0.8479215772 | W80: 0.4968747922 | X80: 0.2622724164 | Y80: 0.2015596222 | Z80: 0.1589547591 | AA80: 0.1163872085 | AB80: 0.08292944446 | AC80: 0.06527006416 | AD80: 0.0447412605 | AE80: 0.02141142352
B81: Simulation 80 | C81: 6.649662525 | D81: -2.451804486 | E81: 0.2159387874 | F81: 0.8665863541 | G81: -2.839932854 | H81: 2.833774516 | I81: 1.768561464 | J81: 4.76568098 | K81: 9.235208806 | L81: 9.505278263 | M81: 6.317969596 | N81: 7.159876261 | O81: 6.409873918 | P81: 6.204010326 | Q81: 6.086003419 | R81: 5.52200511 | S81: 4.822374621 | T81: 4.38691062 | U81: 3.994918454 | V81: 3.435830953 | W81: 2.354411272 | X81: 1.354250901 | Y81: 1.241100797 | Z81: 1.10903913 | AA81: 0.9586642416 | AB81: 0.7871727033 | AC81: 0.6268128431 | AD81: 0.439294457 | AE81: 0.224812427
B82: Simulation 81 | C82: 6.649662525 | D82: 6.843234181 | E82: -2.01595957 | F82: -6.174887464 | G82: -15.53091534 | H82: -15.32965132 | I82: -12.28598507 | J82: -15.90177875 | K82: -15.3790329 | L82: -13.36563129 | M82: -12.80112857 | N82: -12.77319061 | O82: -11.54095034 | P82: -10.84754398 | Q82: -9.395965246 | R82: -7.998025795 | S82: -7.093207824 | T82: -6.109120467 | U82: -5.233341103 | V82: -4.376006952 | W82: -3.52110157 | X82: -2.752696482 | Y82: -2.333214249 | Z82: -1.943141221 | AA82: -1.573006325 | AB82: -1.209515383 | AC82: -0.8846768414 | AD82: -0.5697849893 | AE82: -0.2709581929
B83: Simulation 82 | C83: 6.649662525 | D83: -1.521423088 | E83: -0.5290956177 | F83: -6.265088716 | G83: -4.203590559 | H83: -4.48044748 | I83: -7.89754392 | J83: -9.977661626 | K83: -7.978445852 | L83: -9.855213367 | M83: -9.610750264 | N83: -10.11539004 | O83: -9.261302692 | P83: -9.339555435 | Q83: -9.483620133 | R83: -8.181413437 | S83: -7.281919853 | T83: -6.915491567 | U83: -6.250711349 | V83: -5.474318801 | W83: -4.634111275 | X83: -3.837496144 | Y83: -3.373943753 | Z83: -2.913899961 | AA83: -2.446830852 | AB83: -1.952827906 | AC83: -1.484256202 | AD83: -0.9960590616 | AE83: -0.4932816236
B84: Simulation 83 | C84: 6.649662525 | D84: -0.546617175 | E84: -0.7405558377 | F84: -0.8499495655 | G84: 4.159590606 | H84: 14.36943217 | I84: 16.81240062 | J84: 19.41874451 | K84: 18.54514059 | L84: 15.35548368 | M84: 16.22950305 | N84: 13.10150798 | O84: 11.26221653 | P84: 10.908268 | Q84: 10.74143281 | R84: 11.0896902 | S84: 11.58156765 | T84: 11.62048071 | U84: 11.11741623 | V84: 10.4526347 | W84: 9.300237823 | X84: 8.659273857 | Y84: 7.742591893 | Z84: 7.980028864 | AA84: 6.869380386 | AB84: 6.951136221 | AC84: 5.818206501 | AD84: 5.801049655 | AE84: 4.46344889
B85: Simulation 84 | C85: 6.649662525 | D85: 8.777234017 | E85: 12.58386713 | F85: 13.83243182 | G85: 17.81584533 | H85: 16.22913131 | I85: 20.50465126 | J85: 23.38168273 | K85: 27.6386736 | L85: 26.21694356 | M85: 25.54649692 | N85: 22.19996422 | O85: 21.00550121 | P85: 20.17317135 | Q85: 21.04876311 | R85: 20.51448856 | S85: 18.81397464 | T85: 17.76923574 | U85: 17.01500443 | V85: 15.93663002 | W85: 14.98680945 | X85: 14.13328753 | Y85: 12.79991276 | Z85: 12.63340234 | AA85: 11.16605698 | AB85: 10.84601108 | AC85: 9.340376281 | AD85: 8.926314231 | AE85: 7.168083039
B86: Simulation 85 | C86: 6.649662525 | D86: -3.068865932 | E86: 5.177023292 | F86: 11.54165986 | G86: 12.92716102 | H86: 9.27237079 | I86: 1.681912135 | J86: 6.031923506 | K86: 1.225214036 | L86: 2.126607012 | M86: 5.81819496 | N86: 6.536969092 | O86: 8.376113212 | P86: 9.214918104 | Q86: 7.385587782 | R86: 9.020536555 | S86: 8.912330011 | T86: 9.048036351 | U86: 8.309878628 | V86: 7.44156814 | W86: 6.241702714 | X86: 5.573526082 | Y86: 4.669661573 | Z86: 4.930939951 | AA86: 3.9196298 | AB86: 4.081202605 | AC86: 3.053974846 | AD86: 3.148869842 | AE86: 1.973864484
B87: Simulation 86 | C87: 6.649662525 | D87: 4.6007669 | E87: 11.36314247 | F87: 6.493668822 | G87: 11.0757594 | H87: 0.917076526 | I87: -1.445574745 | J87: -0.7254650335 | K87: 0.3975282856 | L87: 2.242897055 | M87: -1.488001662 | N87: 0.9305807074 | O87: 3.147406082 | P87: 3.077275329 | Q87: 2.476328083 | R87: 2.438678799 | S87: 3.555859974 | T87: 2.413765068 | U87: 2.164180064 | V87: 1.668882742 | W87: 1.065798199 | X87: 0.7200564371 | Y87: 0.7004613101 | Z87: 0.6621490679 | AA87: 0.5922259788 | AB87: 0.5044836228 | AC87: 0.4171505823 | AD87: 0.3030002123 | AE87: 0.1597307347
B88: Simulation 87 | C88: 6.649662525 | D88: 17.1656088 | E88: 17.85419405 | F88: 18.50905502 | G88: 19.29425482 | H88: 17.58596829 | I88: 9.28452107 | J88: 13.19449647 | K88: 14.07436285 | L88: 13.5926147 | M88: 14.37454197 | N88: 12.98839438 | O88: 14.2178582 | P88: 11.12173851 | Q88: 9.77352015 | R88: 8.655753832 | S88: 8.01400631 | T88: 6.993009066 | U88: 6.070044348 | V88: 5.013770981 | W88: 3.714257759 | X88: 2.353636405 | Y88: 1.444709633 | Z88: 1.760078239 | AA88: 0.87700893 | AB88: 1.201020839 | AC88: 0.347126253 | AD88: 0.6657907056 | AE88: -0.2455776729
B89: Simulation 88 | C89: 6.649662525 | D89: 5.584525312 | E89: 7.689987819 | F89: 15.08056729 | G89: 22.12998533 | H89: 23.33176115 | I89: 22.27231028 | J89: 23.28508629 | K89: 18.20797657 | L89: 17.4213085 | M89: 19.8944096 | N89: 18.77912676 | O89: 17.55246785 | P89: 16.19782927 | Q89: 12.70742586 | R89: 11.93398497 | S89: 11.48860841 | T89: 10.30308947 | U89: 9.106560162 | V89: 7.535722687 | W89: 5.972832957 | X89: 4.626932595 | Y89: 3.487594716 | Z89: 3.521843366 | AA89: 2.307103886 | AB89: 2.388323783 | AC89: 1.299685666 | AD89: 1.388565922 | AE89: 0.2404161007
B90: Simulation 89 | C90: 6.649662525 | D90: 5.990589342 | E90: 3.776397046 | F90: 10.23346975 | G90: 12.29429548 | H90: 2.206611288 | I90: 3.762394527 | J90: 5.494786501 | K90: 5.139224989 | L90: 0.1731358097 | M90: 3.55815698 | N90: 3.690288673 | O90: 4.494991052 | P90: 5.504966089 | Q90: 5.825012632 | R90: 5.224501428 | S90: 5.448260883 | T90: 5.728348637 | U90: 5.513372248 | V90: 4.811949917 | W90: 3.874727878 | X90: 3.389491082 | Y90: 2.764920511 | Z90: 3.327200229 | AA90: 2.602367587 | AB90: 3.046557898 | AC90: 2.277008209 | AD90: 2.646567551 | AE90: 1.712766251
B91: Simulation 90 | C91: 6.649662525 | D91: 10.23176342 | E91: 3.411179305 | F91: 2.183245391 | G91: 0.1381310989 | H91: 1.970422994 | I91: -4.136112214 | J91: -9.641367962 | K91: -11.17783793 | L91: -9.936174161 | M91: -7.934414545 | N91: -6.608942101 | O91: -7.834793545 | P91: -6.1687742 | Q91: -6.594576782 | R91: -6.275292422 | S91: -5.619410639 | T91: -5.096978025 | U91: -4.42999832 | V91: -3.71182554 | W91: -3.093918929 | X91: -2.461671978 | Y91: -2.104684175 | Z91: -1.761207141 | AA91: -1.431259061 | AB91: -1.101464049 | AC91: -0.8045204175 | AD91: -0.5153375689 | AE91: -0.2428785
B92: Simulation 91 | C92: 6.649662525 | D92: 0.04242476039 | E92: -1.874707853 | F92: -2.707879 | G92: -2.848399636 | H92: -2.043275397 | I92: -0.1802374469 | J92: -5.247935449 | K92: -1.92842077 | L92: -0.8804969543 | M92: 0.0934118076 | N92: 0.2076562207 | O92: -0.8221204778 | P92: 0.2594732178 | Q92: 0.2345511898 | R92: 0.1193021798 | S92: -0.2302704878 | T92: -0.255215073 | U92: -0.3172448602 | V92: -0.3927656709 | W92: -0.4681434651 | X92: -0.476936852 | Y92: -0.4363070392 | Z92: -0.3890733453 | AA92: -0.337555896 | AB92: -0.2787276351 | AC92: -0.211725164 | AD92: -0.1424068964 | AE92: -0.07186647613
B93: Simulation 92 | C93: 6.649662525 | D93: 12.61036908 | E93: 12.60942105 | F93: 15.52125292 | G93: 13.86727157 | H93: 21.44015628 | I93: 25.97660672 | J93: 22.99220454 | K93: 24.8979985 | L93: 25.76216358 | M93: 25.00727295 | N93: 21.29489194 | O93: 20.80598295 | P93: 20.27148628 | Q93: 19.61665865 | R93: 17.97196964 | S93: 15.25570379 | T93: 13.84901616 | U93: 12.55821031 | V93: 11.02025947 | W93: 9.484189439 | X93: 8.165669037 | Y93: 6.688370265 | Z93: 6.440090596 | AA93: 4.902228929 | AB93: 4.644024283 | AC93: 3.258308851 | AD93: 3.06041999 | AE93: 1.617895756
B94: Simulation 93 | C94: 6.649662525 | D94: -0.3715812898 | E94: -0.1886620376 | F94: 3.764514563 | G94: -10.42508469 | H94: -10.61900202 | I94: -6.714749443 | J94: -5.423632925 | K94: -6.44101683 | L94: -3.667487659 | M94: -2.503867768 | N94: 1.380145027 | O94: 0.7789422375 | P94: 0.8872234779 | Q94: 0.1958630027 | R94: -0.1787170132 | S94: 0.5451357259 | T94: 0.8166744531 | U94: 0.8804799553 | V94: 0.7874044359 | W94: 0.4838834548 | X94: 0.3889312818 | Y94: 0.4244209107 | Z94: 0.4327185427 | AA94: 0.4095368023 | AB94: 0.3640829551 | AC94: 0.3116283816 | AD94: 0.2328046318 | AE94: 0.1251163695
B95: Simulation 94 | C95: 6.649662525 | D95: 12.24502982 | E95: 7.732732467 | F95: -0.5394660434 | G95: 5.285048854 | H95: 9.749104752 | I95: 0.6299709175 | J95: -3.418563958 | K95: -0.9720547122 | L95: -5.403652141 | M95: -6.939569412 | N95: -5.846720171 | O95: -7.03289805 | P95: -6.431587493 | Q95: -5.555615503 | R95: -6.080505583 | S95: -5.759437394 | T95: -5.525853047 | U95: -4.923743187 | V95: -4.360794215 | W95: -3.715924283 | X95: -3.05317056 | Y95: -2.670239035 | Z95: -2.286547606 | AA95: -1.894454792 | AB95: -1.490845308 | AC95: -1.114440626 | AD95: -0.733489127 | AE95: -0.3558809413
B96: Simulation 95 | C96: 6.649662525 | D96: 9.480268216 | E96: 17.15206095 | F96: 23.20601796 | G96: 27.38075106 | H96: 29.0104527 | I96: 27.52778312 | J96: 27.08961732 | K96: 24.03099113 | L96: 26.98861319 | M96: 24.51154045 | N96: 25.59470033 | O96: 25.68734518 | P96: 23.49466252 | Q96: 21.07275058 | R96: 20.13568876 | S96: 17.61853713 | T96: 16.40957607 | U96: 15.00604773 | V96: 13.69898742 | W96: 11.91736276 | X96: 10.48111551 | Y96: 8.839651265 | Z96: 8.43602195 | AA96: 6.791924774 | AB96: 6.372649347 | AC96: 4.841953927 | AD96: 4.472388428 | AE96: 2.860520204
B97: Simulation 96 | C97: 6.649662525 | D97: 1.004456598 | E97: -6.665538159 | F97: -18.93472004 | G97: -18.29393961 | H97: -17.10830111 | I97: -15.9689217 | J97: -20.77147873 | K97: -21.03486147 | L97: -19.64944461 | M97: -18.55107874 | N97: -18.95423205 | O97: -17.26230548 | P97: -17.02924667 | Q97: -14.90228442 | R97: -12.46191928 | S97: -11.1671572 | T97: -9.872759894 | U97: -8.515608354 | V97: -7.081181387 | W97: -5.757183059 | X97: -4.407358396 | Y97: -3.736584609 | Z97: -3.099603163 | AA97: -2.496200549 | AB97: -1.906127317 | AC97: -1.392249529 | AD97: -0.8931741326 | AE97: -0.4213555219
B98: Simulation 97 | C98: 6.649662525 | D98: 5.408082171 | E98: 9.586382597 | F98: 5.240976991 | G98: 12.23568646 | H98: 6.004040361 | I98: 8.475778302 | J98: 7.69440445 | K98: 8.051961731 | L98: 6.372083465 | M98: 8.341700417 | N98: 7.943944099 | O98: 7.553579307 | P98: 9.197613197 | Q98: 8.55819726 | R98: 7.112811772 | S98: 6.31147379 | T98: 5.821158263 | U98: 4.788078028 | V98: 3.813311283 | W98: 2.763246158 | X98: 1.987436998 | Y98: 1.676833389 | Z98: 1.368990105 | AA98: 1.070589872 | AB98: 0.7920500551 | AC98: 0.569735878 | AD98: 0.3573663138 | AE98: 0.1617003444
B99: Simulation 98 | C99: 6.649662525 | D99: 12.98696804 | E99: 11.30330537 | F99: 13.37368197 | G99: 11.42322298 | H99: 15.39868375 | I99: 14.48796262 | J99: 17.74660968 | K99: 16.98287364 | L99: 18.0063472 | M99: 20.03564643 | N99: 21.20310983 | O99: 18.82204345 | P99: 19.97754697 | Q99: 20.17378142 | R99: 19.3261999 | S99: 21.01277536 | T99: 20.01744372 | U99: 19.36688826 | V99: 18.6478691 | W99: 17.94206728 | X99: 16.90427598 | Y99: 15.46458863 | Z99: 15.13113112 | AA99: 13.45683055 | AB99: 12.89472527 | AC99: 11.15422633 | AD99: 10.49399426 | AE99: 8.468202066
B100: Simulation 99 | C100: 6.649662525 | D100: 5.898840673 | E100: 6.713612414 | F100: 1.046272197 | G100: 5.051432849 | H100: 6.001433416 | I100: 7.196197817 | J100: 5.696811108 | K100: 6.25929724 | L100: 10.80000189 | M100: 11.48003933 | N100: 10.13342241 | O100: 8.124437569 | P100: 8.00761833 | Q100: 8.953592744 | R100: 8.716843821 | S100: 7.173330828 | T100: 6.162414434 | U100: 5.950262515 | V100: 5.27176654 | W100: 4.535094055 | X100: 3.959045498 | Y100: 3.318084381 | Z100: 3.841651236 | AA100: 3.080384198 | AB100: 3.522346145 | AC100: 2.734427532 | AD100: 3.069445731 | AE100: 2.11690337
B101: Simulation 100 | C101: 6.649662525 | D101: -0.4896935499 | E101: 6.395375782 | F101: 7.325315193 | G101: 7.204871195 | H101: 3.919498485 | I101: 6.606277678 | J101: 4.492930736 | K101: 3.360630349 | L101: 3.067207038 | M101: 0.9464710519 | N101: 0.7323665818 | O101: 0.7211658072 | P101: 1.712015561 | Q101: 0.1616082905 | R101: 0.305385779 | S101: 0.1771642909 | T101: -0.1008251178 | U101: -0.2512875116 | V101: -0.3659170655 | W101: -0.4437038561 | X101: -0.5154185834 | Y101: -0.4974773433 | Z101: -0.4672154371 | AA101: -0.4276767604 | AB101: -0.3735964781 | AC101: -0.298661658 | AD101: -0.2121688652 | AE101: -0.1123517158
B102: Simulation 101 | C102: 6.649662525 | D102: 6.218214043 | E102: 17.13763171 | F102: 18.2910666 | G102: 21.72372161 | H102: 19.40008324 | I102: 16.49266465 | J102: 17.59776685 | K102: 19.92210123 | L102: 21.5015028 | M102: 22.640737 | N102: 24.05267594 | O102: 26.14526328 | P102: 26.69621741 | Q102: 27.00525523 | R102: 26.5426633 | S102: 25.2611271 | T102: 24.03512561 | U102: 22.8440025 | V102: 21.55578402 | W102: 19.8730994 | X102: 18.2194535 | Y102: 16.2738793 | Z102: 15.51708411 | AA102: 13.43702372 | AB102: 12.5009776 | AC102: 10.45118396 | AD102: 9.512384109 | AE102: 7.268898969
B103: Simulation 102 | C103: 6.649662525 | D103: 2.972168198 | E103: 6.480277104 | F103: 7.875680055 | G103: 4.410717733 | H103: 0.5417759078 | I103: 4.723364254 | J103: 6.235725298 | K103: 4.496056903 | L103: 4.453714299 | M103: 5.409275167 | N103: 6.038675448 | O103: 6.35555928 | P103: 5.822434227 | Q103: 6.551134927 | R103: 6.852943808 | S103: 6.680384813 | T103: 6.099124105 | U103: 5.580219836 | V103: 4.646560942 | W103: 3.386874115 | X103: 2.475868108 | Y103: 1.79874228 | Z103: 2.282576597 | AA103: 1.494567135 | AB103: 1.94857444 | AC103: 1.19122993 | AD103: 1.576065059 | AE103: 0.6744001162
B104: Simulation 103 | C104: 6.649662525 | D104: 3.334519006 | E104: 3.549049282 | F104: 5.270781449 | G104: -1.438852287 | H104: -5.01917572 | I104: -3.943023444 | J104: -3.376437383 | K104: -3.695553662 | L104: -7.065353613 | M104: -6.424417822 | N104: -3.717919067 | O104: -5.002809749 | P104: -4.3685168 | Q104: -3.031817741 | R104: -1.862010149 | S104: -1.296383679 | T104: -0.5182578844 | U104: -0.2788652047 | V104: -0.2487864764 | W104: -0.2660489815 | X104: -0.1209378954 | Y104: -0.005936142424 | Z104: 0.06468255479 | AA104: 0.109151751 | AB104: 0.1344607508 | AC104: 0.1452014874 | AD104: 0.1260318591 | AE104: 0.07583121831
B105: Simulation 104 | C105: 6.649662525 | D105: 5.023597839 | E105: 7.909057917 | F105: 11.74327315 | G105: 14.80405983 | H105: 18.60956796 | I105: 14.24833729 | J105: 19.1103932 | K105: 17.16589544 | L105: 16.34608872 | M105: 16.5563041 | N105: 12.96225501 | O105: 11.88751518 | P105: 10.75744317 | Q105: 11.17851644 | R105: 8.582100474 | S105: 8.05084836 | T105: 7.105495238 | U105: 6.067837629 | V105: 5.181644697 | W105: 4.008067312 | X105: 2.750937632 | Y105: 1.793651475 | Z105: 2.09043997 | AA105: 1.128021592 | AB105: 1.416837986 | AC105: 0.5397994565 | AD105: 0.8414198907 | AE105: -0.1080789405
B106: Simulation 105 | C106: 6.649662525 | D106: 14.52062078 | E106: 21.12136854 | F106: 16.2991084 | G106: 14.80070063 | H106: 12.06915476 | I106: 6.035483008 | J106: 5.840627048 | K106: 6.275976906 | L106: 6.041528248 | M106: 8.649437729 | N106: 8.538391712 | O106: 7.576387943 | P106: 7.38391015 | Q106: 5.36578873 | R106: 3.977028448 | S106: 2.751907168 | T106: 2.344965293 | U106: 1.805735215 | V106: 1.355698364 | W106: 0.8789832087 | X106: 0.5365764513 | Y106: 0.4192424704 | Z106: 0.3124595182 | AA106: 0.2202237911 | AB106: 0.1394760967 | AC106: 0.09051611639 | AD106: 0.04740676257 | AE106: 0.01532041448
B107: Simulation 106 | C107: 6.649662525 | D107: 13.45495387 | E107: 21.76515597 | F107: 16.53521808 | G107: 16.43113134 | H107: 16.84422552 | I107: 14.41073495 | J107: 15.1315922 | K107: 17.37866112 | L107: 17.09009558 | M107: 14.75987977 | N107: 14.50959498 | O107: 12.05009931 | P107: 11.29864458 | Q107: 10.0345889 | R107: 8.960873248 | S107: 7.727367882 | T107: 6.853620294 | U107: 6.163479347 | V107: 5.009031221 | W107: 3.70471634 | X107: 2.256331899 | Y107: 1.964628337 | Z107: 1.670219597 | AA107: 1.37157831 | AB107: 1.073183756 | AC107: 0.8156527861 | AD107: 0.5459445418 | AE107: 0.2674070578
B108: Simulation 107 | C108: 6.649662525 | D108: 7.83639153 | E108: 15.09535638 | F108: 21.74123171 | G108: 27.04050278 | H108: 28.40625549 | I108: 21.02265053 | J108: 14.59694444 | K108: 12.15073716 | L108: 8.215031211 | M108: 10.49208462 | N108: 9.507119741 | O108: 7.002378565 | P108: 5.905415535 | Q108: 4.195599308 | R108: 5.29815426 | S108: 5.493026176 | T108: 5.150047718 | U108: 4.771180681 | V108: 4.39513238 | W108: 3.56279015 | X108: 3.018777468 | Y108: 2.417043941 | Z108: 2.991426805 | AA108: 2.303463269 | AB108: 2.814681654 | AC108: 2.069738296 | AD108: 2.462777104 | AE108: 1.56047845
B109: Simulation 108 | C109: 6.649662525 | D109: 20.65355406 | E109: 31.93183481 | F109: 31.85946912 | G109: 34.74625788 | H109: 36.7739616 | I109: 35.57597845 | J109: 36.67929703 | K109: 36.11507445 | L109: 34.13559434 | M109: 32.43183587 | N109: 33.18206135 | O109: 31.00533485 | P109: 31.42114937 | Q109: 29.53176754 | R109: 28.03413076 | S109: 26.81847189 | T109: 25.20353628 | U109: 23.69753364 | V109: 21.94161156 | W109: 20.3552379 | X109: 18.38805777 | Y109: 16.21768745 | Z109: 15.29466071 | AA109: 13.0059166 | AB109: 11.93270263 | AC109: 9.805004706 | AD109: 8.792496524 | AE109: 6.514172533
B110: Simulation 109 | C110: 6.649662525 | D110: -1.250636355 | E110: -8.334443234 | F110: -16.49485205 | G110: -20.19412669 | H110: -21.45309335 | I110: -22.74840177 | J110: -21.0366133 | K110: -20.1174518 | L110: -19.11473963 | M110: -19.72453976 | N110: -16.28618875 | O110: -13.69279954 | P110: -12.77324506 | Q110: -11.27888104 | R110: -9.935938456 | S110: -8.825517112 | T110: -7.53111739 | U110: -6.441570402 | V110: -5.378315264 | W110: -4.374686456 | X110: -3.387415353 | Y110: -2.880043547 | Z110: -2.405041633 | AA110: -1.947743479 | AB110: -1.500689124 | AC110: -1.102182732 | AD110: -0.7130637635 | AE110: -0.3408827472
B111: Simulation 110 | C111: 6.649662525 | D111: -0.9910519677 | E111: 2.581348198 | F111: 3.985366149 | G111: 6.331898572 | H111: 4.14003363 | I111: 0.2964074422 | J111: -1.354439415 | K111: 5.821991819 | L111: 4.56619441 | M111: 3.036952327 | N111: 2.750474014 | O111: 2.16347742 | P111: 0.5767384635 | Q111: 0.9638204014 | R111: -0.09986954226 | S111: 0.1799070674 | T111: 0.06991472788 | U111: -0.2372113962 | V111: -0.30502689 | W111: -0.3373003856 | X111: -0.3151353235 | Y111: -0.264030321 | Z111: -0.208720311 | AA111: -0.1651674832 | AB111: -0.1221894238 | AC111: -0.07816032778 | AD111: -0.04168970638 | AE111: -0.01654321157
B112: Simulation 111 | C112: 6.649662525 | D112: -1.063922534 | E112: 6.315094736 | F112: 14.41147193 | G112: 16.30252093 | H112: 13.60463643 | I112: 9.102330431 | J112: 15.09596754 | K112: 16.77077397 | L112: 18.36630263 | M112: 16.68719155 | N112: 13.11912995 | O112: 14.36033892 | P112: 11.79541041 | Q112: 11.21405988 | R112: 12.42125076 | S112: 11.97252477 | T112: 11.1668969 | U112: 10.44181904 | V112: 9.309811726 | W112: 7.951021665 | X112: 7.043761987 | Y112: 5.861361543 | Z112: 5.865292174 | AA112: 4.593982384 | AB112: 4.515981812 | AC112: 3.273175419 | AD112: 3.183070268 | AE112: 1.833888552
B113: Simulation 112 | C113: 6.649662525 | D113: 6.173694026 | E113: 4.332339213 | F113: 6.773296519 | G113: 4.685261986 | H113: 3.150340316 | I113: -0.4232529821 | J113: -3.27452913 | K113: -2.749178571 | L113: -2.241946452 | M113: -2.879866217 | N113: -0.8685153169 | O113: -0.003833193371 | P113: -1.026473821 | Q113: -0.7396161932 | R113: -0.5344699958 | S113: -0.3032330946 | T113: -0.5158016981 | U113: -0.4937784334 | V113: -0.4869872665 | W113: -0.5146053641 | X113: -0.3813341529 | Y113: -0.280427199 | Z113: -0.190773564 | AA113: -0.1235972309 | AB113: -0.06809256205 | AC113: -0.02110293807 | AD113: 0.007196175671 | AE113: 0.01222891265
B114: Simulation 113 | C114: 6.649662525 | D114: 6.128484185 | E114: 9.355557974 | F114: 5.035933914 | G114: 9.6184851 | H114: 8.211820578 | I114: 10.51903777 | J114: 12.23032027 | K114: 8.031948526 | L114: 2.111157842 | M114: -1.425506164 | N114: 0.03907507531 | O114: -0.9664453706 | P114: -0.8423846741 | Q114: -0.6326346676 | R114: -2.010979402 | S114: -2.421050206 | T114: -2.183118678 | U114: -1.928642742 | V114: -1.830639443 | W114: -1.565598725 | X114: -1.253584263 | Y114: -1.05999532 | Z114: -0.8696270333 | AA114: -0.691967803 | AB114: -0.5176885381 | AC114: -0.3598259716 | AD114: -0.2163524692 | AE114: -0.09493051652
B115: Simulation 114 | C115: 6.649662525 | D115: 6.07197473 | E115: 3.350943017 | F115: -1.558265152 | G115: -10.70668475 | H115: -10.3566166 | I115: -10.96106944 | J115: -7.583556779 | K115: -9.380105783 | L115: -7.747868117 | M115: -6.943438312 | N115: -6.853106829 | O115: -7.831041371 | P115: -7.447216 | Q115: -7.390835389 | R115: -6.784327859 | S115: -6.422548581 | T115: -5.965787397 | U115: -5.489923785 | V115: -4.862292942 | W115: -4.261248534 | X115: -3.58380039 | Y115: -3.19187561 | Z115: -2.790119708 | AA115: -2.368826809 | AB115: -1.912667792 | AC115: -1.47136309 | AD115: -0.9995659871 | AE115: -0.50115013
B116: Simulation 115 | C116: 6.649662525 | D116: 17.85548516 | E116: 16.9714597 | F116: 9.587613475 | G116: 15.66460725 | H116: 10.69059737 | I116: 2.087834106 | J116: -0.2215856638 | K116: -0.5387392189 | L116: 0.8227270365 | M116: 5.691909419 | N116: 5.815814272 | O116: 8.080006229 | P116: 9.084007792 | Q116: 9.290889984 | R116: 10.05503869 | S116: 11.56106289 | T116: 11.83452522 | U116: 11.32601508 | V116: 10.48007784 | W116: 9.215744767 | X116: 8.468400846 | Y116: 7.380877857 | Z116: 7.429838071 | AA116: 6.188221942 | AB116: 6.100758684 | AC116: 4.815764866 | AD116: 4.653954741 | AE116: 3.189920035
B117: Simulation 116 | C117: 6.649662525 | D117: -0.5047103521 | E117: 10.52988997 | F117: 1.740443576 | G117: 3.426113856 | H117: 3.736641359 | I117: 0.6882537683 | J117: 8.678058666 | K117: 13.76282168 | L117: 14.57578011 | M117: 13.2094086 | N117: 11.77356364 | O117: 7.241812028 | P117: 6.000881443 | Q117: 5.438822322 | R117: 5.005500595 | S117: 6.791815896 | T117: 6.43567281 | U117: 6.10664037 | V117: 5.351668069 | W117: 3.952979335 | X117: 3.067628884 | Y117: 2.284672853 | Z117: 2.664443022 | AA117: 1.818518267 | AB117: 2.159551518 | AC117: 1.30969559 | AD117: 1.61553885 | AE117: 0.6573830521
B118: Simulation 117 | C118: 6.649662525 | D118: 17.656846 | E118: 17.13534422 | F118: 23.22380672 | G118: 18.41922589 | H118: 11.21389583 | I118: 11.52827778 | J118: 11.78043689 | K118: 8.772586669 | L118: 7.199817083 | M118: 8.055971755 | N118: 6.844760944 | O118: 4.736902129 | P118: 3.338479744 | Q118: 2.490958502 | R118: 3.337846012 | S118: 3.512426549 | T118: 3.495478287 | U118: 3.103184261 | V118: 2.558626602 | W118: 1.735444849 | X118: 1.278379329 | Y118: 1.123326843 | Z118: 0.9683861539 | AA118: 0.7959282976 | AB118: 0.6203472283 | AC118: 0.472298929 | AD118: 0.3163987565 | AE118: 0.1546184734
B119: Simulation 118 | C119: 6.649662525 | D119: -5.404889219 | E119: -9.344020698 | F119: -2.402394059 | G119: -12.67675576 | H119: -12.93621746 | I119: -8.039115239 | J119: -4.830998149 | K119: -5.160589809 | L119: -2.533143442 | M119: -1.953481865 | N119: -2.448244262 | O119: -2.151399739 | P119: -3.944924529 | Q119: -3.261007118 | R119: -2.460090657 | S119: -2.084377241 | T119: -1.398826714 | U119: -1.159181844 | V119: -0.9730373852 | W119: -0.8073757432 | X119: -0.5927450909 | Y119: -0.4529837183 | Z119: -0.3385727292 | AA119: -0.2444141403 | AB119: -0.1663075398 | AC119: -0.09833587372 | AD119: -0.04697498254 | AE119: -0.01529761614
B120: Simulation 119 | C120: 6.649662525 | D120: 18.38496701 | E120: 14.02453152 | F120: 19.23661954 | G120: 20.33276272 | H120: 19.74338361 | I120: 21.38056173 | J120: 21.45084821 | K120: 19.88242154 | L120: 17.52480071 | M120: 16.13418157 | N120: 15.29294495 | O120: 9.891285902 | P120: 7.437763769 | Q120: 6.211446086 | R120: 4.759429831 | S120: 4.880749865 | T120: 4.273231898 | U120: 3.540760109 | V120: 2.867301282 | W120: 1.848316205 | X120: 0.985632333 | Y120: 0.8787697042 | Z120: 0.7609370374 | AA120: 0.6452460762 | AB120: 0.5264238859 | AC120: 0.423015308 | AD120: 0.3002149861 | AE120: 0.1563178084
B121: Simulation 120 | C121: 6.649662525 | D121: 6.833929339 | E121: 4.337907815 | F121: 2.298878364 | G121: 0.1801666276 | H121: 1.620145092 | I121: 5.461111677 | J121: -0.4561197777 | K121: -1.937573451 | L121: -3.726325407 | M121: -1.89152716 | N121: -1.267454185 | O121: -1.972359585 | P121: -1.520667403 | Q121: -0.4201487586 | R121: 0.6076245397 | S121: 1.282225101 | T121: 1.160943736 | U121: 1.271307668 | V121: 1.234553757 | W121: 0.7660337966 | X121: 0.1654762104 | Y121: 0.02594208301 | Z121: 1.063608942 | AA121: 0.7859760488 | AB121: 1.685065797 | AC121: 1.293767508 | AD121: 2.023207272 | AE121: 1.428601512
B122: Simulation 121 | C122: 6.649662525 | D122: 14.39979221 | E122: 13.3842033 | F122: 26.58574283 | G122: 20.87264171 | H122: 20.9492057 | I122: 18.63351974 | J122: 15.01776717 | K122: 17.90290193 | L122: 20.62256352 | M122: 21.42527733 | N122: 20.03880595 | O122: 24.21303811 | P122: 22.84232377 | Q122: 22.01058754 | R122: 19.79010149 | S122: 17.3463836 | T122: 15.89136253 | U122: 14.49931026 | V122: 13.02192424 | W122: 11.49951202 | X122: 10.20695318 | Y122: 8.72408198 | Z122: 8.47780694 | AA122: 6.948388504 | AB122: 6.614829026 | AC122: 5.145649907 | AD122: 4.83840827 | AE122: 3.263626425
B123: Simulation 122 | C123: 6.649662525 | D123: 13.36873718 | E123: 14.7614495 | F123: 13.42210223 | G123: 11.69601055 | H123: 16.57526986 | I123: 19.93362579 | J123: 22.63747356 | K123: 23.20402313 | L123: 24.23920253 | M123: 23.48590012 | N123: 24.99486966 | O123: 24.21950034 | P123: 22.35765085 | Q123: 21.63663173 | R123: 21.29413593 | S123: 20.86215143 | T123: 19.62988811 | U123: 18.52961063 | V123: 17.50993903 | W123: 16.19909581 | X123: 14.72639066 | Y123: 12.93624683 | Z123: 12.36675004 | AA123: 10.49067708 | AB123: 9.791915507 | AC123: 7.981003691 | AD123: 7.296007741 | AE123: 5.341288361
B124: Simulation 123 | C124: 6.649662525 | D124: 0.7987613704 | E124: 5.128289267 | F124: 7.365446692 | G124: 9.800235817 | H124: 13.27142667 | I124: 10.57451478 | J124: 7.039121096 | K124: 10.29982969 | L124: 12.41519708 | M124: 8.878166989 | N124: 11.19339956 | O124: 13.96719619 | P124: 12.80563761 | Q124: 11.44251511 | R124: 10.73292224 | S124: 9.59493176 | T124: 9.375259151 | U124: 8.394152234 | V124: 7.337635426 | W124: 5.753182954 | X124: 4.682489153 | Y124: 3.653186479 | Z124: 3.778561578 | AA124: 2.708739404 | AB124: 2.847095304 | AC124: 1.810451759 | AD124: 1.932662591 | AE124: 0.8094387725
B125: Simulation 124 | C125: 6.649662525 | D125: 10.0017948 | E125: 9.531952477 | F125: 0.8898970324 | G125: 1.251357613 | H125: 1.477048975 | I125: 7.281011128 | J125: 3.555685371 | K125: 3.220015118 | L125: 1.082438412 | M125: 0.06977129234 | N125: 0.3242018408 | O125: -0.7151373264 | P125: -0.9041856948 | Q125: -1.17832146 | R125: -0.8979892568 | S125: -1.260940803 | T125: -1.239031486 | U125: -1.073965712 | V125: -1.040452663 | W125: -0.9262817184 | X125: -0.8328120717 | Y125: -0.744570212 | Z125: -0.6546706129 | AA125: -0.5625906364 | AB125: -0.4640911505 | AC125: -0.3553289439 | AD125: -0.2422355575 | AE125: -0.1235767442
B126: Simulation 125 | C126: 6.649662525 | D126: 6.874941197 | E126: 12.48205194 | F126: 10.3567477 | G126: 17.22152754 | H126: 14.67098187 | I126: 18.31357799 | J126: 28.005309 | K126: 25.78676954 | L126: 27.11629678 | M126: 30.00884929 | N126: 24.07285104 | O126: 20.57425886 | P126: 21.72071439 | Q126: 20.73106504 | R126: 19.91725772 | S126: 18.64745555 | T126: 17.3131994 | U126: 16.60841856 | V126: 15.66206417 | W126: 14.60078359 | X126: 13.2458172 | Y126: 11.76770349 | Z126: 11.49907849 | AA126: 9.947749757 | AB126: 9.569290453 | AC126: 8.028435201 | AD126: 7.601833699 | AE126: 5.869954406
B127: Simulation 126 | C127: 6.649662525 | D127: 15.96066496 | E127: 9.886668581 | F127: 12.04491583 | G127: 4.346111617 | H127: 11.01821088 | I127: 10.34600497 | J127: 13.17122994 | K127: 13.34427156 | L127: 12.6547389 | M127: 14.23079827 | N127: 16.19692746 | O127: 16.00736639 | P127: 14.36335027 | Q127: 14.22598046 | R127: 13.88589138 | S127: 13.58498672 | T127: 12.43275351 | U127: 11.48173531 | V127: 10.32002695 | W127: 9.27882953 | X127: 8.658629775 | Y127: 7.635640267 | Z127: 7.775277067 | AA127: 6.663209877 | AB127: 6.692849899 | AC127: 5.527423088 | AD127: 5.500424744 | AE127: 4.158816233
B128: Simulation 127 | C128: 6.649662525 | D128: -0.04645870704 | E128: -8.831089414 | F128: -6.194176348 | G128: -2.484367884 | H128: 0.6421529748 | I128: -2.340278041 | J128: -3.426961382 | K128: 3.727014438 | L128: 4.578223231 | M128: 4.951101969 | N128: 9.664052074 | O128: 13.29664554 | P128: 13.56266061 | Q128: 14.94460101 | R128: 14.64361532 | S128: 14.15363836 | T128: 13.98219043 | U128: 13.61744911 | V128: 12.91980322 | W128: 12.37520661 | X128: 11.75741107 | Y128: 10.72393101 | Z128: 10.83485292 | AA128: 9.602215692 | AB128: 9.50552334 | AC128: 8.167922561 | AD128: 7.928500718 | AE128: 6.352306146
B129: Simulation 128 | C129: 6.649662525 | D129: -0.1410557165 | E129: -6.568673437 | F129: 1.072589254 | G129: -0.8977932326 | H129: -1.610554402 | I129: 2.351680867 | J129: 0.4361298605 | K129: -0.8311614103 | L129: -0.3897825637 | M129: 2.424795223 | N129: 3.513552807 | O129: 5.18097019 | P129: 3.776119252 | Q129: 3.964107219 | R129: 3.809175607 | S129: 3.88544826 | T129: 3.951076044 | U129: 3.901470795 | V129: 3.422595337 | W129: 3.073251697 | X129: 2.92236584 | Y129: 2.571872948 | Z129: 3.40822955 | AA129: 2.941968569 | AB129: 3.617413403 | AC129: 3.010979205 | AD129: 3.520844125 | AE129: 2.703639237
B130: Simulation 129 | C130: 6.649662525 | D130: 5.725975485 | E130: 5.83646271 | F130: 16.25881228 | G130: 18.91440602 | H130: 16.96242132 | I130: 18.11582496 | J130: 19.6224653 | K130: 15.09744718 | L130: 11.60088704 | M130: 10.79345775 | N130: 10.12463336 | O130: 9.279328493 | P130: 8.274449954 | Q130: 7.075416508 | R130: 6.466372079 | S130: 5.923642417 | T130: 5.097516911 | U130: 4.278543828 | V130: 3.522936255 | W130: 2.475779525 | X130: 1.700716881 | Y130: 1.469613702 | Z130: 1.246338332 | AA130: 1.021827814 | AB130: 0.7956120947 | AC130: 0.6068512144 | AD130: 0.4059826586 | AE130: 0.1983270355
B131: Simulation 130 | C131: 6.649662525 | D131: -2.371303262 | E131: -11.94296698 | F131: -6.393199289 | G131: -7.523814599 | H131: -9.792702852 | I131: -4.233127559 | J131: -6.018674874 | K131: -2.909722676 | L131: -0.6902004527 | M131: -1.496257092 | N131: -0.7995862619 | O131: -1.954527509 | P131: -0.844387121 | Q131: -0.9582215932 | R131: -0.8647017916 | S131: -0.7596924227 | T131: -0.8102779758 | U131: -0.8474571566 | V131: -0.7377704613 | W131: -0.7310393058 | X131: -0.6193868824 | Y131: -0.5098492418 | Z131: -0.407479642 | AA131: -0.3178331103 | AB131: -0.2324203882 | AC131: -0.1556680673 | AD131: -0.09036352464 | AE131: -0.03887841448
B132: Simulation 131 | C132: 6.649662525 | D132: 5.402365486 | E132: 1.555429439 | F132: -6.195925352 | G132: -9.268872474 | H132: -0.477507612 | I132: 1.643140041 | J132: 4.348109075 | K132: 9.430007668 | L132: 9.065696066 | M132: 10.48244241 | N132: 9.805328573 | O132: 8.92069949 | P132: 7.882908992 | Q132: 8.503316666 | R132: 8.900638685 | S132: 8.355861045 | T132: 7.406688055 | U132: 6.446251613 | V132: 5.766253833 | W132: 4.138483371 | X132: 2.675949723 | Y132: 2.355936646 | Z132: 2.026182575 | AA132: 1.679893559 | AB132: 1.319891159 | AC132: 1.001604156 | AD132: 0.6672212025 | AE132: 0.3245455572
B133: Simulation 132 | C133: 6.649662525 | D133: -1.454446566 | E133: -5.030511548 | F133: -2.394698427 | G133: -3.815413977 | H133: -3.895672763 | I133: 3.33416162 | J133: 6.995941303 | K133: 2.707393218 | L133: 4.16063959 | M133: 3.029058433 | N133: 6.368760063 | O133: 2.614392935 | P133: 3.118133129 | Q133: 2.037996732 | R133: 1.537273595 | S133: 2.05493687 | T133: 1.663243343 | U133: 1.464036929 | V133: 1.053502603 | W133: 0.7285192849 | X133: 0.5029741039 | Y133: 0.4380270163 | Z133: 0.3728484613 | AA133: 0.3039391595 | AB133: 0.2372550344 | AC133: 0.1861663331 | AD133: 0.1286357055 | AE133: 0.06361706875
B134: Simulation 133 | C134: 6.649662525 | D134: 17.57743177 | E134: 29.01704781 | F134: 26.09832914 | G134: 30.74640715 | H134: 25.35700432 | I134: 24.11386792 | J134: 23.55226962 | K134: 23.43526253 | L134: 26.17713147 | M134: 27.29451311 | N134: 24.29343531 | O134: 20.34040337 | P134: 20.90334875 | Q134: 18.50606237 | R134: 16.86079114 | S134: 15.14428894 | T134: 14.04590286 | U134: 12.57330276 | V134: 11.03684061 | W134: 9.66577434 | X134: 8.347594143 | Y134: 6.733471491 | Z134: 6.384003125 | AA134: 4.816505241 | AB134: 4.46641015 | AC134: 3.023905334 | AD134: 2.741303795 | AE134: 1.230214708
B135: Simulation 134 | C135: 6.649662525 | D135: 13.32337546 | E135: 10.35024336 | F135: 8.712695471 | G135: 3.167721871 | H135: 5.564757472 | I135: 11.80325065 | J135: 10.98004693 | K135: 8.959733088 | L135: 8.078112393 | M135: 8.459543427 | N135: 8.010215812 | O135: 7.53493281 | P135: 6.899437675 | Q135: 7.127926958 | R135: 3.98290163 | S135: 3.089713513 | T135: 2.905505927 | U135: 2.546243273 | V135: 2.136156288 | W135: 1.313743218 | X135: 0.8392054692 | Y135: 0.7572625202 | Z135: 0.6667699778 | AA135: 0.5671797175 | AB135: 0.4605594087 | AC135: 0.3683527069 | AD135: 0.2596095148 | AE135: 0.1334245643
B136: Simulation 135 | C136: 6.649662525 | D136: 9.576456196 | E136: 14.47546266 | F136: 9.941278018 | G136: 9.483080479 | H136: 10.21454448 | I136: 8.304461533 | J136: 9.310990848 | K136: 9.149792859 | L136: 7.436886959 | M136: 8.771824413 | N136: 7.642256934 | O136: 10.63202007 | P136: 9.228491393 | Q136: 8.527560172 | R136: 7.250734159 | S136: 6.597031047 | T136: 5.144774892 | U136: 4.599216771 | V136: 3.761960295 | W136: 2.802094806 | X136: 1.956623965 | Y136: 1.725162675 | Z136: 1.48361153 | AA136: 1.234372122 | AB136: 0.9740283031 | AC136: 0.7451137743 | AD136: 0.5004790511 | AE136: 0.2454812519
B137: Simulation 136 | C137: 6.649662525 | D137: 4.279539096 | E137: -0.3945591108 | F137: 4.61787366 | G137: 5.793821645 | H137: 3.255117539 | I137: -1.690420162 | J137: -2.82107961 | K137: -2.681345443 | L137: 0.4941115378 | M137: 0.05564306687 | N137: 1.006063721 | O137: 1.47958288 | P137: 3.128119454 | Q137: 3.304438783 | R137: 2.960577629 | S137: 2.212941696 | T137: 2.200750432 | U137: 1.983462041 | V137: 1.704623615 | W137: 1.108054155 | X137: 0.8079349526 | Y137: 0.7568143795 | Z137: 0.6936044869 | AA137: 0.5974586278 | AB137: 0.4917628448 | AC137: 0.3963468447 | AD137: 0.2802312323 | AE137: 0.1442881827
B138: Simulation 137 | C138: 6.649662525 | D138: -8.082328281 | E138: -13.90737888 | F138: -14.79370034 | G138: -12.7975618 | H138: -9.694099623 | I138: -13.19849504 | J138: -14.06839893 | K138: -17.21145055 | L138: -18.99330833 | M138: -21.48318868 | N138: -18.32593673 | O138: -17.83512278 | P138: -16.00623906 | Q138: -14.359226 | R138: -13.09272631 | S138: -12.10384501 | T138: -10.59331267 | U138: -9.1777066 | V138: -7.663967451 | W138: -6.285539494 | X138: -4.917673927 | Y138: -4.210503016 | Z138: -3.525740864 | AA138: -2.856026235 | AB138: -2.193196656 | AC138: -1.607801638 | AD138: -1.034822992 | AE138: -0.4900366048
B139: Simulation 138 | C139: 6.649662525 | D139: -3.525816807 | E139: -8.939766377 | F139: -16.44181892 | G139: -14.63161389 | H139: -13.69450442 | I139: -18.24346989 | J139: -15.93611396 | K139: -13.14415572 | L139: -12.88225614 | M139: -11.76828719 | N139: -8.570017839 | O139: -6.588340487 | P139: -3.971198061 | Q139: -2.835193501 | R139: -1.577097607 | S139: -1.291623715 | T139: -0.9819252212 | U139: -0.5448765179 | V139: -0.3602131149 | W139: -0.5100678198 | X139: -0.3407197476 | Y139: -0.1715559056 | Z139: -0.04198375304 | AA139: 0.05074829078 | AB139: 0.1137605701 | AC139: 0.1442289826 | AD139: 0.1366453834 | AE139: 0.08668067958
B140: Simulation 139 | C140: 6.649662525 | D140: 0.3673141403 | E140: 2.426594543 | F140: 4.960248142 | G140: 7.896933351 | H140: 12.98252611 | I140: 7.914004598 | J140: 8.870176916 | K140: 7.030791789 | L140: 5.477540868 | M140: 4.358755449 | N140: 5.226666036 | O140: 6.550755992 | P140: 6.264606037 | Q140: 6.398255938 | R140: 6.603540109 | S140: 5.540072002 | T140: 5.00601472 | U140: 4.650452556 | V140: 3.997049245 | W140: 2.931073941 | X140: 1.926886873 | Y140: 1.246185426 | Z140: 1.795067464 | AA140: 1.03745685 | AB140: 1.487697878 | AC140: 0.7497488487 | AD140: 1.160514531 | AE140: 0.3003212392
B141: Simulation 140 | C141: 6.649662525 | D141: 15.58268931 | E141: 19.15335069 | F141: 18.39320384 | G141: 22.30479767 | H141: 19.48495288 | I141: 16.29240796 | J141: 13.60640155 | K141: 13.82342271 | L141: 14.15434585 | M141: 15.32058783 | N141: 13.12778258 | O141: 12.87483632 | P141: 10.57733781 | Q141: 10.57042478 | R141: 8.785753574 | S141: 8.123349981 | T141: 7.076127459 | U141: 6.286512882 | V141: 5.074595957 | W141: 3.56540847 | X141: 2.289836676 | Y141: 1.997156368 | Z141: 1.71094735 | AA141: 1.410208214 | AB141: 1.10352123 | AC141: 0.8389855244 | AD141: 0.5605367563 | AE141: 0.2738020346
B142: Simulation 141 | C142: 6.649662525 | D142: 0.4140329047 | E142: 1.908790563 | F142: -1.654597869 | G142: -4.4708306 | H142: -6.361146244 | I142: -0.1759739656 | J142: 1.867134528 | K142: 0.5510895401 | L142: -0.3444975827 | M142: -2.585406511 | N142: -4.726885522 | O142: -4.144669469 | P142: -4.588523963 | Q142: -4.36980578 | R142: -3.666455762 | S142: -3.4576287 | T142: -3.10907812 | U142: -2.793657581 | V142: -2.452422407 | W142: -2.069206638 | X142: -1.783953015 | Y142: -1.571774854 | Z142: -1.366879335 | AA142: -1.157254115 | AB142: -0.9253239407 | AC142: -0.7015417547 | AD142: -0.4697142829 | AE142: -0.232690053
B143: Simulation 142 | C143: 6.649662525 | D143: 13.46566995 | E143: 8.047934477 | F143: 7.362493162 | G143: 5.495702701 | H143: 7.039391533 | I143: 6.204955222 | J143: 12.99066027 | K143: 16.03727512 | L143: 16.81788664 | M143: 19.52713779 | N143: 23.11843279 | O143: 22.01807361 | P143: 20.77784751 | Q143: 20.69531009 | R143: 19.87345348 | S143: 18.22709113 | T143: 17.26633556 | U143: 16.2036488 | V143: 15.01944056 | W143: 13.62895452 | X143: 12.43824408 | Y143: 10.92365455 | Z143: 10.64406575 | AA143: 9.055255126 | AB143: 8.622228749 | AC143: 7.06880474 | AD143: 6.644618786 | AE143: 4.931160588
B144: Simulation 143 | C144: 6.649662525 | D144: 2.577170867 | E144: -3.387260623 | F144: -5.854100714 | G144: -9.132582431 | H144: -9.830367457 | I144: -9.119141913 | J144: -8.849592043 | K144: -5.025262589 | L144: -3.978972249 | M144: -3.251253043 | N144: -2.060667159 | O144: -3.176204195 | P144: -3.899343223 | Q144: -3.448402228 | R144: -2.927016967 | S144: -3.051573239 | T144: -2.8121698 | U144: -2.517569765 | V144: -2.227554703 | W144: -1.85129775 | X144: -1.552164426 | Y144: -1.358966206 | Z144: -1.169021814 | AA144: -0.9828362236 | AB144: -0.785560999 | AC144: -0.5928380694 | AD144: -0.395241493 | AE144: -0.1949453439
B145: Simulation 144 | C145: 6.649662525 | D145: -6.001705569 | E145: -13.06065829 | F145: -17.65790411 | G145: -18.85782161 | H145: -18.71198456 | I145: -15.16056211 | J145: -17.56527859 | K145: -17.77886631 | L145: -15.81448042 | M145: -13.7590817 | N145: -13.64412271 | O145: -14.30290631 | P145: -12.86834705 | Q145: -10.47217222 | R145: -9.270175485 | S145: -7.437805701 | T145: -6.392265863 | U145: -5.346654063 | V145: -4.432116914 | W145: -3.527293958 | X145: -2.641281578 | Y145: -2.205774925 | Z145: -1.800388147 | AA145: -1.426721113 | AB145: -1.069903888 | AC145: -0.7627747346 | AD145: -0.476554681 | AE145: -0.2184357721
B146: Simulation 145 | C146: 6.649662525 | D146: 6.524442644 | E146: 9.546162807 | F146: 5.887895048 | G146: 7.570356371 | H146: 6.840704223 | I146: 7.312843147 | J146: 3.467158438 | K146: -0.4512875616 | L146: 0.2274612651 | M146: 1.539563474 | N146: 1.684137514 | O146: 1.346337103 | P146: 0.415214813 | Q146: -0.3879377211 | R146: -1.311481882 | S146: -1.284410337 | T146: -1.148273072 | U146: -1.184515286 | V146: -1.127196286 | W146: -1.042206389 | X146: -0.9275557202 | Y146: -0.8127637352 | Z146: -0.7029965506 | AA146: -0.5977327948 | AB146: -0.4822346429 | AC146: -0.3609551637 | AD146: -0.2388938113 | AE146: -0.1175635462
B147: Simulation 146 | C147: 6.649662525 | D147: 0.9970856339 | E147: 2.027242062 | F147: 10.85879713 | G147: 9.53900323 | H147: 11.30039707 | I147: 7.950715461 | J147: 8.09392664 | K147: 11.38280373 | L147: 10.36949916 | M147: 8.829572313 | N147: 10.68836181 | O147: 12.71622434 | P147: 12.16546637 | Q147: 12.92581533 | R147: 12.40954626 | S147: 10.38948816 | T147: 9.379540822 | U147: 8.81405187 | V147: 7.829092642 | W147: 6.701407745 | X147: 6.03338135 | Y147: 5.138886849 | Z147: 5.406559887 | AA147: 4.449422779 | AB147: 4.65839895 | AC147: 3.689375778 | AD147: 3.852785331 | AE147: 2.724842772
B148: Simulation 147 | C148: 6.649662525 | D148: 0.1442169774 | E148: 2.115169575 | F148: 2.627616503 | G148: 10.71996567 | H148: 14.57653042 | I148: 16.98599263 | J148: 14.72027797 | K148: 13.00722376 | L148: 15.05541982 | M148: 20.80628694 | N148: 19.15060612 | O148: 17.30575256 | P148: 18.78127471 | Q148: 17.60067565 | R148: 17.96697749 | S148: 16.99679235 | T148: 16.17289949 | U148: 15.50635015 | V148: 14.35948625 | W148: 13.16463933 | X148: 12.29952785 | Y148: 11.06735443 | Z148: 10.9548939 | AA148: 9.561054412 | AB148: 9.325730715 | AC148: 7.895381744 | AD148: 7.573559651 | AE148: 5.933718199
B149: Simulation 148 | C149: 6.649662525 | D149: 3.877162728 | E149: 4.519380536 | F149: 5.866289967 | G149: -3.484806961 | H149: -6.575379361 | I149: -12.17554102 | J149: -10.32233677 | K149: -10.31729866 | L149: -6.927875095 | M149: -4.6057445 | N149: -3.796836524 | O149: -1.97710821 | P149: -1.852394374 | Q149: -1.241606122 | R149: -1.393491854 | S149: -1.776346951 | T149: -1.75900414 | U149: -1.498415135 | V149: -1.340362771 | W149: -1.283896517 | X149: -0.9063139233 | Y149: -0.708463154 | Z149: -0.5317571255 | AA149: -0.3782325279 | AB149: -0.2436620297 | AC149: -0.1363099684 | AD149: -0.05716460161 | AE149: -0.01151558335
B150: Simulation 149 | C150: 6.649662525 | D150: 19.80898734 | E150: 24.55701428 | F150: 24.88557242 | G150: 26.87470014 | H150: 24.11571518 | I150: 23.8261887 | J150: 20.55332384 | K150: 24.69089796 | L150: 23.08196748 | M150: 22.72868017 | N150: 21.44191077 | O150: 23.58656648 | P150: 23.40012268 | Q150: 22.17027517 | R150: 21.70198875 | S150: 19.27377553 | T150: 18.87898897 | U150: 17.93520272 | V150: 16.86065475 | W150: 15.74377636 | X150: 14.7084565 | Y150: 13.31445114 | Z150: 13.04101952 | AA150: 11.50628156 | AB150: 11.11665279 | AC150: 9.580004543 | AD150: 9.132366036 | AE150: 7.35671162
B151: Simulation 150 | C151: 6.649662525 | D151: 9.544721377 | E151: 3.660623973 | F151: 1.464769534 | G151: 1.917729425 | H151: 5.159907734 | I151: 2.178878697 | J151: 1.431824599 | K151: 3.035268518 | L151: 1.969929803 | M151: 0.632444008 | N151: -1.683168749 | O151: -1.836240153 | P151: -1.250992863 | Q151: -0.3973641784 | R151: -1.062296092 | S151: -0.7534935038 | T151: -0.8816270599 | U151: -0.8566878568 | V151: -0.9404580666 | W151: -0.8685994677 | X151: -0.8527926777 | Y151: -0.7767301862 | Z151: -0.700706147 | AA151: -0.6178646096 | AB151: -0.5224087535 | AC151: -0.4122260059 | AD151: -0.2888518701 | AE151: -0.1512197051
B152: Simulation 151 | C152: 6.649662525 | D152: 14.67013392 | E152: 11.19819053 | F152: 4.347858323 | G152: 1.385060466 | H152: 2.484177945 | I152: 1.434113137 | J152: 1.573105368 | K152: 4.554528034 | L152: 5.860180435 | M152: 7.616848029 | N152: 8.650768092 | O152: 7.789886846 | P152: 7.494900942 | Q152: 6.513771443 | R152: 5.617447275 | S152: 5.99989681 | T152: 5.007885489 | U152: 4.732190584 | V152: 4.056181375 | W152: 2.800459244 | X152: 1.6892899 | Y152: 1.510742921 | Z152: 1.321773656 | AA152: 1.118192509 | AB152: 0.899849062 | AC152: 0.7027814131 | AD152: 0.4838118081 | AE152: 0.2435735701
B153: Simulation 152 | C153: 6.649662525 | D153: 3.557388458 | E153: 9.561260199 | F153: 8.954819547 | G153: 12.961167 | H153: 13.19717178 | I153: 13.45849903 | J153: 17.97603701 | K153: 16.40112634 | L153: 18.07671919 | M153: 19.37330559 | N153: 14.45774732 | O153: 15.09387846 | P153: 14.29487431 | Q153: 13.5648148 | R153: 11.87330555 | S153: 10.78784961 | T153: 9.544773837 | U153: 8.772710477 | V153: 7.780780862 | W153: 6.620350246 | X153: 5.748344131 | Y153: 4.688538057 | Z153: 4.820240989 | AA153: 3.685756894 | AB153: 3.769535236 | AC153: 2.671147033 | AD153: 2.734847326 | AE153: 1.526944413
B154: Simulation 153 | C154: 6.649662525 | D154: -6.363308521 | E154: -3.424103395 | F154: -3.197760742 | G154: -0.4241002591 | H154: -6.475318069 | I154: -2.499260944 | J154: -0.5999202844 | K154: 4.056123926 | L154: 3.956858267 | M154: 3.677725668 | N154: 4.331469706 | O154: 6.770112901 | P154: 6.842129899 | Q154: 5.896397299 | R154: 5.605484854 | S154: 5.338257451 | T154: 5.009608915 | U154: 4.453211277 | V154: 3.883180667 | W154: 2.731882182 | X154: 1.790604659 | Y154: 1.587082167 | Z154: 1.383816312 | AA154: 1.159880946 | AB154: 0.9226243055 | AC154: 0.7134461447 | AD154: 0.4852414367 | AE154: 0.2407249281
B155: Simulation 154 | C155: 6.649662525 | D155: 11.15910232 | E155: 11.0915374 | F155: 10.44600181 | G155: 20.96236205 | H155: 23.74552208 | I155: 18.07940425 | J155: 19.48489242 | K155: 20.61760936 | L155: 18.86918722 | M155: 17.99111471 | N155: 16.2610818 | O155: 15.83043617 | P155: 14.196766 | Q155: 12.97333907 | R155: 11.03538517 | S155: 9.33127487 | T155: 8.022392108 | U155: 7.06416279 | V155: 5.613483266 | W155: 4.351536775 | X155: 2.7005196 | Y155: 1.651035604 | Z155: 1.842540242 | AA155: 0.7648488464 | AB155: 0.9517678866 | AC155: 0.00299153662 | AD155: 0.2389690147 | AE155: -0.7591807096
B156: Simulation 155 | C156: 6.649662525 | D156: 13.25069129 | E156: 4.303358022 | F156: 4.534143212 | G156: 10.44703528 | H156: 7.813425887 | I156: 4.717142167 | J156: 3.137029281 | K156: 7.185699725 | L156: 9.549413288 | M156: 4.73599643 | N156: 5.787936743 | O156: 7.195812442 | P156: 7.324023114 | Q156: 7.554998378 | R156: 6.888019332 | S156: 6.416469258 | T156: 5.48379386 | U156: 4.792756997 | V156: 4.015280842 | W156: 2.912439286 | X156: 1.978799644 | Y156: 1.261778375 | Z156: 1.789972156 | AA156: 1.009291528 | AB156: 1.456138849 | AC156: 0.6951731397 | AD156: 1.101973695 | AE156: 0.231352257
B157: Simulation 156 | C157: 6.649662525 | D157: 16.69082954 | E157: 17.58605539 | F157: 23.84441561 | G157: 20.89293553 | H157: 10.82897531 | I157: 11.55602278 | J157: 16.93626955 | K157: 18.25403141 | L157: 23.05848278 | M157: 21.02834319 | N157: 23.68841034 | O157: 27.22837612 | P157: 25.64865078 | Q157: 26.02463465 | R157: 25.51967259 | S157: 24.27911545 | T157: 23.21344545 | U157: 21.704109 | V157: 20.66471457 | W157: 19.07693693 | X157: 17.58525548 | Y157: 15.76161949 | Z157: 15.16438012 | AA157: 13.20409093 | AB157: 12.39193585 | AC157: 10.48286607 | AD157: 9.669151241 | AE157: 7.540060304
B158: Simulation 157 | C158: 6.649662525 | D158: 2.909806771 | E158: 9.920099873 | F158: 0.8360367927 | G158: -3.0209681 | H158: 0.7737577129 | I158: 2.973103197 | J158: 6.169129413 | K158: 9.738767681 | L158: 8.508729113 | M158: 7.54031653 | N158: 7.102881905 | O158: 7.35363626 | P158: 6.275869924 | Q158: 7.599158474 | R158: 7.127964086 | S158: 7.825073638 | T158: 7.745516687 | U158: 6.923705194 | V158: 6.307649842 | W158: 5.468617413 | X158: 4.952662688 | Y158: 4.082335413 | Z158: 4.449516418 | AA158: 3.508538671 | AB158: 3.772640263 | AC158: 2.821062077 | AD158: 2.993760956 | AE158: 1.880078843
B159: Simulation 158 | C159: 6.649662525 | D159: 6.284796637 | E159: 15.47931548 | F159: 19.92970892 | G159: 31.6110575 | H159: 26.62984095 | I159: 26.13703146 | J159: 20.66092968 | K159: 24.28090714 | L159: 27.05789929 | M159: 24.60913373 | N159: 23.39317058 | O159: 23.83474963 | P159: 24.4304203 | Q159: 23.61336803 | R159: 23.52136219 | S159: 22.23049121 | T159: 21.78182827 | U159: 20.63922968 | V159: 19.36753644 | W159: 17.77282699 | X159: 16.41169233 | Y159: 14.64193785 | Z159: 14.07452437 | AA159: 12.15939178 | AB159: 11.43593324 | AC159: 9.584050369 | AD159: 8.834071251 | AE159: 6.792803326
B160: Simulation 159 | C160: 6.649662525 | D160: 13.2765706 | E160: 11.79631117 | F160: 14.73713822 | G160: 13.32967541 | H160: 18.04496176 | I160: 28.44408244 | J160: 26.18987819 | K160: 26.74339937 | L160: 26.99626173 | M160: 29.53226438 | N160: 25.27354754 | O160: 21.58239728 | P160: 19.26462876 | Q160: 17.76401632 | R160: 17.44903282 | S160: 16.42752602 | T160: 15.15560122 | U160: 13.99490305 | V160: 12.56388005 | W160: 11.07650802 | X160: 9.871544788 | Y160: 8.410422965 | Z160: 8.146493419 | AA160: 6.594154858 | AB160: 6.28124913 | AC160: 4.834601996 | AD160: 4.544246157 | AE160: 3.001561816
B161: Simulation 160 | C161: 6.649662525 | D161: 8.217287207 | E161: 15.13697441 | F161: 14.62213971 | G161: 19.91126761 | H161: 24.33231119 | I161: 26.21067224 | J161: 26.71063657 | K161: 23.25443871 | L161: 22.00414252 | M161: 21.68537891 | N161: 20.38120481 | O161: 19.96923344 | P161: 19.80303759 | Q161: 20.14196093 | R161: 18.59824268 | S161: 17.5656886 | T161: 16.74681453 | U161: 15.73360813 | V161: 14.3337913 | W161: 12.84749773 | X161: 11.40338709 | Y161: 9.851879992 | Z161: 9.457277709 | AA161: 7.772411389 | AB161: 7.301634703 | AC161: 5.716996098 | AD161: 5.274937373 | AE161: 3.560139873
B162: Simulation 161 | C162: 6.649662525 | D162: 3.217424288 | E162: 6.783316235 | F162: -0.7377293309 | G162: 1.318589114 | H162: 5.82598416 | I162: 0.5599674106 | J162: 1.946491068 | K162: 7.253755334 | L162: 7.506396852 | M162: 11.03720929 | N162: 11.59403203 | O162: 10.92388312 | P162: 13.10877743 | Q162: 14.28899334 | R162: 13.36964334 | S162: 12.23539877 | T162: 11.52007317 | U162: 11.14188806 | V162: 10.50843171 | W162: 9.797972361 | X162: 9.186802406 | Y162: 8.202572229 | Z162: 8.401380239 | AA162: 7.281511114 | AB162: 7.330457925 | AC162: 6.172951009 | AD162: 6.118056352 | AE162: 4.744483383
B163: Simulation 162 | C163: 6.649662525 | D163: 6.152383246 | E163: 3.864874363 | F163: -0.736012742 | G163: -2.252646287 | H163: 3.466127783 | I163: 7.349531993 | J163: 6.180976434 | K163: 5.990220778 | L163: 6.578721553 | M163: 3.640650863 | N163: 4.331401286 | O163: 5.068381774 | P163: 4.621623439 | Q163: 5.398597082 | R163: 6.091728159 | S163: 4.625426862 | T163: 4.224326372 | U163: 3.672688855 | V163: 3.261511339 | W163: 2.327955831 | X163: 1.290629034 | Y163: 1.185267076 | Z163: 1.059933047 | AA163: 0.9174112055 | AB163: 0.7542431315 | AC163: 0.6035272253 | AD163: 0.4251152041 | AE163: 0.2185975497
B164: Simulation 163 | C164: 6.649662525 | D164: -1.169530486 | E164: -0.3561842896 | F164: 1.729702901 | G164: 11.36847564 | H164: 5.397014128 | I164: -1.030664745 | J164: -7.277920251 | K164: -9.92782699 | L164: -9.942238955 | M164: -9.028427822 | N164: -11.77958639 | O164: -13.24832338 | P164: -12.11891716 | Q164: -10.61087002 | R164: -10.04061035 | S164: -8.7999145 | T164: -7.963501322 | U164: -7.010529159 | V164: -6.017481492 | W164: -4.953441325 | X164: -3.945901348 | Y164: -3.395958299 | Z164: -2.864433841 | AA164: -2.343321974 | AB164: -1.822448739 | AC164: -1.348718728 | AD164: -0.878711716 | AE164: -0.421888275
B165: Simulation 164 | C165: 6.649662525 | D165: 6.230307579 | E165: 4.47048914 | F165: 8.409082169 | G165: 6.649472269 | H165: 14.38099867 | I165: 8.187577108 | J165: 10.54168241 | K165: 7.229474863 | L165: 7.043424258 | M165: 2.818524487 | N165: 1.730263501 | O165: -0.5315444791 | P165: -1.899636285 | Q165: -3.010546002 | R165: -3.027800896 | S165: -2.966064226 | T165: -2.80295198 | U165: -2.533425142 | V165: -2.381489415 | W165: -2.171525352 | X165: -1.851129681 | Y165: -1.653315016 | Z165: -1.448054023 | AA165: -1.228948295 | AB165: -0.9906835039 | AC165: -0.7526417937 | AD165: -0.504582428 | AE165: -0.2500671039
B166: Simulation 165 | C166: 6.649662525 | D166: 8.725153252 | E166: 0.6663033721 | F166: 12.08451414 | G166: 12.8630419 | H166: 6.844475893 | I166: 12.50545622 | J166: 13.13017562 | K166: 9.982517922 | L166: 13.13560955 | M166: 11.4789447 | N166: 12.58823714 | O166: 10.52276283 | P166: 10.59699406 | Q166: 9.821988541 | R166: 8.555600755 | S166: 8.220849501 | T166: 7.66669015 | U166: 6.699194203 | V166: 5.392663304 | W166: 3.90284882 | X166: 2.736268585 | Y166: 2.351755144 | Z166: 1.978967106 | AA166: 1.596232931 | AB166: 1.221692759 | AC166: 0.9079041144 | AD166: 0.591924295 | AE166: 0.2811020296
B167: Simulation 166 | C167: 6.649662525 | D167: 3.942587797 | E167: -0.1102277827 | F167: -6.083194221 | G167: -7.824581271 | H167: -6.538941482 | I167: -3.155884887 | J167: -2.411560457 | K167: -5.825171673 | L167: -7.331315482 | M167: -8.032856093 | N167: -6.138445096 | O167: -5.101678756 | P167: -5.652783173 | Q167: -5.599795948 | R167: -4.403994058 | S167: -4.029070193 | T167: -3.367755386 | U167: -2.963363634 | V167: -2.481794068 | W167: -1.977359315 | X167: -1.541406216 | Y167: -1.299637707 | Z167: -1.072854365 | AA167: -0.8600151383 | AB167: -0.6506087023 | AC167: -0.4660520028 | AD167: -0.2921978931 | AE167: -0.135490825
B168: Simulation 167 | C168: 6.649662525 | D168: 17.07795349 | E168: 3.328533801 | F168: 6.145421938 | G168: 7.593000083 | H168: 10.62095348 | I168: 9.617545741 | J168: 7.187824755 | K168: 12.51467032 | L168: 14.99911115 | M168: 15.41240298 | N168: 15.37496138 | O168: 14.0033351 | P168: 11.53458236 | Q168: 13.42904741 | R168: 12.79578643 | S168: 10.53654198 | T168: 9.702852751 | U168: 8.575626996 | V168: 7.774326853 | W168: 6.278540994 | X168: 5.556124199 | Y168: 4.532100896 | Z168: 4.710444893 | AA168: 3.612859292 | AB168: 3.728963908 | AC168: 2.674355298 | AD168: 2.767149255 | AE168: 1.594818286
B169: Simulation 168 | C169: 6.649662525 | D169: 2.992509062 | E169: 14.9649667 | F169: 27.39764525 | G169: 26.66201205 | H169: 29.40149095 | I169: 35.64372709 | J169: 38.36501685 | K169: 41.10156292 | L169: 42.09552844 | M169: 38.70229585 | N169: 37.35221159 | O169: 34.82146291 | P169: 33.4447959 | Q169: 32.8916403 | R169: 32.25356411 | S169: 32.17758013 | T169: 31.01138136 | U169: 29.49912764 | V169: 27.74975898 | W169: 26.29346244 | X169: 24.50876049 | Y169: 22.42722143 | Z169: 21.49407304 | AA169: 19.23954789 | AB169: 18.09863166 | AC169: 15.83544194 | AD169: 14.62753292 | AE169: 12.04737569
B170: Simulation 169 | C170: 6.649662525 | D170: 1.10645582 | E170: 3.035275849 | F170: 10.98233137 | G170: 20.60701105 | H170: 22.05365494 | I170: 29.2478944 | J170: 23.90799466 | K170: 27.73118111 | L170: 29.9073925 | M170: 31.48336772 | N170: 30.01144228 | O170: 31.67409169 | P170: 30.23826021 | Q170: 28.22289877 | R170: 26.60699886 | S170: 24.10216246 | T170: 22.1225266 | U170: 20.52156541 | V170: 18.91498937 | W170: 17.05814126 | X170: 15.35207619 | Y170: 13.40180376 | Z170: 12.64716252 | AA170: 10.64860413 | AB170: 9.833647738 | AC170: 7.923642436 | AD170: 7.167730327 | AE170: 5.127851284
B171: Simulation 170 | C171: 6.649662525 | D171: 9.96626049 | E171: 6.430758358 | F171: 4.174706034 | G171: 7.226166331 | H171: 9.819656706 | I171: 22.74106734 | J171: 26.79593081 | K171: 23.06714961 | L171: 19.67905243 | M171: 17.85994071 | N171: 15.84656204 | O171: 16.02632876 | P171: 16.1821621 | Q171: 15.2292407 | R171: 14.05115872 | S171: 12.38261982 | T171: 11.33273133 | U171: 10.07810437 | V171: 8.869588716 | W171: 7.586700391 | X171: 6.706705273 | Y171: 5.630830941 | Z171: 5.759928179 | AA171: 4.618670338 | AB171: 4.679025219 | AC171: 3.583386267 | AD171: 3.634791197 | AE171: 2.40646206
B172: Simulation 171 | C172: 6.649662525 | D172: -1.893160694 | E172: -0.4090214217 | F172: -1.07796052 | G172: -9.581941722 | H172: -7.043514215 | I172: -1.717548168 | J172: -0.7124969602 | K172: -5.263858543 | L172: -3.567610479 | M172: -2.685370509 | N172: -3.43810148 | O172: -3.974649543 | P172: -4.182111423 | Q172: -3.991508586 | R172: -2.707527638 | S172: -2.749778167 | T172: -2.368532994 | U172: -1.888175312 | V172: -1.557837233 | W172: -1.24777195 | X172: -0.8996623685 | Y172: -0.6968001168 | Z172: -0.5295813825 | AA172: -0.3844088164 | AB172: -0.2597025261 | AC172: -0.1542948577 | AD172: -0.0732494722 | AE172: -0.02225890531
B173: Simulation 172 | C173: 6.649662525 | D173: 5.813546722 | E173: 2.702318305 | F173: 6.192755511 | G173: 7.661173354 | H173: 3.071602697 | I173: -0.459815588 | J173: 0.1619435668 | K173: -0.9039720427 | L173: -1.936162824 | M173: -2.504931251 | N173: -0.2280655226 | O173: 0.05414408569 | P173: -0.2507370361 | Q173: -1.691204435 | R173: -1.436497609 | S173: -2.085258855 | T173: -2.038261229 | U173: -1.860463928 | V173: -1.736705057 | W173: -1.549941511 | X173: -1.360169894 | Y173: -1.21406277 | Z173: -1.065398424 | AA173: -0.9076233175 | AB173: -0.7350503068 | AC173: -0.5596621116 | AD173: -0.3762940281 | AE173: -0.1874082688
B174: Simulation 173 | C174: 6.649662525 | D174: -9.736644709 | E174: -12.85206536 | F174: -13.71081738 | G174: -7.776631751 | H174: -4.044634075 | I174: -4.736286113 | J174: -10.16792897 | K174: -11.48427544 | L174: -9.272694047 | M174: -9.036058972 | N174: -9.753951304 | O174: -9.63381019 | P174: -9.037653158 | Q174: -8.959401697 | R174: -8.814929282 | S174: -8.390128035 | T174: -7.985636578 | U174: -7.323130949 | V174: -6.444982244 | W174: -5.546605545 | X174: -4.582556845 | Y174: -4.027759903 | Z174: -3.461945004 | AA174: -2.892273978 | AB174: -2.29489805 | AC174: -1.733121254 | AD174: -1.153195788 | AE174: -0.5656170296
B175: Simulation 174 | C175: 6.649662525 | D175: 10.91981707 | E175: 7.960286113 | F175: 11.73558006 | G175: 9.832130297 | H175: 11.4698808 | I175: 13.80140597 | J175: 13.05543869 | K175: 7.05839864 | L175: 6.084559552 | M175: 5.339299877 | N175: 4.79540995 | O175: 4.289373528 | P175: 4.544581694 | Q175: 3.503145966 | R175: 3.897953957 | S175: 3.298360863 | T175: 3.295077643 | U175: 3.067274965 | V175: 2.809961469 | W175: 1.702426703 | X175: 0.9180770798 | Y175: 0.8711206529 | Z175: 0.8093107536 | AA175: 0.7178794839 | AB175: 0.6069290444 | AC175: 0.4993438527 | AD175: 0.3603189329 | AE175: 0.1893915368
B176: Simulation 175 | C176: 6.649662525 | D176: 8.812908697 | E176: -0.0500502749 | F176: -0.2817552835 | G176: -5.02642829 | H176: -8.962782326 | I176: -8.510502413 | J176: -8.01867073 | K176: -6.76367197 | L176: -8.758720744 | M176: -10.4118148 | N176: -9.960403695 | O176: -8.392212224 | P176: -7.986340389 | Q176: -8.298500124 | R176: -7.455797527 | S176: -6.328326963 | T176: -5.430390028 | U176: -4.706742257 | V176: -3.914821425 | W176: -3.080585917 | X176: -2.370502633 | Y176: -1.977362633 | Z176: -1.606133755 | AA176: -1.264102468 | AB176: -0.9387950544 | AC176: -0.6591687109 | AD176: -0.4035567222 | AE176: -0.1804136213
B177: Simulation 176 | C177: 6.649662525 | D177: 0.1997634867 | E177: -9.282469076 | F177: 5.848951076 | G177: 5.954106813 | H177: 9.724645086 | I177: 16.69871845 | J177: 15.01612792 | K177: 11.46828853 | L177: 10.88894106 | M177: 10.07800428 | N177: 7.357073598 | O177: 5.840322115 | P177: 4.74761261 | Q177: 5.729986054 | R177: 3.882092534 | S177: 2.602731709 | T177: 2.008064385 | U177: 1.582832949 | V177: 1.014843793 | W177: 0.5534474315 | X177: 0.2822950096 | Y177: 0.2133430843 | Z177: 0.1568688153 | AA177: 0.1113061003 | AB177: 0.07710820224 | AC177: 0.05987373391 | AD177: 0.04024334237 | AE177: 0.01909925751
B178: Simulation 177 | C178: 6.649662525 | D178: 7.980713424 | E178: 18.86013826 | F178: 19.58889078 | G178: 18.82289922 | H178: 19.80938772 | I178: 18.71195542 | J178: 25.75666165 | K178: 29.80193915 | L178: 32.75401062 | M178: 31.70298733 | N178: 32.15411788 | O178: 32.70028363 | P178: 34.05985515 | Q178: 32.39146187 | R178: 32.01297727 | S178: 30.15935694 | T178: 29.20598606 | U178: 27.73227417 | V178: 26.28126369 | W178: 24.6119631 | X178: 22.80845123 | Y178: 20.6012269 | Z178: 19.53291285 | AA178: 17.13404586 | AB178: 15.87026288 | AC178: 13.5421204 | AD178: 12.27660048 | AE178: 9.686130241
B179: Simulation 178 | C179: 6.649662525 | D179: 7.703501033 | E179: 16.80315891 | F179: 11.69009142 | G179: 16.01053401 | H179: 15.11567602 | I179: 16.5625209 | J179: 21.74180219 | K179: 26.61653113 | L179: 30.76224461 | M179: 32.20678459 | N179: 32.24249394 | O179: 32.31615591 | P179: 30.82516366 | Q179: 29.85430666 | R179: 28.58384029 | S179: 28.59933191 | T179: 27.08461708 | U179: 26.02764273 | V179: 24.31823688 | W179: 22.77392339 | X179: 21.12298306 | Y179: 19.168624 | Z179: 18.36346697 | AA179: 16.21531082 | AB179: 15.2025193 | AC179: 13.08195231 | AD179: 12.04471122 | AE179: 9.653160466
B180: Simulation 179 | C180: 6.649662525 | D180: 3.718271152 | E180: 4.969630441 | F180: 3.469952022 | G180: 5.080245663 | H180: 5.62637796 | I180: 3.438254499 | J180: 10.11214478 | K180: 8.683781246 | L180: 5.775775304 | M180: 4.785568614 | N180: 4.608126446 | O180: 4.801389602 | P180: 2.729659937 | Q180: 2.911386505 | R180: 3.760293348 | S180: 3.685353067 | T180: 3.561105461 | U180: 3.072795228 | V180: 2.589926485 | W180: 1.895296152 | X180: 1.183491714 | Y180: 1.09953776 | Z180: 0.9951343853 | AA180: 0.8662257525 | AB180: 0.7169550606 | AC180: 0.5734953233 | AD180: 0.4036780555 | AE180: 0.2072826181
B181: Simulation 180 | C181: 6.649662525 | D181: 9.147377869 | E181: 10.46144108 | F181: 12.46379285 | G181: 14.73597319 | H181: 14.16846331 | I181: 12.05157183 | J181: 14.89171769 | K181: 9.522700748 | L181: 13.66280947 | M181: 10.51399828 | N181: 6.424672024 | O181: 10.29297469 | P181: 8.049636851 | Q181: 6.0327519 | R181: 5.045030887 | S181: 4.469982989 | T181: 3.909923486 | U181: 3.167256917 | V181: 2.394703121 | W181: 1.629977396 | X181: 1.061307219 | Y181: 0.9491084863 | Z181: 0.8313132703 | AA181: 0.700950065 | AB181: 0.565175241 | AC181: 0.4465961548 | AD181: 0.3114982935 | AE181: 0.1587990985
B182: Simulation 181 | C182: 6.649662525 | D182: 7.707790796 | E182: 13.36612521 | F182: 17.82684868 | G182: 22.77448116 | H182: 23.5023056 | I182: 27.82944867 | J182: 30.66328528 | K182: 32.68466583 | L182: 27.03243084 | M182: 24.52234966 | N182: 22.28803278 | O182: 16.51168623 | P182: 15.96080297 | Q182: 15.11896124 | R182: 14.07106995 | S182: 12.72965414 | T182: 11.8012129 | U182: 10.30802166 | V182: 8.885602031 | W182: 7.520377227 | X182: 6.563897812 | Y182: 5.383088497 | Z182: 5.353439375 | AA182: 4.106623852 | AB182: 4.078996186 | AC182: 2.890758566 | AD182: 2.881122535 | AE182: 1.609117802
B183: Simulation 182 | C183: 6.649662525 | D183: 11.14814386 | E183: 3.276868424 | F183: 10.15237703 | G183: 3.853888041 | H183: 2.415808811 | I183: 6.898116791 | J183: 7.293002054 | K183: 5.960033464 | L183: 7.964485998 | M183: 9.517687808 | N183: 12.01796589 | O183: 11.68495113 | P183: 10.47685863 | Q183: 9.292872817 | R183: 8.295296284 | S183: 7.282999455 | T183: 6.505119328 | U183: 6.019392856 | V183: 4.763310955 | W183: 3.556616832 | X183: 2.336918055 | Y183: 2.051274983 | Z183: 1.760367923 | AA183: 1.4534612 | AB183: 1.139143923 | AC183: 0.866030834 | AD183: 0.5783872179 | AE183: 0.2825873778
B184: Simulation 183 | C184: 6.649662525 | D184: 14.43940197 | E184: 11.71415327 | F184: 4.603365269 | G184: 1.338099085 | H184: 6.71116875 | I184: 0.82589978 | J184: 4.594137289 | K184: 8.031960315 | L184: 4.374546465 | M184: 3.523569425 | N184: 4.947694563 | O184: 6.3515147 | P184: 5.483399653 | Q184: 4.72092667 | R184: 4.575979478 | S184: 4.198217155 | T184: 4.175247312 | U184: 3.870292157 | V184: 2.926932885 | W184: 1.959397628 | X184: 1.394745715 | Y184: 1.233966105 | Z184: 1.069403738 | AA184: 0.8956795526 | AB184: 0.7119670586 | AC184: 0.5502277903 | AD184: 0.3739907638 | AE184: 0.1855229573
B185: Simulation 184 | C185: 6.649662525 | D185: 7.534921115 | E185: 4.800620717 | F185: 6.090256971 | G185: 10.02734344 | H185: 10.52624085 | I185: 6.782817539 | J185: 8.036261499 | K185: 5.506309598 | L185: 3.495176145 | M185: 6.856090388 | N185: 4.24296673 | O185: 0.9691166139 | P185: 2.789986121 | Q185: 3.34597569 | R185: 3.183926936 | S185: 3.720717503 | T185: 3.42707379 | U185: 2.873964201 | V185: 2.307664257 | W185: 1.533418514 | X185: 1.068210109 | Y185: 0.972214383 | Z185: 0.8633421315 | AA185: 0.7389494041 | AB185: 0.6012854696 | AC185: 0.4751912821 | AD185: 0.3311039736 | AE185: 0.1680108238
B186: Simulation 185 | C186: 6.649662525 | D186: 3.252787009 | E186: 3.786384154 | F186: 5.64063261 | G186: 3.02735185 | H186: 9.933846744 | I186: 15.74208859 | J186: 14.86802316 | K186: 10.8277028 | L186: 11.16281915 | M186: 6.87490135 | N186: 4.835096462 | O186: 9.069151073 | P186: 8.449275273 | Q186: 8.05915527 | R186: 8.013705975 | S186: 7.030606592 | T186: 6.805614008 | U186: 6.081068837 | V186: 4.871926639 | W186: 4.133188696 | X186: 3.327500241 | Y186: 2.616715066 | Z186: 3.055152714 | AA186: 2.209673231 | AB186: 2.597483995 | AC186: 1.772563704 | AD186: 2.084674831 | AE186: 1.12399961
B187: Simulation 186 | C187: 6.649662525 | D187: 10.08455696 | E187: 11.15792695 | F187: 8.582607262 | G187: 14.68150073 | H187: 13.12214119 | I187: 12.51814884 | J187: 12.24393249 | K187: 19.63196766 | L187: 22.71772162 | M187: 21.12444661 | N187: 18.73591061 | O187: 18.95801832 | P187: 16.25616481 | Q187: 14.53324194 | R187: 12.61686916 | S187: 12.40927207 | T187: 11.62360805 | U187: 10.98927927 | V187: 9.787472832 | W187: 8.470584004 | X187: 7.521004452 | Y187: 6.433808261 | Z187: 6.51992296 | AA187: 5.349627434 | AB187: 5.390762497 | AC187: 4.240548089 | AD187: 4.220266835 | AE187: 2.924672216
B188: Simulation 187 | C188: 6.649662525 | D188: -3.557415525 | E188: 2.594721456 | F188: -5.777528574 | G188: -4.585197369 | H188: -10.54551571 | I188: -10.71447984 | J188: -10.24210416 | K188: -10.85321982 | L188: -9.252939126 | M188: -7.252216093 | N188: -8.237160169 | O188: -8.852409137 | P188: -7.117804939 | Q188: -6.387320088 | R188: -5.689632259 | S188: -4.904090352 | T188: -4.210593981 | U188: -3.551336291 | V188: -2.936339901 | W188: -2.385276601 | X188: -1.864666813 | Y188: -1.581685267 | Z188: -1.312158685 | AA188: -1.062014521 | AB188: -0.8192817083 | AC188: -0.5982822027 | AD188: -0.3850637666 | AE188: -0.1838717474
B189: Simulation 188 | C189: 6.649662525 | D189: 0.1536146787 | E189: 6.638548527 | F189: 6.1355834 | G189: 4.695383339 | H189: 10.22663548 | I189: 8.338525626 | J189: 8.89947364 | K189: 6.831245716 | L189: 9.329609309 | M189: 7.319709443 | N189: 7.433330054 | O189: 8.343521173 | P189: 7.748616432 | Q189: 6.533514901 | R189: 7.879317362 | S189: 7.64437713 | T189: 6.301217749 | U189: 5.473678772 | V189: 4.398593269 | W189: 3.178702884 | X189: 2.361309154 | Y189: 2.024776292 | Z189: 1.683849011 | AA189: 1.345465268 | AB189: 1.016068304 | AC189: 0.7427671582 | AD189: 0.4740361757 | AE189: 0.2191504722
B190: Simulation 189 | C190: 6.649662525 | D190: 14.91858427 | E190: 16.0494302 | F190: 19.37690547 | G190: 10.80899636 | H190: 10.97546749 | I190: 10.25402125 | J190: 6.0169305 | K190: 4.685887505 | L190: 8.683429104 | M190: 7.483637114 | N190: 11.99394814 | O190: 10.79861325 | P190: 11.63736065 | Q190: 13.35773272 | R190: 12.39264036 | S190: 12.80006117 | T190: 12.04975142 | U190: 11.55910213 | V190: 10.49557077 | W190: 9.776965628 | X190: 9.053059934 | Y190: 7.920438861 | Z190: 7.976567386 | AA190: 6.717957139 | AB190: 6.633254379 | AC190: 5.370921099 | AD190: 5.215713639 | AE190: 3.769489924
B191: Simulation 190 | C191: 6.649662525 | D191: 14.32985806 | E191: 23.03870668 | F191: 16.92824126 | G191: 13.51244776 | H191: 18.49478816 | I191: 16.68439285 | J191: 12.09719293 | K191: 14.4478495 | L191: 15.78029859 | M191: 19.21946394 | N191: 19.17922189 | O191: 13.6945256 | P191: 11.61816508 | Q191: 10.4672663 | R191: 10.307659 | S191: 8.773310057 | T191: 7.386400952 | U191: 6.278494545 | V191: 5.231833919 | W191: 3.786961923 | X191: 2.433505423 | Y191: 2.114591647 | Z191: 1.794442524 | AA191: 1.469158473 | AB191: 1.142076395 | AC191: 0.8642064532 | AD191: 0.5739253034 | AE191: 0.279229974
B192: Simulation 191 | C192: 6.649662525 | D192: 14.48020482 | E192: 18.80428384 | F192: 22.83044649 | G192: 21.96119745 | H192: 20.95850376 | I192: 20.7660964 | J192: 20.16402009 | K192: 17.79425686 | L192: 19.53132398 | M192: 16.86496038 | N192: 17.77869741 | O192: 16.75899523 | P192: 15.80475041 | Q192: 15.66388346 | R192: 14.06745128 | S192: 13.20402665 | T192: 11.30104123 | U192: 10.10948953 | V192: 8.815736082 | W192: 7.127430221 | X192: 5.72305058 | Y192: 4.324015539 | Z192: 4.181204817 | AA192: 2.822458293 | AB192: 2.661775475 | AC192: 1.400805876 | AD192: 1.329550534 | AE192: 0.03418001005
B193: Simulation 192 | C193: 6.649662525 | D193: 9.708209495 | E193: 14.31999052 | F193: 3.61660204 | G193: -0.924649884 | H193: 2.549455864 | I193: -6.657082647 | J193: -8.422720117 | K193: -12.07017878 | L193: -10.49638378 | M193: -11.65580604 | N193: -10.18626549 | O193: -9.09961989 | P193: -9.311621919 | Q193: -9.482470979 | R193: -8.509238948 | S193: -7.833316205 | T193: -6.90811146 | U193: -5.958778319 | V193: -5.067936817 | W193: -4.256629245 | X193: -3.414163047 | Y193: -2.946365612 | Z193: -2.495971599 | AA193: -2.048546484 | AB193: -1.59512316 | AC193: -1.185469274 | AD193: -0.7763769945 | AE193: -0.3751231606
B194: Simulation 193 | C194: 6.649662525 | D194: 7.147439519 | E194: 9.525766185 | F194: 6.266152568 | G194: 4.199493255 | H194: 7.167818344 | I194: 10.19831864 | J194: 14.81765003 | K194: 15.82955365 | L194: 17.03361698 | M194: 16.5312065 | N194: 19.86315971 | O194: 19.13772572 | P194: 19.96903826 | Q194: 20.5050259 | R194: 18.68366984 | S194: 17.72090343 | T194: 16.64026117 | U194: 15.67973009 | V194: 14.19642274 | W194: 12.45382523 | X194: 11.17176949 | Y194: 9.593199895 | Z194: 9.18151882 | AA194: 7.451390904 | AB194: 6.957927073 | AC194: 5.355356848 | AD194: 4.89002652 | AE194: 3.166501216
B195: Simulation 194 | C195: 6.649662525 | D195: 9.088766814 | E195: -1.055198853 | F195: 6.657097893 | G195: 8.705154936 | H195: 13.7799076 | I195: 16.49017895 | J195: 13.44805126 | K195: 14.56449067 | L195: 16.28621755 | M195: 13.31731892 | N195: 17.69706816 | O195: 18.31935321 | P195: 17.51448431 | Q195: 18.35871455 | R195: 15.82446168 | S195: 16.75243678 | T195: 15.75073605 | U195: 14.85801966 | V195: 13.88101737 | W195: 12.51619725 | X195: 11.45185426 | Y195: 10.13463106 | Z195: 9.998347013 | AA195: 8.548473391 | AB195: 8.294990034 | AC195: 6.851889279 | AD195: 6.537622722 | AE195: 4.91527321
B196: Simulation 195 | C196: 6.649662525 | D196: 8.393084794 | E196: 7.110983154 | F196: 6.246863299 | G196: 4.464010447 | H196: 5.959101544 | I196: 5.053640879 | J196: 3.105625203 | K196: 8.585150812 | L196: 6.792869197 | M196: 6.611185973 | N196: 5.188261526 | O196: 4.855275846 | P196: 3.922001525 | Q196: 3.186326188 | R196: 3.306556963 | S196: 2.860977155 | T196: 2.553378874 | U196: 2.079148192 | V196: 1.631761165 | W196: 1.099629743 | X196: 0.75192144 | Y196: 0.6328578021 | Z196: 0.5216675647 | AA196: 0.4127330556 | AB196: 0.3058152761 | AC196: 0.2267940739 | AD196: 0.1463475768 | AE196: 0.06813585922
B197: Simulation 196 | C197: 6.649662525 | D197: 2.502510784 | E197: -1.056552255 | F197: -4.402879899 | G197: -0.2126512969 | H197: 1.498636397 | I197: 6.62643115 | J197: 9.52101078 | K197: 6.595177684 | L197: 5.027871342 | M197: 2.892146609 | N197: 3.992023505 | O197: 3.953038306 | P197: 4.761175696 | Q197: 5.804185577 | R197: 6.182567039 | S197: 6.898419397 | T197: 6.616019021 | U197: 6.370250061 | V197: 5.791646764 | W197: 4.983847818 | X197: 4.506554742 | Y197: 3.912669043 | Z197: 4.447285487 | AA197: 3.690215918 | AB197: 4.131926808 | AC197: 3.321680059 | AD197: 3.650248209 | AE197: 2.66390455
B198: Simulation 197 | C198: 6.649662525 | D198: 20.11482676 | E198: 16.96887256 | F198: 13.6287286 | G198: 13.18582293 | H198: 18.78884833 | I198: 16.812293 | J198: 16.69443117 | K198: 15.36690934 | L198: 14.40686258 | M198: 12.8295206 | N198: 13.62652555 | O198: 14.05269832 | P198: 13.4712025 | Q198: 12.94163615 | R198: 13.24550804 | S198: 12.54578232 | T198: 11.60790827 | U198: 10.77118095 | V198: 9.73069371 | W198: 8.29904361 | X198: 7.339330986 | Y198: 6.184620022 | Z198: 6.154226613 | AA198: 4.905217804 | AB198: 4.852442542 | AC198: 3.625797582 | AD198: 3.550620652 | AE198: 2.218627902
B199: Simulation 198 | C199: 6.649662525 | D199: 3.580587758 | E199: 0.7988145629 | F199: -1.288544368 | G199: 4.540647019 | H199: 8.554944826 | I199: 14.1138854 | J199: 11.13500177 | K199: 12.80922747 | L199: 15.72364213 | M199: 19.29111472 | N199: 19.18444504 | O199: 24.6043003 | P199: 25.91657844 | Q199: 25.81229982 | R199: 24.56178605 | S199: 23.81943088 | T199: 22.31870556 | U199: 21.06173057 | V199: 19.36706409 | W199: 17.98376029 | X199: 16.50816136 | Y199: 14.61568029 | Z199: 13.84596427 | AA199: 11.77936151 | AB199: 10.86829987 | AC199: 8.872451997 | AD199: 7.990411569 | AE199: 5.835488193
B200: Simulation 199 | C200: 6.649662525 | D200: 3.07290121 | E200: 7.067976238 | F200: 10.02814555 | G200: 10.34419034 | H200: 11.54347443 | I200: 5.578713789 | J200: 5.345855697 | K200: 5.857618067 | L200: 10.11725867 | M200: 12.21754648 | N200: 11.55851768 | O200: 12.49820664 | P200: 14.01238379 | Q200: 13.57403995 | R200: 13.84037456 | S200: 12.94389819 | T200: 12.22918222 | U200: 11.61892768 | V200: 10.50590326 | W200: 9.711426059 | X200: 8.86904925 | Y200: 7.637081537 | Z200: 7.619084995 | AA200: 6.308752695 | AB200: 6.171070716 | AC200: 4.872281775 | AD200: 4.703317059 | AE200: 3.257862522
... 2803 more rows
